Ref No,Fund Type,Dept,Cost Centre Description    ,Description    ,Creditor Name    ,GL Code Net Amount,Payment date        
2,Revenue,CAHD,Central - Commissioned Services,Permanent Residential,1 St Georges House,10000.14, 06-Apr-2021
3,Revenue,CAHD,Central - Commissioned Services,Permanent Residential,1 St Georges House,3333.38, 06-Apr-2021
4,Revenue,CAHD,Supporting People Programme,Grants to Voluntary Bodies,1625 Independent People,15167.00, 08-Apr-2021
5,Revenue,CAHD,Supporting People Programme,Grants to Voluntary Bodies,1625 Independent People,15167.00, 30-Apr-2021
6,Revenue,CAHD,CSC - Care Leavers Independent Living,Adults - Family Support,1625 Independent People,605.54, 01-Apr-2021
7,Revenue,CAHD,South - Commissioned Services,Permanent Residential,2Nd Floor Building,4223.07, 06-Apr-2021
8,Revenue,CAHD,South - Commissioned Services,Permanent Residential,2Nd Floor Building,1407.69, 06-Apr-2021
9,Revenue,CAHD,South - Commissioned Services,Permanent Residential,2Nd Floor Building,2104.59, 06-Apr-2021
10,Revenue,CAHD,South - Commissioned Services,Permanent Residential,2Nd Floor Building,701.53, 06-Apr-2021
11,Revenue,CAHD,Central - Commissioned Services,Other Small Contracts,3 Trees Community Support Ltd,7355.40, 08-Apr-2021
12,Revenue,CAHD,Central - Commissioned Services,Supported Living,3 Trees Community Support Ltd,2937.57, 08-Apr-2021
13,Revenue,CAHD,Central - Commissioned Services,Other Small Contracts,3 Trees Community Support Ltd,7486.37, 14-Apr-2021
14,Revenue,CAHD,Central - Commissioned Services,Supported Living,3 Trees Community Support Ltd,2938.64, 14-Apr-2021
15,Revenue,CAHD,Central - Commissioned Services,Other Small Contracts,3 Trees Community Support Ltd,7366.37, 23-Apr-2021
16,Revenue,CAHD,Central - Commissioned Services,Supported Living,3 Trees Community Support Ltd,2936.16, 23-Apr-2021
17,Revenue,CAHD,Central - Commissioned Services,Other Small Contracts,3 Trees Community Support Ltd,7668.61, 26-Apr-2021
18,Revenue,CAHD,Central - Commissioned Services,Supported Living,3 Trees Community Support Ltd,3002.15, 26-Apr-2021
19,Revenue,CAHD,Central - Commissioned Services,Other Small Contracts,3 Trees Community Support Ltd,576.00, 08-Apr-2021
20,Revenue,CAHD,South - Commissioned Services,Permanent Nursing,3Rd Floor  The Aspect,2695.41, 06-Apr-2021
21,Revenue,CAHD,South - Commissioned Services,Permanent Nursing,3Rd Floor  The Aspect,898.47, 06-Apr-2021
22,Revenue,CAHD,North - Community based support,Permanent Nursing,3Rd Floor  The Aspect,2426.04, 06-Apr-2021
23,Revenue,CAHD,North - Community based support,Permanent Nursing,3Rd Floor  The Aspect,808.68, 06-Apr-2021
24,Revenue,CAHD,Central - Commissioned Services,Permanent Residential,5Th Floor Harlech Court,11441.19, 06-Apr-2021
25,Revenue,CAHD,Central - Commissioned Services,Permanent Residential,5Th Floor Harlech Court,3813.73, 06-Apr-2021
26,Revenue,CAHD,18-25 Year Olds,Permanent Residential,5Th Floor Harlech Court,9760.35, 06-Apr-2021
27,Revenue,CAHD,18-25 Year Olds,Respite Planned - Residential,5Th Floor Harlech Court,19407.12, 06-Apr-2021
28,Revenue,CAHD,South - Commissioned Services,Permanent Residential,5Th Floor Harlech Court,12750.36, 06-Apr-2021
29,Revenue,CAHD,South - Commissioned Services,Permanent Residential,5Th Floor Harlech Court,4347.87, 06-Apr-2021
30,Revenue,CAHD,South - Commissioned Services,Permanent Residential,5Th Floor Harlech Court,7970.94, 06-Apr-2021
31,Revenue,CAHD,South - Commissioned Services,Permanent Residential,5Th Floor Harlech Court,2718.09, 06-Apr-2021
32,Revenue,CAHD,S28A cases,Permanent Residential,5Th Floor Harlech Court,8342.07, 06-Apr-2021
33,Revenue,CAHD,S28A cases,Permanent Residential,5Th Floor Harlech Court,2844.65, 06-Apr-2021
34,Revenue,CAHD,South - Commissioned Services,Permanent Residential,5Th Floor Harlech Court,8748.84, 06-Apr-2021
35,Revenue,CAHD,South - Commissioned Services,Permanent Residential,5Th Floor Harlech Court,2983.35, 06-Apr-2021
36,Revenue,CAHD,Covid  - Workforce capacity,Grants to Voluntary Bodies,5Th Floor Harlech Court,2794.93, 08-Apr-2021
37,Revenue,CAHD,North - Community based support,Permanent Residential,5Th Floor Harlech Court,9373.92, 06-Apr-2021
38,Revenue,CAHD,North - Community based support,Permanent Residential,5Th Floor Harlech Court,3124.64, 06-Apr-2021
39,Revenue,CAHD,North - Community based support,Permanent Residential,5Th Floor Harlech Court,7902.93, 06-Apr-2021
40,Revenue,CAHD,North - Community based support,Permanent Residential,5Th Floor Harlech Court,2634.31, 06-Apr-2021
41,Revenue,CAHD,North - Community based support,Permanent Residential,5Th Floor Harlech Court,6803.34, 06-Apr-2021
42,Revenue,CAHD,North - Community based support,Permanent Residential,5Th Floor Harlech Court,2267.78, 06-Apr-2021
43,Revenue,CAHD,CSC - Special Guardianship Orders,Special Payments,Individual,744.00, 30-Apr-2021
44,Revenue,CAHD,18-25 Year Olds,Day Care / Social Activities,A+bility Ltd,1084.00, 19-Apr-2021
45,Revenue,CAHD,EARLY YEARS DISABILITY  ACCES FUND,Preventative Assistance,Abacus Pre-School,1667.00, 01-Apr-2021
46,Revenue,CAHD,Early Years Inclusion Fund,Other Public Bodies,Abacus Pre-School,635.00, 01-Apr-2021
47,Revenue,CAHD,South - Commissioned Services,Permanent Nursing,Acacia House,2247.00, 06-Apr-2021
48,Revenue,CAHD,South - Commissioned Services,Permanent Nursing,Acacia House,749.00, 06-Apr-2021
49,Revenue,CAHD,CSC - Residential Placements,Permanent Residential,Acorn Care & Education Ltd,3840.00, 16-Apr-2021
50,Revenue,CAHD,Jointly Funded H&SC Packages,Permanent Residential,Acorn Care Providers,1733.19, 06-Apr-2021
51,Revenue,CAHD,Section 117 Placements MH Younger,Permanent Residential,Acorn Care Providers,4110.96, 06-Apr-2021
52,Revenue,CAHD,Jointly Funded H&SC Packages,Permanent Residential,Acorn Care Providers,591.02, 06-Apr-2021
53,Revenue,CAHD,Section 117 Placements MH Younger,Permanent Residential,Acorn Care Providers,1401.84, 06-Apr-2021
54,Revenue,CAHD,North - S117,Permanent Residential,Acorn Care Providers,2983.50, 06-Apr-2021
55,Revenue,CAHD,Jointly Funded H&SC Packages,Permanent Residential,Acorn Care Providers,1606.50, 06-Apr-2021
56,Revenue,CAHD,North - S117,Permanent Residential,Acorn Care Providers,1017.37, 06-Apr-2021
57,Revenue,CAHD,Jointly Funded H&SC Packages,Permanent Residential,Acorn Care Providers,547.82, 06-Apr-2021
58,Revenue,CAHD,MH Purchasing - Younger,Permanent Residential,Acorn Care Providers,4786.53, 06-Apr-2021
59,Revenue,CAHD,Jointly Funded H&SC Packages,Permanent Residential,Acorn Care Providers,2577.36, 06-Apr-2021
60,Revenue,CAHD,MH Purchasing - Younger,Permanent Residential,Acorn Care Providers,1632.21, 06-Apr-2021
61,Revenue,CAHD,Jointly Funded H&SC Packages,Permanent Residential,Acorn Care Providers,878.88, 06-Apr-2021
62,Revenue,CAHD,MH Purchasing - Younger,Permanent Residential,Acorn Care Providers,4700.16, 06-Apr-2021
63,Revenue,CAHD,MH Purchasing - Younger,Permanent Residential,Acorn Care Providers,1602.75, 06-Apr-2021
64,Revenue,CAHD,Training - Adult Services,Training Expenses,Acorn Health & Safety Limited,481.00, 01-Apr-2021
65,Revenue,CAHD,Training - Adult Services,Training Expenses,Acorn Health & Safety Limited,477.00, 15-Apr-2021
66,Revenue,CAHD,Training - Adult Services,Training Expenses,Acorn Health & Safety Limited,477.00, 15-Apr-2021
67,Revenue,CAHD,Training - Adult Services,Training Expenses,Acorn Health & Safety Limited,720.00, 21-Apr-2021
68,Revenue,CAHD,CSC - Agency Fostering,Foster Parent Allowances,Action for Children,3897.01, 21-Apr-2021
69,Revenue,CAHD,18-25 Year Olds,Permanent Residential,Action on Hearing Loss,3818.31, 06-Apr-2021
70,Revenue,CAHD,18-25 Year Olds,Permanent Residential,Action on Hearing Loss,1272.77, 06-Apr-2021
71,Revenue,CAHD,North - Community based support,Respite Emergency - Residential,Administration And Revenue Centre,1948.00, 06-Apr-2021
72,Revenue,CAHD,North - Community based support,Respite Planned - Residential,Administration And Revenue Centre,6650.00, 06-Apr-2021
73,Revenue,CAHD,North - Community based support,Respite Planned - Residential,Administration And Revenue Centre,2850.00, 06-Apr-2021
74,Revenue,CAHD,South - Commissioned Services,Respite Emergency - Residential,Administration And Revenue Centre,2357.14, 06-Apr-2021
75,Revenue,CAHD,South - Commissioned Services,Respite Emergency - Residential,Administration And Revenue Centre,942.86, 06-Apr-2021
76,Revenue,CAHD,South - Commissioned Services,Respite Emergency - Residential,Administration And Revenue Centre,3182.14, 06-Apr-2021
77,Revenue,CAHD,South - Commissioned Services,Permanent Nursing,Administration And Revenue Centre,1834.47, 06-Apr-2021
78,Revenue,CAHD,South - Commissioned Services,Permanent Nursing,Administration And Revenue Centre,625.55, 06-Apr-2021
79,Revenue,CAHD,South - Commissioned Services,Permanent Nursing,Administration And Revenue Centre,1834.47, 06-Apr-2021
80,Revenue,CAHD,South - Commissioned Services,Permanent Nursing,Administration And Revenue Centre,625.55, 06-Apr-2021
81,Revenue,CAHD,South - Commissioned Services,Permanent Residential,Administration And Revenue Centre,1883.85, 06-Apr-2021
82,Revenue,CAHD,South - Commissioned Services,Permanent Residential,Administration And Revenue Centre,642.39, 06-Apr-2021
83,Revenue,CAHD,South - Commissioned Services,Permanent Nursing,Administration And Revenue Centre,2212.20, 06-Apr-2021
84,Revenue,CAHD,South - Commissioned Services,Permanent Nursing,Administration And Revenue Centre,754.36, 06-Apr-2021
85,Revenue,CAHD,South - Commissioned Services,Permanent Residential,Administration And Revenue Centre,2524.50, 06-Apr-2021
86,Revenue,CAHD,South - Commissioned Services,Permanent Residential,Administration And Revenue Centre,841.50, 06-Apr-2021
87,Revenue,CAHD,South - Commissioned Services,Permanent Nursing,Administration And Revenue Centre,2193.42, 06-Apr-2021
88,Revenue,CAHD,South - Commissioned Services,Permanent Nursing,Administration And Revenue Centre,747.96, 06-Apr-2021
89,Revenue,CAHD,South - Commissioned Services,Permanent Residential,Administration And Revenue Centre,2400.00, 06-Apr-2021
90,Revenue,CAHD,South - Commissioned Services,Permanent Residential,Administration And Revenue Centre,815.99, 06-Apr-2021
91,Revenue,CAHD,South - Commissioned Services,Permanent Residential,Administration And Revenue Centre,2418.00, 06-Apr-2021
92,Revenue,CAHD,South - Commissioned Services,Permanent Residential,Administration And Revenue Centre,815.99, 06-Apr-2021
93,Revenue,CAHD,South Glos Users in South Glos Homes,Permanent Nursing,Administration And Revenue Centre,2890.17, 06-Apr-2021
94,Revenue,CAHD,South Glos Users in South Glos Homes,Permanent Nursing,Administration And Revenue Centre,2112.20, 06-Apr-2021
95,Revenue,CAHD,South - Commissioned Services,Permanent Nursing,Administration And Revenue Centre,1883.85, 06-Apr-2021
96,Revenue,CAHD,South - Commissioned Services,Permanent Nursing,Administration And Revenue Centre,642.39, 06-Apr-2021
97,Revenue,CAHD,South - Commissioned Services,Permanent Nursing,Administration And Revenue Centre,1834.47, 06-Apr-2021
98,Revenue,CAHD,South - Commissioned Services,Permanent Nursing,Administration And Revenue Centre,625.55, 06-Apr-2021
99,Revenue,CAHD,South - Commissioned Services,Permanent Nursing,Administration And Revenue Centre,1834.47, 06-Apr-2021
100,Revenue,CAHD,South - Commissioned Services,Permanent Nursing,Administration And Revenue Centre,625.55, 06-Apr-2021
101,Revenue,CAHD,South - Commissioned Services,Permanent Residential,Administration And Revenue Centre,2392.92, 06-Apr-2021
102,Revenue,CAHD,South - Commissioned Services,Permanent Residential,Administration And Revenue Centre,815.99, 06-Apr-2021
103,Revenue,CAHD,South - Commissioned Services,Permanent Nursing,Administration And Revenue Centre,1834.47, 06-Apr-2021
104,Revenue,CAHD,South - Commissioned Services,Permanent Nursing,Administration And Revenue Centre,625.55, 06-Apr-2021
105,Revenue,CAHD,South - Commissioned Services,Respite Emergency - Residential,Administration And Revenue Centre,2394.00, 06-Apr-2021
106,Revenue,CAHD,South - Commissioned Services,Respite Emergency - Residential,Administration And Revenue Centre,2166.00, 06-Apr-2021
107,Revenue,CAHD,South - Commissioned Services,Permanent Residential,Administration And Revenue Centre,2212.20, 06-Apr-2021
108,Revenue,CAHD,South - Commissioned Services,Permanent Residential,Administration And Revenue Centre,754.36, 06-Apr-2021
109,Revenue,CAHD,Central - Commissioned Services,Permanent Nursing,Administration And Revenue Centre,2550.00, 06-Apr-2021
110,Revenue,CAHD,Central - Commissioned Services,Permanent Nursing,Administration And Revenue Centre,850.00, 06-Apr-2021
111,Revenue,CAHD,South - Commissioned Services,Other Small Contracts,Advantedge Commercial Finance Limited,523.60, 15-Apr-2021
112,Revenue,CAHD,South - Commissioned Services,Other Small Contracts,Advantedge Commercial Finance Limited,558.90, 30-Apr-2021
113,Revenue,CAHD,South - Commissioned Services,Other Small Contracts,Advantedge Commercial Finance Limited,544.32, 16-Apr-2021
114,Revenue,CAHD,South - Commissioned Services,Other Small Contracts,Advantedge Commercial Finance Limited,2118.96, 16-Apr-2021
115,Revenue,CAHD,South - Commissioned Services,Other Small Contracts,Advantedge Commercial Finance Limited,1351.08, 19-Apr-2021
116,Revenue,CAHD,South - Commissioned Services,Other Small Contracts,Advantedge Commercial Finance Limited,1224.72, 08-Apr-2021
117,Revenue,CAHD,South - Commissioned Services,Other Small Contracts,Advantedge Commercial Finance Limited,680.40, 08-Apr-2021
118,Revenue,CAHD,South - Commissioned Services,Other Small Contracts,Advantedge Commercial Finance Limited,2235.60, 08-Apr-2021
119,Revenue,CAHD,South - Commissioned Services,Other Small Contracts,Advantedge Commercial Finance Limited,972.00, 08-Apr-2021
120,Revenue,CAHD,South - Commissioned Services,Other Small Contracts,Advantedge Commercial Finance Limited,758.16, 13-Apr-2021
121,Revenue,CAHD,South - Commissioned Services,Other Small Contracts,Advantedge Commercial Finance Limited,554.04, 30-Apr-2021
122,Revenue,CAHD,South - Commissioned Services,Other Small Contracts,Advantedge Commercial Finance Limited,835.92, 08-Apr-2021
123,Revenue,CAHD,South - Commissioned Services,Other Small Contracts,Advantedge Commercial Finance Limited,1360.80, 08-Apr-2021
124,Revenue,CAHD,South - Commissioned Services,Other Small Contracts,Advantedge Commercial Finance Limited,1215.00, 14-Apr-2021
125,Revenue,CAHD,South - Commissioned Services,Other Small Contracts,Advantedge Commercial Finance Limited,1088.64, 14-Apr-2021
126,Revenue,CAHD,South - Commissioned Services,Other Small Contracts,Advantedge Commercial Finance Limited,680.40, 14-Apr-2021
127,Revenue,CAHD,South - Commissioned Services,Other Small Contracts,Advantedge Commercial Finance Limited,622.08, 14-Apr-2021
128,Revenue,CAHD,South - Commissioned Services,Other Small Contracts,Advantedge Commercial Finance Limited,972.00, 14-Apr-2021
129,Revenue,CAHD,South - Commissioned Services,Other Small Contracts,Advantedge Commercial Finance Limited,753.30, 14-Apr-2021
130,Revenue,CAHD,South - Commissioned Services,Other Small Contracts,Advantedge Commercial Finance Limited,544.32, 14-Apr-2021
131,Revenue,CAHD,South - Commissioned Services,Other Small Contracts,Advantedge Commercial Finance Limited,826.20, 14-Apr-2021
132,Revenue,CAHD,South - Commissioned Services,Other Small Contracts,Advantedge Commercial Finance Limited,1355.94, 14-Apr-2021
133,Revenue,CAHD,Covid 19- Spend on behalf of NHS,Project Funding,Advantedge Commercial Finance Limited,640.00, 23-Apr-2021
134,Revenue,CAHD,Covid  - Workforce capacity,Grants to Voluntary Bodies,Advantedge Commercial Finance Limited,1357.54, 06-Apr-2021
135,Revenue,CAHD,Mental Health and Emotional Wellbeing,Grants to Voluntary Bodies,Age UK South Gloucestershire,13725.00, 28-Apr-2021
136,Revenue,CAHD,Community Support - North,Preventative Assistance,Agincare Live-in South West Ltd,4739.84, 16-Apr-2021
137,Revenue,CAHD,South - Commissioned Services,Other Small Contracts,Agincare UK Limited,956.34, 23-Apr-2021
138,Revenue,CAHD,Younger MH non-res purchasing,Other Small Contracts,Agincare UK Limited,106.26, 23-Apr-2021
139,Revenue,CAHD,South - Commissioned Services,Other Small Contracts,Agincare UK Limited,811.44, 23-Apr-2021
140,Revenue,CAHD,Younger MH non-res purchasing,Other Small Contracts,Agincare UK Limited,154.56, 23-Apr-2021
141,Revenue,CAHD,Extra Care Housing,Private & Voluntary Home Care,Agincare UK Limited,24448.84, 01-Apr-2021
142,Revenue,CAHD,Extra Care Housing,Private & Voluntary Home Care,Agincare UK Limited,24448.84, 30-Apr-2021
143,Revenue,CAHD,Extra Care Housing,Private & Voluntary Home Care,Agincare UK Limited,11763.39, 01-Apr-2021
144,Revenue,CAHD,Extra Care Housing,Private & Voluntary Home Care,Agincare UK Limited,11763.39, 30-Apr-2021
145,Revenue,CAHD,Extra Care Housing,Private & Voluntary Home Care,Agincare UK Limited,29078.70, 01-Apr-2021
146,Revenue,CAHD,Extra Care Housing,Private & Voluntary Home Care,Agincare UK Limited,1282.96, 27-Apr-2021
147,Revenue,CAHD,Prison Assessments & Costs,Other Supplies & Services,Agincare UK Limited,2580.00, 22-Apr-2021
148,Revenue,CAHD,Prison Assessments & Costs,Other Supplies & Services,Agincare UK Limited,2580.00, 09-Apr-2021
149,Revenue,CAHD,Statemented Support Payments to OLAs,Other L.A.s - General,Air Balloon Hill Primary School,801.92, 21-Apr-2021
150,Revenue,CAHD,CSC - Vinney Green Secure Unit,Building Improvements,Individual,600.00, 13-Apr-2021
151,Revenue,CAHD,CSC - Adoption Support Fund,Post Adoption,Individual,1708.50, 09-Apr-2021
152,Revenue,CAHD,Covid 19 -Adult Social Care,Other Small Contracts,AliMo Care Ltd,9.56, 14-Apr-2021
153,Revenue,CAHD,South - Commissioned Services,Other Small Contracts,AliMo Care Ltd,626.18, 14-Apr-2021
154,Revenue,CAHD,North - Community based support,Other Small Contracts,AliMo Care Ltd,124.28, 14-Apr-2021
155,Revenue,CAHD,Covid 19 -Adult Social Care,Other Small Contracts,AliMo Care Ltd,9.56, 14-Apr-2021
156,Revenue,CAHD,South - Commissioned Services,Other Small Contracts,AliMo Care Ltd,673.98, 14-Apr-2021
157,Revenue,CAHD,North - Community based support,Other Small Contracts,AliMo Care Ltd,119.50, 14-Apr-2021
158,Revenue,CAHD,Covid 19 -Adult Social Care,Other Small Contracts,AliMo Care Ltd,9.56, 23-Apr-2021
159,Revenue,CAHD,South - Commissioned Services,Other Small Contracts,AliMo Care Ltd,645.30, 23-Apr-2021
160,Revenue,CAHD,North - Community based support,Other Small Contracts,AliMo Care Ltd,124.28, 23-Apr-2021
161,Revenue,CAHD,Covid 19 -Adult Social Care,Other Small Contracts,AliMo Care Ltd,9.56, 23-Apr-2021
162,Revenue,CAHD,South - Commissioned Services,Other Small Contracts,AliMo Care Ltd,640.52, 23-Apr-2021
163,Revenue,CAHD,North - Community based support,Other Small Contracts,AliMo Care Ltd,105.16, 23-Apr-2021
164,Revenue,CAHD,Covid 19 -Adult Social Care,Other Small Contracts,AliMo Care Ltd,9.56, 26-Apr-2021
165,Revenue,CAHD,South - Commissioned Services,Other Small Contracts,AliMo Care Ltd,616.62, 26-Apr-2021
166,Revenue,CAHD,North - Community based support,Other Small Contracts,AliMo Care Ltd,114.72, 26-Apr-2021
167,Revenue,CAHD,Covid Winter Grant Funding,Other Supplies & Services,Allpay Limited - Trust Fund,15000.00, 14-Apr-2021
168,Revenue,CAHD,Covid Winter Grant Funding,Other Supplies & Services,Allpay Limited - Trust Fund,40000.00, 27-Apr-2021
169,Revenue,CAHD,Central - Commissioned Services,Permanent Residential,Alvony House Residential Care Home,2250.00, 06-Apr-2021
170,Revenue,CAHD,Central - Commissioned Services,Permanent Residential,Alvony House Residential Care Home,750.00, 06-Apr-2021
171,Revenue,CAHD,Mental Health and Emotional Wellbeing,Grants to Voluntary Bodies,Alzheimers Society,11142.75, 28-Apr-2021
172,Revenue,CAHD,CSC - Residential Placements,Permanent Residential,Amberleigh Care Ltd,16877.14, 29-Apr-2021
173,Revenue,CAHD,CSC - Residential Placements,Permanent Residential,Amberleigh Care Ltd,16877.14, 29-Apr-2021
174,Revenue,CAHD,CSC - Residential Placements,Permanent Residential,Ambito Care and Education,19920.87, 14-Apr-2021
175,Revenue,CAHD,CSC - Residential Placements,Permanent Residential,Ambito Care and Education,19930.88, 14-Apr-2021
176,Revenue,CAHD,Early Years High Needs Support,Other Private Contractors,Ambourne House Day Nursery,616.50, 21-Apr-2021
177,Revenue,CAHD,North - Community based support,Permanent Nursing,Amerind Grove Nursing Home,2029.74, 06-Apr-2021
178,Revenue,CAHD,North - Community based support,Permanent Nursing,Amerind Grove Nursing Home,676.58, 06-Apr-2021
179,Revenue,CAHD,CSC - Agency Fostering,Foster Parent Allowances,Amicus Foster Care Ltd,4879.00, 21-Apr-2021
180,Revenue,CAHD,CSC - Agency Fostering,Foster Parent Allowances,Amicus Foster Care Ltd,4796.44, 21-Apr-2021
181,Revenue,CAHD,Supporting People Programme,Grants to Voluntary Bodies,Anchor Hanover Group,1043.00, 08-Apr-2021
182,Revenue,CAHD,Supporting People Programme,Grants to Voluntary Bodies,Anchor Hanover Group,1039.00, 30-Apr-2021
183,Revenue,CAHD,Supporting People Programme,Grants to Voluntary Bodies,Anchor Hanover Group,855.00, 08-Apr-2021
184,Revenue,CAHD,Supporting People Programme,Grants to Voluntary Bodies,Anchor Hanover Group,847.00, 30-Apr-2021
185,Revenue,CAHD,Covid 19- Spend on behalf of NHS,Project Funding,Angel Care Support Limited,640.00, 23-Apr-2021
186,Revenue,CAHD,Covid  - Workforce capacity,Grants to Voluntary Bodies,Angel Care Support Limited,1277.68, 01-Apr-2021
187,Revenue,CAHD,EARLY YEARS DISABILITY  ACCES FUND,Preventative Assistance,Apple Tree Pre-School,1469.00, 08-Apr-2021
188,Revenue,CAHD,Independent Special Placements - Pre 16,Other Private Contractors,Appleford School,7120.00, 30-Apr-2021
189,Revenue,CAHD,Younger MH non-res purchasing,Supported Living,Archcare Rehab Limited,1468.05, 06-Apr-2021
190,Revenue,CAHD,Younger MH non-res purchasing,Supported Living,Archcare Rehab Limited,500.61, 06-Apr-2021
191,Revenue,CAHD,Covid 19- Spend on behalf of NHS,Respite Planned - Nursing,Argentum Lodge,4114.29, 06-Apr-2021
192,Revenue,CAHD,North - Community based support,Permanent Nursing,Argentum Lodge,3000.00, 06-Apr-2021
193,Revenue,CAHD,North - Community based support,Permanent Nursing,Argentum Lodge,1000.00, 06-Apr-2021
194,Revenue,CAHD,CSC - Vinney Green Secure Unit,Educational Materials,Ascentis,600.00, 30-Apr-2021
195,Revenue,CAHD,South - Commissioned Services,Permanent Residential,Ash View House,4147.08, 06-Apr-2021
196,Revenue,CAHD,Jointly Funded H&SC Packages,Permanent Residential,Ash View House,850.23, 06-Apr-2021
197,Revenue,CAHD,South - Commissioned Services,Permanent Residential,Ash View House,1414.15, 06-Apr-2021
198,Revenue,CAHD,S117 Placements PCT,Permanent Residential,Ash View House,5780.58, 06-Apr-2021
199,Revenue,CAHD,S117 Placements PCT,Permanent Residential,Ash View House,1971.18, 06-Apr-2021
200,Revenue,CAHD,North - Community based support,Permanent Residential,Ash View House,5324.64, 06-Apr-2021
201,Revenue,CAHD,North - Community based support,Permanent Residential,Ash View House,1774.88, 06-Apr-2021
202,Revenue,CAHD,North - Community based support,Permanent Residential,Ash View House,5340.00, 06-Apr-2021
203,Revenue,CAHD,North - Community based support,Permanent Residential,Ash View House,1780.00, 06-Apr-2021
204,Revenue,CAHD,Section 117 Placements MH Younger,Permanent Residential,Ash View House,3766.95, 06-Apr-2021
205,Revenue,CAHD,Jointly Funded H&SC Packages,Permanent Residential,Ash View House,1614.45, 06-Apr-2021
206,Revenue,CAHD,Section 117 Placements MH Younger,Permanent Residential,Ash View House,1284.53, 06-Apr-2021
207,Revenue,CAHD,Jointly Funded H&SC Packages,Permanent Residential,Ash View House,550.53, 06-Apr-2021
208,Revenue,CAHD,South - S117,Permanent Residential,Ash View House,5119.98, 06-Apr-2021
209,Revenue,CAHD,South - S117,Permanent Residential,Ash View House,1745.91, 06-Apr-2021
210,Revenue,CAHD,South - Commissioned Services,Permanent Residential,Ash View House,5060.88, 06-Apr-2021
211,Revenue,CAHD,South - Commissioned Services,Permanent Residential,Ash View House,1725.76, 06-Apr-2021
212,Revenue,CAHD,Supporting People Programme,Grants to Voluntary Bodies,Aspects and Milestones Trust,3448.00, 08-Apr-2021
213,Revenue,CAHD,Supporting People Programme,Grants to Voluntary Bodies,Aspects and Milestones Trust,1730.00, 08-Apr-2021
214,Revenue,CAHD,Supporting People Programme,Grants to Voluntary Bodies,Aspects and Milestones Trust,3441.00, 30-Apr-2021
215,Revenue,CAHD,Supporting People Programme,Grants to Voluntary Bodies,Aspects and Milestones Trust,1725.00, 30-Apr-2021
216,Revenue,CAHD,18-25 Year Olds,Other Small Contracts,Aspirations,1532.20, 23-Apr-2021
217,Revenue,CAHD,18-25 Year Olds,Supported Living,Aspirations,592.72, 23-Apr-2021
218,Revenue,CAHD,Central - Commissioned Services,Other Small Contracts,Aspirations,96.00, 23-Apr-2021
219,Revenue,CAHD,Central - Commissioned Services,Supported Living,Aspirations,114.72, 23-Apr-2021
220,Revenue,CAHD,South - Commissioned Services,Day Care / Social Activities,Aspirations,1457.90, 23-Apr-2021
221,Revenue,CAHD,South - Commissioned Services,Other Small Contracts,Aspirations,9229.17, 23-Apr-2021
222,Revenue,CAHD,South - Commissioned Services,Supported Living,Aspirations,21096.52, 23-Apr-2021
223,Revenue,CAHD,North - Community based support,Supported Living,Aspirations,3426.40, 23-Apr-2021
224,Revenue,CAHD,18-25 Year Olds,Other Small Contracts,Aspirations,1570.44, 23-Apr-2021
225,Revenue,CAHD,18-25 Year Olds,Supported Living,Aspirations,764.80, 23-Apr-2021
226,Revenue,CAHD,Central - Commissioned Services,Other Small Contracts,Aspirations,216.00, 23-Apr-2021
227,Revenue,CAHD,South - Commissioned Services,Day Care / Social Activities,Aspirations,1448.34, 23-Apr-2021
228,Revenue,CAHD,South - Commissioned Services,Other Small Contracts,Aspirations,7953.19, 23-Apr-2021
229,Revenue,CAHD,South - Commissioned Services,Supported Living,Aspirations,21533.95, 23-Apr-2021
230,Revenue,CAHD,North - Community based support,Supported Living,Aspirations,3409.58, 23-Apr-2021
231,Revenue,CAHD,18-25 Year Olds,Other Small Contracts,Aspirations,1629.96, 28-Apr-2021
232,Revenue,CAHD,18-25 Year Olds,Supported Living,Aspirations,831.30, 28-Apr-2021
233,Revenue,CAHD,Central - Commissioned Services,Other Small Contracts,Aspirations,96.00, 28-Apr-2021
234,Revenue,CAHD,South - Commissioned Services,Day Care / Social Activities,Aspirations,1506.12, 28-Apr-2021
235,Revenue,CAHD,South - Commissioned Services,Other Small Contracts,Aspirations,7924.49, 28-Apr-2021
236,Revenue,CAHD,South - Commissioned Services,Supported Living,Aspirations,21735.61, 28-Apr-2021
237,Revenue,CAHD,North - Community based support,Supported Living,Aspirations,3432.12, 28-Apr-2021
238,Revenue,CAHD,Covid - ASC - Infection Control,Grants to Voluntary Bodies,Aspirations Support Bristol Limited,766.33, 09-Apr-2021
239,Revenue,CAHD,CSC - Care Leavers Independent Living,Adults - Family Support,Aspirations Support Bristol Limited,15419.68, 28-Apr-2021
240,Revenue,CAHD,One You South Glos,Other Supplies & Services,Aspire Training Associates Limited,520.00, 19-Apr-2021
241,Revenue,CAHD,HQ Office & Communications (ICT),Membership Fees,Association of Directors of Childrens Services Ltd,2686.00, 08-Apr-2021
242,Revenue,CAHD,South - Commissioned Services,Adults - Family Support,Ategi Limited,17042.85, 28-Apr-2021
243,Revenue,CAHD,Statemented Support Academies,Other Public Bodies,Athelstan Trust,825.30, 30-Apr-2021
244,Revenue,CAHD,Statemented Support Academies,Other Public Bodies,Athelstan Trust,1101.42, 30-Apr-2021
245,Revenue,CAHD,Statemented Support Academies,Other Public Bodies,Athelstan Trust,1367.64, 30-Apr-2021
246,Revenue,CAHD,Statemented Support Academies,Other Public Bodies,Athelstan Trust,1436.25, 30-Apr-2021
247,Revenue,CAHD,Statemented Support Academies,Other Public Bodies,Athelstan Trust,588.75, 30-Apr-2021
248,Revenue,CAHD,Statemented Support Academies,Other Public Bodies,Athelstan Trust,1155.42, 30-Apr-2021
249,Revenue,CAHD,Statemented Support Academies,Other Public Bodies,Athelstan Trust,1556.28, 30-Apr-2021
250,Revenue,CAHD,Statemented Support Academies,Other Public Bodies,Athelstan Trust,926.58, 30-Apr-2021
251,Revenue,CAHD,Statemented Support Academies,Other Public Bodies,Athelstan Trust,624.87, 30-Apr-2021
252,Revenue,CAHD,Academy Resource Base Funding,Other Public Bodies,Athelstan Trust,2465.76, 26-Apr-2021
253,Revenue,CAHD,Academy Resource Base Funding,Other Public Bodies,Athelstan Trust,2432.78, 26-Apr-2021
254,Revenue,CAHD,Academy Resource Base Funding,Other Public Bodies,Athelstan Trust,2432.78, 26-Apr-2021
255,Revenue,CAHD,Academy Resource Base Funding,Other Public Bodies,Athelstan Trust,2432.78, 26-Apr-2021
256,Revenue,CAHD,Academy Resource Base Funding,Other Public Bodies,Athelstan Trust,2432.78, 26-Apr-2021
257,Revenue,CAHD,Academy Resource Base Funding,Other Public Bodies,Athelstan Trust,2432.78, 26-Apr-2021
258,Revenue,CAHD,Academy Resource Base Funding,Other Public Bodies,Athelstan Trust,2432.78, 26-Apr-2021
259,Revenue,CAHD,Academy Resource Base Funding,Other Public Bodies,Athelstan Trust,2432.78, 26-Apr-2021
260,Revenue,CAHD,Academy Resource Base Funding,Other Public Bodies,Athelstan Trust,2432.78, 26-Apr-2021
261,Revenue,CAHD,Academy Resource Base Funding,Other Public Bodies,Athelstan Trust,2432.78, 26-Apr-2021
262,Revenue,CAHD,Academy Resource Base Funding,Other Public Bodies,Athelstan Trust,2432.78, 26-Apr-2021
263,Revenue,CAHD,Academy Resource Base Funding,Other Public Bodies,Athelstan Trust,2432.78, 26-Apr-2021
264,Revenue,CAHD,Academy Resource Base Funding,Other Public Bodies,Athelstan Trust,2432.78, 26-Apr-2021
265,Revenue,CAHD,Academy Resource Base Funding,Other Public Bodies,Athelstan Trust,2432.78, 26-Apr-2021
266,Revenue,CAHD,Independent Special Placements - Pre 16,Other Private Contractors,Aurora Hedgeway School,24091.00, 12-Apr-2021
267,Revenue,CAHD,Independent Special Placements - Pre 16,Other Private Contractors,Aurora Hedgeway School,24947.80, 15-Apr-2021
268,Revenue,CAHD,Independent Special Placements - Pre 16,Other Private Contractors,Aurora Hedgeway School,15457.42, 12-Apr-2021
269,Revenue,CAHD,Independent Special Placements - Pre 16,Other Private Contractors,Aurora Hedgeway School,15457.42, 12-Apr-2021
270,Revenue,CAHD,Independent Special Placements - Post 16,Other Private Contractors,Aurora Hedgeway School,15457.42, 12-Apr-2021
271,Revenue,CAHD,Independent Special Placements - Post 16,Other Private Contractors,Aurora Hedgeway School,17258.66, 12-Apr-2021
272,Revenue,CAHD,Independent Special Placements - Pre 16,Other Private Contractors,Aurora Hedgeway School,15457.42, 12-Apr-2021
273,Revenue,CAHD,Independent Special Placements - Pre 16,Other Private Contractors,Aurora Hedgeway School,21367.64, 12-Apr-2021
274,Revenue,CAHD,Independent Special Placements - Pre 16,Other Private Contractors,Aurora Hedgeway School,15457.42, 12-Apr-2021
275,Revenue,CAHD,Independent Special Placements - Pre 16,Other Private Contractors,Aurora Hedgeway School,15457.42, 12-Apr-2021
276,Revenue,CAHD,Independent Special Placements - Pre 16,Other Private Contractors,Aurora Hedgeway School,22705.54, 12-Apr-2021
277,Revenue,CAHD,Independent Special Placements - Post 16,Other Private Contractors,Aurora Hedgeway School,18589.84, 12-Apr-2021
278,Revenue,CAHD,Independent Special Placements - Pre 16,Other Private Contractors,Aurora Hedgeway School,15457.42, 12-Apr-2021
279,Revenue,CAHD,Independent Special Placements - Pre 16,Other Private Contractors,Aurora Hedgeway School,15457.42, 12-Apr-2021
280,Revenue,CAHD,Independent Special Placements - Pre 16,Other Private Contractors,Aurora Hedgeway School,15457.42, 12-Apr-2021
281,Revenue,CAHD,Independent Special Placements - Pre 16,Other Private Contractors,Aurora Hedgeway School,15457.42, 15-Apr-2021
282,Revenue,CAHD,Independent Special Placements - Pre 16,Other Private Contractors,Aurora Hedgeway School,17603.84, 15-Apr-2021
283,Revenue,CAHD,Independent Special Placements - Pre 16,Other Private Contractors,Aurora Hedgeway School,22859.00, 15-Apr-2021
284,Revenue,CAHD,Independent Special Placements - Post 16,Other Private Contractors,Aurora Hedgeway School,17603.84, 15-Apr-2021
285,Revenue,CAHD,Independent Special Placements - Pre 16,Other Private Contractors,Aurora Hedgeway School,15457.42, 15-Apr-2021
286,Revenue,CAHD,Independent Special Placements - Pre 16,Other Private Contractors,Aurora Hedgeway School,18589.84, 15-Apr-2021
287,Revenue,CAHD,South - Commissioned Services,Permanent Residential,Autism Specialised Care Homes,4880.16, 06-Apr-2021
288,Revenue,CAHD,South - Commissioned Services,Permanent Residential,Autism Specialised Care Homes,1626.72, 06-Apr-2021
289,Revenue,CAHD,CSC - YOT Pooled Budget,Other Supplies & Services,Avon & Somerset Police & Crime Commissio,1451.78, 14-Apr-2021
290,Revenue,CAHD,Younger Adult Mental Health,Health Services (Third Party Payments),Avon & Wiltshire Mental Health,14583.00, 08-Apr-2021
291,Revenue,CAHD,South - Commissioned Services,Permanent Nursing,Avon Lodge Care Centre,3256.02, 06-Apr-2021
292,Revenue,CAHD,South - Commissioned Services,Permanent Nursing,Avon Lodge Care Centre,1110.30, 06-Apr-2021
293,Revenue,CAHD,South - Commissioned Services,Permanent Nursing,Avon Lodge Care Centre,54128.99, 06-Apr-2021
294,Revenue,CAHD,South - bed purchasing and direct  payments,Permanent Nursing,Avon Lodge Care Centre,26578.31, 06-Apr-2021
295,Revenue,CAHD,South - Commissioned Services,Fees & Charges Income - General,Avon Lodge Care Centre,1565.85, 06-Apr-2021
296,Revenue,CAHD,South - Commissioned Services,Fees & Charges Income - General,Avon Lodge Care Centre,3314.72, 06-Apr-2021
297,Revenue,CAHD,South - Commissioned Services,Fees & Charges Income - General,Avon Lodge Care Centre,7081.01, 06-Apr-2021
298,Revenue,CAHD,Covid 19- Spend on behalf of NHS,Respite Planned - Nursing,Avon Lodge Care Centre,4400.00, 06-Apr-2021
299,Revenue,CAHD,South - Commissioned Services,Permanent Nursing,Avon Lodge Care Centre,2448.00, 06-Apr-2021
300,Revenue,CAHD,South - Commissioned Services,Permanent Nursing,Avon Lodge Care Centre,834.77, 06-Apr-2021
301,Revenue,CAHD,South - Commissioned Services,Permanent Nursing,Avon Lodge Care Centre,3233.37, 06-Apr-2021
302,Revenue,CAHD,South - Commissioned Services,Permanent Nursing,Avon Lodge Care Centre,1102.58, 06-Apr-2021
303,Revenue,CAHD,South - Commissioned Services,Permanent Nursing,Avon Lodge Care Centre,2595.00, 06-Apr-2021
304,Revenue,CAHD,South - Commissioned Services,Permanent Nursing,Avon Lodge Care Centre,884.90, 06-Apr-2021
305,Revenue,CAHD,South - Commissioned Services,Permanent Nursing,Avon Lodge Care Centre,3260.91, 06-Apr-2021
306,Revenue,CAHD,South - Commissioned Services,Permanent Nursing,Avon Lodge Care Centre,1111.97, 06-Apr-2021
307,Revenue,CAHD,Covid 19- Spend on behalf of NHS,Respite Planned - Nursing,Avon Lodge Care Centre,4400.00, 06-Apr-2021
308,Revenue,CAHD,South - Commissioned Services,Permanent Nursing,Avon Lodge Care Centre,3302.88, 06-Apr-2021
309,Revenue,CAHD,South - Commissioned Services,Permanent Nursing,Avon Lodge Care Centre,1126.28, 06-Apr-2021
310,Revenue,CAHD,South - Commissioned Services,Permanent Nursing,Avon Lodge Care Centre,2850.00, 06-Apr-2021
311,Revenue,CAHD,South - Commissioned Services,Respite Planned - Nursing,Avon Lodge Care Centre,1606.43, 06-Apr-2021
312,Revenue,CAHD,South - Commissioned Services,Permanent Nursing,Avon Lodge Care Centre,971.85, 06-Apr-2021
313,Revenue,CAHD,South - Commissioned Services,Permanent Nursing,Avon Lodge Care Centre,3233.37, 06-Apr-2021
314,Revenue,CAHD,South - Commissioned Services,Permanent Nursing,Avon Lodge Care Centre,1102.58, 06-Apr-2021
315,Revenue,CAHD,South - Commissioned Services,Respite Planned - Nursing,Avon Lodge Care Centre,4750.00, 06-Apr-2021
316,Revenue,CAHD,Central - Commissioned Services,Permanent Nursing,Avon Lodge Care Centre,2913.60, 06-Apr-2021
317,Revenue,CAHD,Central - Commissioned Services,Permanent Nursing,Avon Lodge Care Centre,993.54, 06-Apr-2021
318,Revenue,CAHD,Central - Commissioned Services,Permanent Residential,Avon Lodge Care Centre,2550.00, 06-Apr-2021
319,Revenue,CAHD,Central - Commissioned Services,Permanent Residential,Avon Lodge Care Centre,869.55, 06-Apr-2021
320,Revenue,CAHD,Central - Commissioned Services,Permanent Nursing,Avon Lodge Care Centre,2550.00, 06-Apr-2021
321,Revenue,CAHD,Central - Commissioned Services,Permanent Nursing,Avon Lodge Care Centre,869.55, 06-Apr-2021
322,Revenue,CAHD,South - Commissioned Services,Permanent Nursing,Avon Lodge Care Centre,4614.29, 06-Apr-2021
323,Revenue,CAHD,South - Commissioned Services,Permanent Nursing,Avon Lodge Care Centre,2850.00, 06-Apr-2021
324,Revenue,CAHD,South - Commissioned Services,Permanent Nursing,Avon Lodge Care Centre,971.85, 06-Apr-2021
325,Revenue,CAHD,Covid 19- Spend on behalf of NHS,Respite Planned - Nursing,Avon Lodge Care Centre,4735.68, 06-Apr-2021
326,Revenue,CAHD,Covid 19- Spend on behalf of NHS,Respite Planned - Nursing,Avon Lodge Care Centre,1860.45, 06-Apr-2021
327,Revenue,CAHD,North - Community based support,Permanent Nursing,Avon Lodge Care Centre,2295.00, 06-Apr-2021
328,Revenue,CAHD,North - Community based support,Permanent Nursing,Avon Lodge Care Centre,782.60, 06-Apr-2021
329,Revenue,CAHD,Central - Commissioned Services,Permanent Nursing,Avon Lodge Care Centre,2850.00, 06-Apr-2021
330,Revenue,CAHD,Central - Commissioned Services,Permanent Nursing,Avon Lodge Care Centre,971.85, 06-Apr-2021
331,Revenue,CAHD,North - Community based support,Permanent Residential,Avon Lodge Care Centre,2595.00, 06-Apr-2021
332,Revenue,CAHD,North - Community based support,Permanent Residential,Avon Lodge Care Centre,884.90, 06-Apr-2021
333,Revenue,CAHD,Covid 19- Spend on behalf of NHS,Respite Planned - Residential,Avon Lodge Care Centre,4240.00, 06-Apr-2021
334,Revenue,CAHD,Covid 19- Spend on behalf of NHS,Respite Planned - Residential,Avon Lodge Care Centre,1817.14, 06-Apr-2021
335,Revenue,CAHD,North - Community based support,Respite Emergency - Residential,Avon Lodge Care Centre,950.00, 06-Apr-2021
336,Revenue,CAHD,South - Commissioned Services,Permanent Nursing,Avon Lodge Care Centre,3397.53, 06-Apr-2021
337,Revenue,CAHD,South - Commissioned Services,Permanent Nursing,Avon Lodge Care Centre,1158.56, 06-Apr-2021
338,Revenue,CAHD,South - S117,Permanent Nursing,Avon Lodge Care Centre,2914.11, 06-Apr-2021
339,Revenue,CAHD,South - S117,Permanent Nursing,Avon Lodge Care Centre,993.71, 06-Apr-2021
340,Revenue,CAHD,South - Commissioned Services,Respite Planned - Nursing,Avon Lodge Care Centre,2347.86, 06-Apr-2021
341,Revenue,CAHD,North - Community based support,Permanent Nursing,Avon Lodge Care Centre,6107.14, 06-Apr-2021
342,Revenue,CAHD,North - Community based support,Permanent Nursing,Avon Lodge Care Centre,2850.00, 06-Apr-2021
343,Revenue,CAHD,North - Community based support,Permanent Nursing,Avon Lodge Care Centre,971.85, 06-Apr-2021
344,Revenue,CAHD,South - Commissioned Services,Permanent Residential,Avon Lodge Care Centre,2295.00, 06-Apr-2021
345,Revenue,CAHD,South - Commissioned Services,Permanent Residential,Avon Lodge Care Centre,782.60, 06-Apr-2021
346,Revenue,CAHD,South - Commissioned Services,Permanent Nursing,Avon Lodge Care Centre,2850.00, 06-Apr-2021
347,Revenue,CAHD,South - Commissioned Services,Permanent Nursing,Avon Lodge Care Centre,950.00, 06-Apr-2021
348,Revenue,CAHD,South - Commissioned Services,Permanent Residential,Avon Valley Care Home,3000.00, 06-Apr-2021
349,Revenue,CAHD,South - Commissioned Services,Permanent Residential,Avon Valley Care Home,1023.00, 06-Apr-2021
350,Revenue,CAHD,South - Commissioned Services,Fees & Charges Income - General,Avon Valley Care Home,9909.03, 06-Apr-2021
351,Revenue,CAHD,Central - Commissioned Services,Respite Planned - Residential,Avon Valley Care Home,3714.29, 06-Apr-2021
352,Revenue,CAHD,South - Commissioned Services,Permanent Residential,Avon Valley Care Home,2135.00, 06-Apr-2021
353,Revenue,CAHD,South - Commissioned Services,Permanent Residential,Avon Valley Care Home,12200.00, 06-Apr-2021
354,Revenue,CAHD,South - Commissioned Services,Fees & Charges Income - General,Avon Valley Care Home,1283.77, 06-Apr-2021
355,Revenue,CAHD,South - Commissioned Services,Fees & Charges Income - General,Avon Valley Care Home,3801.93, 06-Apr-2021
356,Revenue,CAHD,South - S117,Permanent Residential,Avon Valley Care Home,3000.00, 06-Apr-2021
357,Revenue,CAHD,South - S117,Permanent Residential,Avon Valley Care Home,2571.43, 06-Apr-2021
358,Revenue,CAHD,South - S117,Permanent Residential,Avon Valley Care Home,1023.00, 06-Apr-2021
359,Revenue,CAHD,South - Commissioned Services,Permanent Residential,Avon Valley Care Home,2970.00, 06-Apr-2021
360,Revenue,CAHD,South - Commissioned Services,Permanent Residential,Avon Valley Care Home,1012.77, 06-Apr-2021
361,Revenue,CAHD,South - Commissioned Services,Permanent Residential,Avon Valley Care Home,2970.00, 06-Apr-2021
362,Revenue,CAHD,South - Commissioned Services,Permanent Residential,Avon Valley Care Home,1012.77, 06-Apr-2021
363,Revenue,CAHD,South - Commissioned Services,Permanent Residential,Avon Valley Care Home,9428.57, 06-Apr-2021
364,Revenue,CAHD,South - Commissioned Services,Permanent Residential,Avon Valley Care Home,3000.00, 06-Apr-2021
365,Revenue,CAHD,South - Commissioned Services,Fees & Charges Income - General,Avon Valley Care Home,1509.75, 06-Apr-2021
366,Revenue,CAHD,South - Commissioned Services,Fees & Charges Income - General,Avon Valley Care Home,750.00, 06-Apr-2021
367,Revenue,CAHD,South - Commissioned Services,Permanent Residential,Avon Valley Care Home,1023.00, 06-Apr-2021
368,Revenue,CAHD,South - Commissioned Services,Fees & Charges Income - General,Avon Valley Care Home,1443.42, 06-Apr-2021
369,Revenue,CAHD,South - Commissioned Services,Fees & Charges Income - General,Avon Valley Care Home,1350.00, 06-Apr-2021
370,Revenue,CAHD,South - Commissioned Services,Permanent Residential,Avon Valley Care Home,3000.00, 06-Apr-2021
371,Revenue,CAHD,South - Commissioned Services,Permanent Residential,Avon Valley Care Home,1023.00, 06-Apr-2021
372,Revenue,CAHD,South - Commissioned Services,Permanent Residential,Avon Valley Care Home,3600.00, 06-Apr-2021
373,Revenue,CAHD,South - Commissioned Services,Permanent Residential,Avon Valley Care Home,1227.60, 06-Apr-2021
374,Revenue,CAHD,South - Commissioned Services,Permanent Residential,Avon Valley Care Home,2970.00, 06-Apr-2021
375,Revenue,CAHD,South - Commissioned Services,Permanent Residential,Avon Valley Care Home,1012.77, 06-Apr-2021
376,Revenue,CAHD,South - Commissioned Services,Permanent Residential,Avon Valley Care Home,3000.00, 06-Apr-2021
377,Revenue,CAHD,South - Commissioned Services,Permanent Residential,Avon Valley Care Home,1023.00, 06-Apr-2021
378,Revenue,CAHD,South - Commissioned Services,Permanent Residential,Avon Valley Care Home,8913.21, 06-Apr-2021
379,Revenue,CAHD,South - Commissioned Services,Permanent Residential,Avon Valley Care Home,3172.50, 06-Apr-2021
380,Revenue,CAHD,South - Commissioned Services,Respite Planned - Residential,Avon Valley Care Home,2417.14, 06-Apr-2021
381,Revenue,CAHD,South - Commissioned Services,Respite Planned - Residential,Avon Valley Care Home,2115.00, 06-Apr-2021
382,Revenue,CAHD,South - Commissioned Services,Permanent Residential,Avon Valley Care Home,604.29, 06-Apr-2021
383,Revenue,CAHD,South - Commissioned Services,Permanent Residential,Avon Valley Care Home,17820.00, 06-Apr-2021
384,Revenue,CAHD,South - Commissioned Services,Permanent Residential,Avon Valley Care Home,2970.00, 06-Apr-2021
385,Revenue,CAHD,South - Commissioned Services,Permanent Residential,Avon Valley Care Home,1012.77, 06-Apr-2021
386,Revenue,CAHD,South - Commissioned Services,Fees & Charges Income - General,Avon Valley Care Home,1378.02, 06-Apr-2021
387,Revenue,CAHD,Central - Commissioned Services,Permanent Residential,Avon Valley Care Home,3000.00, 06-Apr-2021
388,Revenue,CAHD,Central - Commissioned Services,Permanent Residential,Avon Valley Care Home,1023.00, 06-Apr-2021
389,Revenue,CAHD,Covid - ASC - Infection Control,Grants to Voluntary Bodies,Avon Valley Care Home,27177.51, 08-Apr-2021
390,Revenue,CAHD,North - Community based support,Permanent Residential,Avonmere Care Home,3510.00, 06-Apr-2021
391,Revenue,CAHD,North - Community based support,Permanent Residential,Avonmere Care Home,1170.00, 06-Apr-2021
392,Revenue,CAHD,Covid 19 -Adult Social Care,Respite Planned - Residential,Avonmere Care Home,4400.00, 06-Apr-2021
393,Revenue,CAHD,North - Community based support,Permanent Residential,Avonmere Care Home,3669.00, 06-Apr-2021
394,Revenue,CAHD,North - Community based support,Permanent Residential,Avonmere Care Home,1223.00, 06-Apr-2021
395,Revenue,CAHD,North - Community based support,Permanent Residential,Avonmere Care Home,3315.00, 06-Apr-2021
396,Revenue,CAHD,North - Community based support,Permanent Residential,Avonmere Care Home,1130.42, 06-Apr-2021
397,Revenue,CAHD,North - Community based support,Permanent Residential,Avonmere Care Home,3450.00, 06-Apr-2021
398,Revenue,CAHD,North - Community based support,Permanent Residential,Avonmere Care Home,1150.00, 06-Apr-2021
399,Revenue,CAHD,South - Commissioned Services,Respite Emergency - Residential,Avonmere Care Home,2792.86, 06-Apr-2021
400,Revenue,CAHD,South - Commissioned Services,Respite Emergency - Residential,Avonmere Care Home,1807.14, 06-Apr-2021
401,Revenue,CAHD,Central - Commissioned Services,Respite Planned - Residential,Avonmere Care Home,7071.43, 06-Apr-2021
402,Revenue,CAHD,Covid 19- Spend on behalf of NHS,Respite Planned - Residential,Avonmere Care Home,5814.29, 06-Apr-2021
403,Revenue,CAHD,North - Community based support,Permanent Residential,Avonmere Care Home,3669.00, 06-Apr-2021
404,Revenue,CAHD,North - Community based support,Permanent Residential,Avonmere Care Home,1223.00, 06-Apr-2021
405,Revenue,CAHD,Covid 19- Spend on behalf of NHS,Respite Planned - Residential,Avonmere Care Home,4400.00, 06-Apr-2021
406,Revenue,CAHD,Covid - ASC - Infection Control,Grants to Voluntary Bodies,Avonmere Care Home,26480.65, 08-Apr-2021
407,Revenue,CAHD,Swift Dump Code,Permanent Nursing,Badminton Place,30656.84, 06-Apr-2021
408,Revenue,CAHD,North - Community based support,Respite Emergency - Residential,Badminton Place,1542.86, 06-Apr-2021
409,Revenue,CAHD,Covid 19- Spend on behalf of NHS,Respite Planned - Residential,Badminton Place,4800.00, 06-Apr-2021
410,Revenue,CAHD,Covid 19- Spend on behalf of NHS,Respite Planned - Residential,Badminton Place,2057.14, 06-Apr-2021
411,Revenue,CAHD,North - Community based support,Respite Emergency - Residential,Badminton Place,16800.00, 06-Apr-2021
412,Revenue,CAHD,North - Community based support,Respite Emergency - Residential,Badminton Place,4800.00, 06-Apr-2021
413,Revenue,CAHD,Covid 19- Spend on behalf of NHS,Respite Planned - Residential,Badminton Place,2400.00, 06-Apr-2021
414,Revenue,CAHD,Covid 19- Spend on behalf of NHS,Respite Planned - Residential,Badminton Place,3428.57, 06-Apr-2021
415,Revenue,CAHD,Covid 19- Spend on behalf of NHS,Respite Planned - Nursing,Badminton Place,514.29, 06-Apr-2021
416,Revenue,CAHD,Covid 19- Spend on behalf of NHS,Respite Planned - Nursing,Badminton Place,1200.00, 06-Apr-2021
417,Revenue,CAHD,Covid 19- Spend on behalf of NHS,Respite Planned - Nursing,Badminton Place,1371.43, 06-Apr-2021
418,Revenue,CAHD,Covid 19- Spend on behalf of NHS,Respite Planned - Residential,Badminton Place,857.14, 06-Apr-2021
419,Revenue,CAHD,Covid 19- Spend on behalf of NHS,Respite Planned - Nursing,Badminton Place,514.29, 06-Apr-2021
420,Revenue,CAHD,Pensions - Non DSG,Annual Pension,Bath & North East Somerset Council,6633.42, 23-Apr-2021
421,Revenue,CAHD,Leadership and Business Support,Redundancy/Early Retirement,Bath & North East Somerset Council,5174.69, 20-Apr-2021
422,Revenue,CAHD,Pensions - Non DSG,Annual Pension,Bath & North East Somerset Council,103272.06, 23-Apr-2021
423,Revenue,CAHD,Independent Special Placements - Post 16,Other Private Contractors,Bath Road Priory,81363.29, 12-Apr-2021
424,Revenue,CAHD,Pathway 3 - (Complex Beds),Permanent Nursing,Beaufort Care Ltd,5682.72, 08-Apr-2021
425,Revenue,CAHD,Central - Commissioned Services,Respite Emergency - Residential,Beaufort Grange Care Home,17160.00, 06-Apr-2021
426,Revenue,CAHD,Central - Commissioned Services,Respite Emergency - Residential,Beaufort Grange Care Home,2200.00, 06-Apr-2021
427,Revenue,CAHD,Covid 19- Spend on behalf of NHS,Respite Planned - Nursing,Beaufort Grange Care Home,18068.00, 06-Apr-2021
428,Revenue,CAHD,North - S117,Permanent Nursing,Beaufort Grange Care Home,3657.78, 06-Apr-2021
429,Revenue,CAHD,North - S117,Permanent Nursing,Beaufort Grange Care Home,1219.26, 06-Apr-2021
430,Revenue,CAHD,Central - Commissioned Services,Permanent Nursing,Beaufort Grange Care Home,8838.00, 06-Apr-2021
431,Revenue,CAHD,Central - Commissioned Services,Permanent Nursing,Beaufort Grange Care Home,2946.00, 06-Apr-2021
432,Revenue,CAHD,Covid 19- Spend on behalf of NHS,Respite Planned - Nursing,Beaufort Grange Care Home,11884.00, 06-Apr-2021
433,Revenue,CAHD,Central - Commissioned Services,Permanent Nursing,Beaufort Grange Care Home,23604.67, 06-Apr-2021
434,Revenue,CAHD,Central - Commissioned Services,Permanent Nursing,Beaufort Grange Care Home,3699.24, 06-Apr-2021
435,Revenue,CAHD,Central - Commissioned Services,Permanent Nursing,Beaufort Grange Care Home,1233.08, 06-Apr-2021
436,Revenue,CAHD,Central - Commissioned Services,Respite Planned - Residential,Beaufort Grange Care Home,3245.71, 06-Apr-2021
437,Revenue,CAHD,Central - Commissioned Services,Permanent Nursing,Beaufort Grange Care Home,4125.00, 06-Apr-2021
438,Revenue,CAHD,Central - Commissioned Services,Permanent Nursing,Beaufort Grange Care Home,1375.00, 06-Apr-2021
439,Revenue,CAHD,Covid 19- Spend on behalf of NHS,Respite Planned - Nursing,Beaufort Grange Care Home,5600.00, 06-Apr-2021
440,Revenue,CAHD,Central - Commissioned Services,Permanent Nursing,Beaufort Grange Care Home,3999.24, 06-Apr-2021
441,Revenue,CAHD,Central - Commissioned Services,Permanent Nursing,Beaufort Grange Care Home,1333.08, 06-Apr-2021
442,Revenue,CAHD,Central - Commissioned Services,Permanent Residential,Beaufort House,2193.42, 06-Apr-2021
443,Revenue,CAHD,Central - Commissioned Services,Permanent Residential,Beaufort House,747.96, 06-Apr-2021
444,Revenue,CAHD,Central - Commissioned Services,Permanent Residential,Beaufort House,2123.34, 06-Apr-2021
445,Revenue,CAHD,Central - Commissioned Services,Permanent Residential,Beaufort House,724.06, 06-Apr-2021
446,Revenue,CAHD,North - Community based support,Permanent Residential,Beaufort House,1967.13, 06-Apr-2021
447,Revenue,CAHD,North - Community based support,Permanent Residential,Beaufort House,670.79, 06-Apr-2021
448,Revenue,CAHD,South - Commissioned Services,Permanent Residential,Beaufort House,1940.67, 06-Apr-2021
449,Revenue,CAHD,South - Commissioned Services,Permanent Residential,Beaufort House,661.77, 06-Apr-2021
450,Revenue,CAHD,Central - Commissioned Services,Respite Planned - Residential,Beaufort House,2914.29, 06-Apr-2021
451,Revenue,CAHD,Central - Commissioned Services,Permanent Residential,Beaufort House,2850.00, 06-Apr-2021
452,Revenue,CAHD,Central - Commissioned Services,Permanent Residential,Beaufort House,950.00, 06-Apr-2021
453,Revenue,CAHD,North - Community based support,Permanent Residential,Beaufort House,3000.00, 06-Apr-2021
454,Revenue,CAHD,North - Community based support,Permanent Residential,Beaufort House,2065.44, 06-Apr-2021
455,Revenue,CAHD,North - Community based support,Permanent Residential,Beaufort House,704.32, 06-Apr-2021
456,Revenue,CAHD,Central - Commissioned Services,Permanent Residential,Beaufort House,2400.00, 06-Apr-2021
457,Revenue,CAHD,Central - Commissioned Services,Permanent Residential,Beaufort House,800.00, 06-Apr-2021
458,Revenue,CAHD,Central - Commissioned Services,Permanent Residential,Beaufort House,2700.00, 06-Apr-2021
459,Revenue,CAHD,Central - Commissioned Services,Permanent Residential,Beaufort House,900.00, 06-Apr-2021
460,Revenue,CAHD,Central - Commissioned Services,Permanent Residential,Beaufort House,2700.00, 06-Apr-2021
461,Revenue,CAHD,Central - Commissioned Services,Permanent Residential,Beaufort House,900.00, 06-Apr-2021
462,Revenue,CAHD,Central - Bed Purchasing and Direct Payments,Permanent Residential,Beaufort House,2550.00, 06-Apr-2021
463,Revenue,CAHD,Central - Bed Purchasing and Direct Payments,Permanent Residential,Beaufort House,869.55, 06-Apr-2021
464,Revenue,CAHD,South - Commissioned Services,Permanent Residential,Beech House,2264.13, 06-Apr-2021
465,Revenue,CAHD,South - Commissioned Services,Permanent Residential,Beech House,772.07, 06-Apr-2021
466,Revenue,CAHD,North - Community based support,Permanent Residential,Beech House,3210.00, 06-Apr-2021
467,Revenue,CAHD,North - Community based support,Permanent Residential,Beech House,1094.61, 06-Apr-2021
468,Revenue,CAHD,North - Community based support,Permanent Nursing,Beech House,2751.43, 06-Apr-2021
469,Revenue,CAHD,North - Community based support,Permanent Nursing,Beech House,1094.61, 06-Apr-2021
470,Revenue,CAHD,North - Community based support,Permanent Nursing,Beech House,3210.00, 06-Apr-2021
471,Revenue,CAHD,North - Community based support,Permanent Nursing,Beech House,1094.61, 06-Apr-2021
472,Revenue,CAHD,Central - Commissioned Services,Permanent Nursing,Beech House,12840.00, 06-Apr-2021
473,Revenue,CAHD,North - Community based support,Fees & Charges Income - General,Beech House,1005.13, 06-Apr-2021
474,Revenue,CAHD,North - Community based support,Permanent Nursing,Beech House,3231.03, 06-Apr-2021
475,Revenue,CAHD,North - Community based support,Permanent Nursing,Beech House,1101.78, 06-Apr-2021
476,Revenue,CAHD,North - Community based support,Permanent Nursing,Beech House,3270.00, 06-Apr-2021
477,Revenue,CAHD,North - Community based support,Permanent Nursing,Beech House,1115.07, 06-Apr-2021
478,Revenue,CAHD,North - Community based support,Permanent Residential,Beech House,3270.00, 06-Apr-2021
479,Revenue,CAHD,North - Community based support,Permanent Residential,Beech House,1115.07, 06-Apr-2021
480,Revenue,CAHD,Covid - ASC - Infection Control,Grants to Voluntary Bodies,Beech House,6805.00, 09-Apr-2021
481,Revenue,CAHD,South Glos Users in South Glos Homes,Permanent Nursing,Beechwood Care Home,1044.00, 06-Apr-2021
482,Revenue,CAHD,CSC - Residential Placements,Permanent Residential,Beechwood Court Ltd,21854.54, 14-Apr-2021
483,Revenue,CAHD,CSC - Residential Placements,Permanent Residential,Beechwood Court Ltd,21854.54, 14-Apr-2021
484,Revenue,CAHD,CSC - Residential Placements,Permanent Residential,Beechwood Court Ltd,21854.54, 14-Apr-2021
485,Revenue,CAHD,18-25 Year Olds,Permanent Residential,Beechwood Court Ltd,3646.58, 08-Apr-2021
486,Revenue,CAHD,18-25 Year Olds,Permanent Residential,Beechwood Court Ltd,14586.31, 13-Apr-2021
487,Revenue,CAHD,18-25 Year Olds,Permanent Residential,Beechwood Court Ltd,14586.31, 14-Apr-2021
488,Revenue,CAHD,CSC - Residential Placements,Permanent Residential,Beechwood Court Ltd,21854.54, 14-Apr-2021
489,Revenue,CAHD,18-25 Year Olds,Permanent Residential,Beechwood Court Ltd,15650.71, 14-Apr-2021
490,Revenue,CAHD,18-25 Year Olds,Permanent Residential,Beechwood Court Ltd,14586.31, 13-Apr-2021
491,Revenue,CAHD,18-25 Year Olds,Permanent Residential,Beechwood Court Ltd,20867.62, 14-Apr-2021
492,Revenue,CAHD,CSC - Residential Placements,Permanent Residential,Beechwood Court Ltd,21854.54, 14-Apr-2021
493,Revenue,CAHD,18-25 Year Olds,Permanent Residential,Beechwood Court Ltd,14586.31, 13-Apr-2021
494,Revenue,CAHD,CSC - Residential Placements,Permanent Residential,Beechwood Court Ltd,21854.54, 14-Apr-2021
495,Revenue,CAHD,18-25 Year Olds,Permanent Residential,Beechwood Court Ltd,14586.31, 13-Apr-2021
496,Revenue,CAHD,18-25 Year Olds,Permanent Residential,Beechwood Court Ltd,20867.62, 14-Apr-2021
497,Revenue,CAHD,CSC - Residential Placements,Permanent Residential,Beechwood Court Ltd,21854.54, 14-Apr-2021
498,Revenue,CAHD,Independent Special Placements - Pre 16,Other Private Contractors,Belgrave School,4845.00, 29-Apr-2021
499,Revenue,CAHD,Independent Special Placements - Pre 16,Other Private Contractors,Belgrave School,6796.00, 29-Apr-2021
500,Revenue,CAHD,Independent Special Placements - Pre 16,Other Private Contractors,Belgrave School,8915.33, 29-Apr-2021
501,Revenue,CAHD,Independent Special Placements - Pre 16,Other Private Contractors,Belgrave School,5688.50, 29-Apr-2021
502,Revenue,CAHD,South - S117,Permanent Residential,Bidna House,2769.48, 06-Apr-2021
503,Revenue,CAHD,South - S117,Permanent Residential,Bidna House,923.16, 06-Apr-2021
504,Revenue,CAHD,CSC - Vinney Green Secure Unit,Mechanical & Electrical Maintenance,Binns Fencing Limited,1524.32, 30-Apr-2021
505,Revenue,CAHD,Placements OLA Special Schools and RB,Other L.A.s - General,Blaise High School,807.95, 21-Apr-2021
506,Revenue,CAHD,Statemented Support Payments to OLAs,Other L.A.s - General,Blaise High School,907.83, 21-Apr-2021
507,Revenue,CAHD,Central - Commissioned Services,Other Small Contracts,Blakehill Healthcare Ltd,5250.00, 14-Apr-2021
508,Revenue,CAHD,South - Commissioned Services,Other Small Contracts,Blakehill Healthcare Ltd,4519.93, 14-Apr-2021
509,Revenue,CAHD,North - Community based support,Other Small Contracts,Blakehill Healthcare Ltd,6113.06, 14-Apr-2021
510,Revenue,CAHD,Central - Commissioned Services,Other Small Contracts,Blakehill Healthcare Ltd,5450.00, 14-Apr-2021
511,Revenue,CAHD,South - Commissioned Services,Other Small Contracts,Blakehill Healthcare Ltd,4436.05, 14-Apr-2021
512,Revenue,CAHD,North - Community based support,Other Small Contracts,Blakehill Healthcare Ltd,6155.25, 14-Apr-2021
513,Revenue,CAHD,Central - Commissioned Services,Other Small Contracts,Blakehill Healthcare Ltd,925.00, 08-Apr-2021
514,Revenue,CAHD,Pathway 1 - Re-Ablement Home Care,Other Small Contracts,Blakehill Healthcare Ltd,2268.75, 12-Apr-2021
515,Revenue,CAHD,Pathway 1 - Re-Ablement Home Care,Other Small Contracts,Blakehill Healthcare Ltd,1806.25, 12-Apr-2021
516,Revenue,CAHD,Central - Commissioned Services,Other Small Contracts,Blakehill Healthcare Ltd,875.00, 08-Apr-2021
517,Revenue,CAHD,North - Community based support,Permanent Residential,Blossom Fields Nursing Home,3029.40, 06-Apr-2021
518,Revenue,CAHD,North - Community based support,Permanent Residential,Blossom Fields Nursing Home,1033.03, 06-Apr-2021
519,Revenue,CAHD,North - Community based support,Permanent Nursing,Blossom Fields Nursing Home,3577.80, 06-Apr-2021
520,Revenue,CAHD,North - Community based support,Permanent Nursing,Blossom Fields Nursing Home,1220.03, 06-Apr-2021
521,Revenue,CAHD,Central - Commissioned Services,Respite Planned - Nursing,Blossom Fields Nursing Home,5770.29, 06-Apr-2021
522,Revenue,CAHD,South - Commissioned Services,Permanent Nursing,Blossom Fields Nursing Home,3376.02, 06-Apr-2021
523,Revenue,CAHD,South - Commissioned Services,Permanent Nursing,Blossom Fields Nursing Home,1151.22, 06-Apr-2021
524,Revenue,CAHD,North - Community based support,Permanent Nursing,Blossom Fields Nursing Home,3599.91, 06-Apr-2021
525,Revenue,CAHD,North - Community based support,Permanent Nursing,Blossom Fields Nursing Home,1227.57, 06-Apr-2021
526,Revenue,CAHD,North - Community based support,Permanent Nursing,Blossom Fields Nursing Home,3600.00, 06-Apr-2021
527,Revenue,CAHD,North - Community based support,Permanent Nursing,Blossom Fields Nursing Home,1227.60, 06-Apr-2021
528,Revenue,CAHD,South Glos Users in South Glos Homes,Permanent Nursing,Blossom Fields Nursing Home,1445.09, 06-Apr-2021
529,Revenue,CAHD,North - Community based support,Permanent Residential,Blossom Fields Nursing Home,3029.40, 06-Apr-2021
530,Revenue,CAHD,North - Community based support,Permanent Residential,Blossom Fields Nursing Home,1033.03, 06-Apr-2021
531,Revenue,CAHD,Covid 19- Spend on behalf of NHS,Respite Planned - Nursing,Blossom Fields Nursing Home,3069.57, 06-Apr-2021
532,Revenue,CAHD,Central - Commissioned Services,Permanent Nursing,Blossom Fields Nursing Home,3029.40, 06-Apr-2021
533,Revenue,CAHD,Central - Commissioned Services,Permanent Nursing,Blossom Fields Nursing Home,1033.03, 06-Apr-2021
534,Revenue,CAHD,Central - Commissioned Services,Permanent Nursing,Blossom Fields Nursing Home,2740.89, 06-Apr-2021
535,Revenue,CAHD,North - Community based support,Permanent Nursing,Blossom Fields Nursing Home,3029.40, 06-Apr-2021
536,Revenue,CAHD,North - Community based support,Permanent Nursing,Blossom Fields Nursing Home,1033.03, 06-Apr-2021
537,Revenue,CAHD,North - Community based support,Permanent Nursing,Blossom Fields Nursing Home,2780.73, 06-Apr-2021
538,Revenue,CAHD,North - Community based support,Permanent Nursing,Blossom Fields Nursing Home,948.23, 06-Apr-2021
539,Revenue,CAHD,Covid - ASC - Infection Control,Grants to Voluntary Bodies,Blossom Fields Nursing Home,1280.00, 09-Apr-2021
540,Revenue,CAHD,Central - Commissioned Services,Respite Planned - Residential,Blossom Fields Nursing Home,1875.34, 06-Apr-2021
541,Revenue,CAHD,South - bed purchasing and direct  payments,Permanent Nursing,Blossom Fields Nursing Home,3029.40, 06-Apr-2021
542,Revenue,CAHD,South - bed purchasing and direct  payments,Permanent Nursing,Blossom Fields Nursing Home,1033.03, 06-Apr-2021
543,Revenue,CAHD,Covid 19- Spend on behalf of NHS,Respite Planned - Nursing,Blossom Fields Nursing Home,3581.16, 06-Apr-2021
544,Revenue,CAHD,Covid 19- Spend on behalf of NHS,Respite Planned - Nursing,Blossom Fields Nursing Home,1193.72, 06-Apr-2021
545,Revenue,CAHD,Covid 19- Spend on behalf of NHS,Respite Planned - Nursing,Blossom Fields Nursing Home,682.13, 06-Apr-2021
546,Revenue,CAHD,Central - Commissioned Services,Permanent Nursing,Blossom Fields Nursing Home,3029.40, 06-Apr-2021
547,Revenue,CAHD,Central - Commissioned Services,Permanent Nursing,Blossom Fields Nursing Home,1033.03, 06-Apr-2021
548,Revenue,CAHD,South - Commissioned Services,Permanent Nursing,Blossom Fields Nursing Home,3512.28, 06-Apr-2021
549,Revenue,CAHD,South - Commissioned Services,Permanent Nursing,Blossom Fields Nursing Home,1197.69, 06-Apr-2021
550,Revenue,CAHD,Central - Commissioned Services,Permanent Nursing,Blossom Fields Nursing Home,3756.45, 06-Apr-2021
551,Revenue,CAHD,Central - Commissioned Services,Permanent Nursing,Blossom Fields Nursing Home,1280.95, 06-Apr-2021
552,Revenue,CAHD,Central - Commissioned Services,Permanent Nursing,Blossom Fields Nursing Home,3029.40, 06-Apr-2021
553,Revenue,CAHD,Central - Commissioned Services,Permanent Nursing,Blossom Fields Nursing Home,1033.03, 06-Apr-2021
554,Revenue,CAHD,South - Commissioned Services,Permanent Nursing,Blossom Fields Nursing Home,2890.80, 06-Apr-2021
555,Revenue,CAHD,South - Commissioned Services,Permanent Nursing,Blossom Fields Nursing Home,985.76, 06-Apr-2021
556,Revenue,CAHD,North - Community based support,Permanent Nursing,Blossom Fields Nursing Home,3029.40, 06-Apr-2021
557,Revenue,CAHD,North - Community based support,Permanent Nursing,Blossom Fields Nursing Home,1033.03, 06-Apr-2021
558,Revenue,CAHD,Central - Commissioned Services,Permanent Nursing,Blossom Fields Nursing Home,3029.40, 06-Apr-2021
559,Revenue,CAHD,Central - Commissioned Services,Permanent Nursing,Blossom Fields Nursing Home,1033.03, 06-Apr-2021
560,Revenue,CAHD,Central - Commissioned Services,Permanent Nursing,Blossom Fields Nursing Home,3512.28, 06-Apr-2021
561,Revenue,CAHD,Central - Commissioned Services,Permanent Nursing,Blossom Fields Nursing Home,1197.69, 06-Apr-2021
562,Revenue,CAHD,South - Commissioned Services,Permanent Residential,Blossom Fields Nursing Home,3750.00, 06-Apr-2021
563,Revenue,CAHD,South - Commissioned Services,Permanent Residential,Blossom Fields Nursing Home,1278.75, 06-Apr-2021
564,Revenue,CAHD,South - Commissioned Services,Permanent Residential,Blossom Fields Nursing Home,535.71, 06-Apr-2021
565,Revenue,CAHD,Central - Commissioned Services,Permanent Nursing,Blossom Fields Nursing Home,3506.58, 06-Apr-2021
566,Revenue,CAHD,Central - Commissioned Services,Permanent Nursing,Blossom Fields Nursing Home,1195.74, 06-Apr-2021
567,Revenue,CAHD,North - Community based support,Permanent Nursing,Blossom Fields Nursing Home,3900.00, 06-Apr-2021
568,Revenue,CAHD,North - Community based support,Permanent Nursing,Blossom Fields Nursing Home,1329.90, 06-Apr-2021
569,Revenue,CAHD,North - S117,Permanent Residential,Blossom Fields Nursing Home,3600.00, 06-Apr-2021
570,Revenue,CAHD,North - S117,Permanent Residential,Blossom Fields Nursing Home,1227.60, 06-Apr-2021
571,Revenue,CAHD,South - Commissioned Services,Respite Planned - Nursing,Blossom Fields Nursing Home,3029.40, 06-Apr-2021
572,Revenue,CAHD,South - Commissioned Services,Respite Planned - Nursing,Blossom Fields Nursing Home,1586.83, 06-Apr-2021
573,Revenue,CAHD,South - Commissioned Services,Respite Planned - Nursing,Blossom Fields Nursing Home,1033.03, 06-Apr-2021
574,Revenue,CAHD,North - S117,Permanent Residential,Blossom Fields Nursing Home,3750.00, 06-Apr-2021
575,Revenue,CAHD,North - S117,Permanent Residential,Blossom Fields Nursing Home,1278.75, 06-Apr-2021
576,Revenue,CAHD,Central - Commissioned Services,Permanent Nursing,Blossom Fields Nursing Home,3532.80, 06-Apr-2021
577,Revenue,CAHD,Central - Commissioned Services,Permanent Nursing,Blossom Fields Nursing Home,1204.68, 06-Apr-2021
578,Revenue,CAHD,Central - Commissioned Services,Permanent Nursing,Blossom Fields Nursing Home,3029.40, 06-Apr-2021
579,Revenue,CAHD,Central - Commissioned Services,Permanent Nursing,Blossom Fields Nursing Home,1033.03, 06-Apr-2021
580,Revenue,CAHD,South - Commissioned Services,Permanent Nursing,Blossom Fields Nursing Home,18214.29, 06-Apr-2021
581,Revenue,CAHD,South - Commissioned Services,Permanent Nursing,Blossom Fields Nursing Home,3750.00, 06-Apr-2021
582,Revenue,CAHD,South - Commissioned Services,Permanent Nursing,Blossom Fields Nursing Home,1250.00, 06-Apr-2021
583,Revenue,CAHD,Central - Commissioned Services,Permanent Residential,Blossom Fields Nursing Home,9642.86, 06-Apr-2021
584,Revenue,CAHD,Central - Commissioned Services,Permanent Residential,Blossom Fields Nursing Home,3750.00, 06-Apr-2021
585,Revenue,CAHD,Central - Commissioned Services,Permanent Residential,Blossom Fields Nursing Home,1278.75, 06-Apr-2021
586,Revenue,CAHD,Central - Commissioned Services,Permanent Nursing,Blossom Fields Nursing Home,8228.57, 06-Apr-2021
587,Revenue,CAHD,Central - Commissioned Services,Permanent Nursing,Blossom Fields Nursing Home,3600.00, 06-Apr-2021
588,Revenue,CAHD,Central - Commissioned Services,Permanent Nursing,Blossom Fields Nursing Home,1227.60, 06-Apr-2021
589,Revenue,CAHD,Central - Commissioned Services,Fees & Charges Income - General,Blossom Fields Nursing Home,621.57, 06-Apr-2021
590,Revenue,CAHD,Central - Commissioned Services,Permanent Nursing,Blossom Fields Nursing Home,3029.40, 06-Apr-2021
591,Revenue,CAHD,Central - Commissioned Services,Permanent Nursing,Blossom Fields Nursing Home,1033.03, 06-Apr-2021
592,Revenue,CAHD,Central - Commissioned Services,Permanent Nursing,Blossom Fields Nursing Home,3750.00, 06-Apr-2021
593,Revenue,CAHD,Central - Commissioned Services,Permanent Nursing,Blossom Fields Nursing Home,1278.75, 06-Apr-2021
594,Revenue,CAHD,Central - Commissioned Services,Permanent Nursing,Blossom Fields Nursing Home,3029.40, 06-Apr-2021
595,Revenue,CAHD,Central - Commissioned Services,Permanent Nursing,Blossom Fields Nursing Home,1033.03, 06-Apr-2021
596,Revenue,CAHD,Covid - ASC - Infection Control,Grants to Voluntary Bodies,Blossom Fields Nursing Home,5026.00, 09-Apr-2021
597,Revenue,CAHD,Statemented Support Payments to OLAs,Other L.A.s - General,Blue Coat CE VA Primary School,837.09, 21-Apr-2021
598,Revenue,CAHD,Statemented Support Payments to OLAs,Other L.A.s - General,Blue Coat CE VA Primary School,1292.50, 21-Apr-2021
599,Revenue,CAHD,North - Community based support,Permanent Residential,Bluebells,2774.70, 06-Apr-2021
600,Revenue,CAHD,North - Community based support,Permanent Residential,Bluebells,924.90, 06-Apr-2021
601,Revenue,CAHD,Central - Commissioned Services,Other Small Contracts,Bluebird Care (South Gloucestershire),16184.61, 23-Apr-2021
602,Revenue,CAHD,South - Commissioned Services,Other Small Contracts,Bluebird Care (South Gloucestershire),3944.64, 23-Apr-2021
603,Revenue,CAHD,North - Community based support,Other Small Contracts,Bluebird Care (South Gloucestershire),4817.09, 23-Apr-2021
604,Revenue,CAHD,Resilience Team,Other Small Contracts,Bluebird Care (South Gloucestershire),128.35, 23-Apr-2021
605,Revenue,CAHD,Central - Commissioned Services,Other Small Contracts,Bluebird Care (South Gloucestershire),11986.34, 23-Apr-2021
606,Revenue,CAHD,South - Commissioned Services,Other Small Contracts,Bluebird Care (South Gloucestershire),4835.34, 23-Apr-2021
607,Revenue,CAHD,North - Community based support,Other Small Contracts,Bluebird Care (South Gloucestershire),4808.94, 23-Apr-2021
608,Revenue,CAHD,Resilience Team,Other Small Contracts,Bluebird Care (South Gloucestershire),113.25, 23-Apr-2021
609,Revenue,CAHD,Central - Commissioned Services,Other Small Contracts,Bluebird Care (South Gloucestershire),11623.19, 26-Apr-2021
610,Revenue,CAHD,South - Commissioned Services,Other Small Contracts,Bluebird Care (South Gloucestershire),4844.09, 26-Apr-2021
611,Revenue,CAHD,North - Community based support,Other Small Contracts,Bluebird Care (South Gloucestershire),4477.94, 26-Apr-2021
612,Revenue,CAHD,Resilience Team,Other Small Contracts,Bluebird Care (South Gloucestershire),128.35, 26-Apr-2021
613,Revenue,CAHD,Sexual Health,Other Small Contracts,Boots UK Ltd,2031.85, 21-Apr-2021
614,Revenue,CAHD,Drug and Alcohol Programme,Other Small Contracts,Boots UK Ltd,3475.00, 21-Apr-2021
615,Revenue,CAHD,S28A cases,Permanent Residential,Bradbury House,4878.87, 06-Apr-2021
616,Revenue,CAHD,S28A cases,Permanent Residential,Bradbury House,1626.29, 06-Apr-2021
617,Revenue,CAHD,North - Community based support,Permanent Residential,Bradbury House,7512.18, 06-Apr-2021
618,Revenue,CAHD,North - Community based support,Permanent Residential,Bradbury House,2504.06, 06-Apr-2021
619,Revenue,CAHD,Jointly Funded H&SC Packages,Permanent Residential,Bradbury House,6183.06, 06-Apr-2021
620,Revenue,CAHD,North - S117,Permanent Residential,Bradbury House,4477.38, 06-Apr-2021
621,Revenue,CAHD,Jointly Funded H&SC Packages,Permanent Residential,Bradbury House,2061.02, 06-Apr-2021
622,Revenue,CAHD,North - S117,Permanent Residential,Bradbury House,1492.46, 06-Apr-2021
623,Revenue,CAHD,South - Commissioned Services,Permanent Residential,Bradbury House,7626.06, 06-Apr-2021
624,Revenue,CAHD,South - Commissioned Services,Permanent Residential,Bradbury House,2542.02, 06-Apr-2021
625,Revenue,CAHD,CSC - Residential Placements,Permanent Residential,Branas ISAF Ltd,21214.20, 29-Apr-2021
626,Revenue,CAHD,CSC - Residential Placements,Permanent Residential,Branas ISAF Ltd,19800.00, 20-Apr-2021
627,Revenue,CAHD,CSC - Residential Placements,Permanent Residential,Branas ISAF Ltd,21921.43, 20-Apr-2021
628,Revenue,CAHD,Social Lettings Agency,Rent,Individual,699.32, 23-Apr-2021
629,Revenue,CAHD,Social Lettings Agency,Fees - General,Individual,20.57, 23-Apr-2021
630,Revenue,CAHD,Social Lettings Agency,Rent,Individual,766.10, 01-Apr-2021
631,Revenue,CAHD,Social Lettings Agency,Fees - General,Individual,8.15, 01-Apr-2021
632,Revenue,CAHD,Social Lettings Agency,Rent,Individual,815.00, 30-Apr-2021
633,Revenue,CAHD,Social Lettings Agency,Fees & Charges Income - General,Individual,-40.75, 30-Apr-2021
634,Revenue,CAHD,Placements OLA Special Schools and RB,Other L.A.s - General,Briarwood School,1227.13, 21-Apr-2021
635,Revenue,CAHD,Placements OLA Special Schools and RB,Other L.A.s - General,Briarwood School,2685.22, 21-Apr-2021
636,Revenue,CAHD,Placements OLA Special Schools and RB,Other L.A.s - General,Briarwood School,1227.13, 21-Apr-2021
637,Revenue,CAHD,Central - Commissioned Services,Permanent Residential,Bridge House Care Home,1821.43, 06-Apr-2021
638,Revenue,CAHD,Central - Commissioned Services,Permanent Residential,Bridge House Care Home,1178.57, 06-Apr-2021
639,Revenue,CAHD,Central - Commissioned Services,Permanent Residential,Bridge House Care Home,1071.43, 06-Apr-2021
640,Revenue,CAHD,Central - Commissioned Services,Permanent Residential,Bridge House Care Home,750.00, 06-Apr-2021
641,Revenue,CAHD,North - Community based support,Permanent Residential,Bridge House Care Home,2136.00, 06-Apr-2021
642,Revenue,CAHD,North - Community based support,Permanent Residential,Bridge House Care Home,728.38, 06-Apr-2021
643,Revenue,CAHD,North - Community based support,Permanent Residential,Bridge House Care Home,2008.53, 06-Apr-2021
644,Revenue,CAHD,North - Community based support,Permanent Residential,Bridge House Care Home,684.91, 06-Apr-2021
645,Revenue,CAHD,North - Community based support,Permanent Residential,Bridgwater Court Care Home,8080.23, 06-Apr-2021
646,Revenue,CAHD,North - Community based support,Permanent Residential,Bridgwater Court Care Home,2693.41, 06-Apr-2021
647,Revenue,CAHD,Early Years High Needs Support,Other Private Contractors,Bright Sparks Pre-School,880.72, 21-Apr-2021
648,Revenue,CAHD,Covid 19 -Adult Social Care,Advertising for Recruitment,Brigstowe Media Ltd,675.00, 08-Apr-2021
649,Revenue,CAHD,Health Inequalities,Grants to Voluntary Bodies,Bristol & Avon Chinese Womens Group,500.00, 28-Apr-2021
650,Revenue,CAHD,Statemented Support Academies,Other Public Bodies,Bristol & South Gloucestershire UTC,1556.28, 30-Apr-2021
651,Revenue,CAHD,Statemented Support Academies,Other Public Bodies,Bristol & South Gloucestershire UTC,907.83, 30-Apr-2021
652,Revenue,CAHD,Community Support - North,Preventative Assistance,Bristol Ambulance EMS Limited,827.00, 16-Apr-2021
653,Revenue,CAHD,Older People`s Commissioned Se,Grants to Voluntary Bodies,Bristol Area Stroke Foundation,19052.75, 28-Apr-2021
654,Revenue,CAHD,CSC - Section 17 - NORTH,Furniture & Fittings Loose,Bristol Carpet Manufacturing Co Ltd,556.21, 14-Apr-2021
655,Revenue,CAHD,Statemented Support Payments to OLAs,Other L.A.s - General,Bristol Cathedral Choir School,942.58, 21-Apr-2021
656,Revenue,CAHD,Statemented Support Payments to OLAs,Other L.A.s - General,Bristol Cathedral Choir School,880.08, 21-Apr-2021
657,Revenue,CAHD,CSC - Agency Fostering,Foster Parent Allowances,Bristol City Council,19900.00, 08-Apr-2021
658,Revenue,CAHD,CSC - Agency Fostering,Foster Parent Allowances,Bristol City Council,36500.00, 12-Apr-2021
659,Revenue,CAHD,CSC - YOT Pooled Budget,Other Supplies & Services,Bristol City Council,4824.00, 14-Apr-2021
660,Revenue,CAHD,NTS Grant - Trainee Social Wor,Training Expenses,Bristol City Council,3060.00, 09-Apr-2021
661,Revenue,CAHD,Covid  - Workforce capacity,Other Supplies & Services,Bristol City Council,5000.00, 09-Apr-2021
662,Revenue,CAHD,CSC - Section 17 SOUTH,Interpreting & Translation,Bristol City Council,463.20, 23-Apr-2021
663,Revenue,CAHD,Statemented Support Payments to OLAs,Other L.A.s - General,Bristol City Council Schools General,897.42, 21-Apr-2021
664,Revenue,CAHD,Statemented Support Payments to OLAs,Other L.A.s - General,Bristol City Council Schools General,635.33, 21-Apr-2021
665,Revenue,CAHD,Placements OLA Special Schools and RB,Other L.A.s - General,Bristol Gateway School,1917.52, 21-Apr-2021
666,Revenue,CAHD,Placements OLA Special Schools and RB,Other L.A.s - General,Bristol Gateway School,1917.52, 21-Apr-2021
667,Revenue,CAHD,Placements OLA Special Schools and RB,Other L.A.s - General,Bristol Gateway School,1845.17, 21-Apr-2021
668,Revenue,CAHD,Placements OLA Special Schools and RB,Other L.A.s - General,Bristol Gateway School,766.85, 21-Apr-2021
669,Revenue,CAHD,Placements OLA Special Schools and RB,Other L.A.s - General,Bristol Gateway School,2685.22, 21-Apr-2021
670,Revenue,CAHD,SEN High Needs - Not at School Base,Other Private Contractors,Bristol Tuition Limited,684.00, 21-Apr-2021
671,Revenue,CAHD,SEN High Needs - Not at School Base,Other Private Contractors,Bristol Tuition Limited,570.00, 21-Apr-2021
672,Revenue,CAHD,Statemented Support Payments to OLAs,Other L.A.s - General,Broadlands Academy,1332.27, 21-Apr-2021
673,Revenue,CAHD,Statemented Support Payments to OLAs,Other L.A.s - General,Broadlands Academy,835.17, 21-Apr-2021
674,Revenue,CAHD,North - Community based support,Permanent Residential,Brockhills Farm,2475.00, 06-Apr-2021
675,Revenue,CAHD,North - Community based support,Permanent Residential,Brockhills Farm,707.14, 06-Apr-2021
676,Revenue,CAHD,North - Community based support,Permanent Residential,Brockhills Farm,2400.00, 06-Apr-2021
677,Revenue,CAHD,North - Community based support,Permanent Residential,Brockhills Farm,800.00, 06-Apr-2021
678,Revenue,CAHD,Supporting People Programme,Grants to Voluntary Bodies,Bromford  :  Merlin Housing Society,15641.00, 08-Apr-2021
679,Revenue,CAHD,Supporting People Programme,Grants to Voluntary Bodies,Bromford  :  Merlin Housing Society,2752.00, 08-Apr-2021
680,Revenue,CAHD,Supporting People Programme,Grants to Voluntary Bodies,Bromford  :  Merlin Housing Society,22948.00, 08-Apr-2021
681,Revenue,CAHD,Supporting People Programme,Grants to Voluntary Bodies,Bromford  :  Merlin Housing Society,1120.00, 08-Apr-2021
682,Revenue,CAHD,Supporting People Programme,Grants to Voluntary Bodies,Bromford  :  Merlin Housing Society,15637.00, 30-Apr-2021
683,Revenue,CAHD,Supporting People Programme,Grants to Voluntary Bodies,Bromford  :  Merlin Housing Society,2741.00, 30-Apr-2021
684,Revenue,CAHD,Supporting People Programme,Grants to Voluntary Bodies,Bromford  :  Merlin Housing Society,22940.00, 30-Apr-2021
685,Revenue,CAHD,Supporting People Programme,Grants to Voluntary Bodies,Bromford  :  Merlin Housing Society,1113.00, 30-Apr-2021
686,Revenue,CAHD,Discretionary Housing Payment,Other Supplies & Services,Bromford  :  Merlin Housing Society,876.27, 06-Apr-2021
687,Revenue,CAHD,Parent Partnership,Fees - General,Individual,688.00, 30-Apr-2021
688,Revenue,CAHD,South Glos Users in South Glos Homes,Permanent Nursing,Brunelcare,814.50, 29-Apr-2021
689,Revenue,CAHD,South Glos Users in South Glos Homes,Permanent Nursing,Brunelcare,814.50, 29-Apr-2021
690,Revenue,CAHD,South Glos Users in South Glos Homes,Permanent Nursing,Brunelcare,814.50, 29-Apr-2021
691,Revenue,CAHD,South Glos Users in South Glos Homes,Permanent Nursing,Brunelcare,814.50, 29-Apr-2021
692,Revenue,CAHD,South Glos Users in South Glos Homes,Permanent Nursing,Brunelcare,814.50, 29-Apr-2021
693,Revenue,CAHD,South Glos Users in South Glos Homes,Permanent Nursing,Brunelcare,814.50, 29-Apr-2021
694,Revenue,CAHD,South Glos Users in South Glos Homes,Permanent Nursing,Brunelcare,814.50, 29-Apr-2021
695,Revenue,CAHD,South Glos Users in South Glos Homes,Permanent Nursing,Brunelcare,814.50, 29-Apr-2021
696,Revenue,CAHD,South Glos Users in South Glos Homes,Permanent Nursing,Brunelcare,814.50, 29-Apr-2021
697,Revenue,CAHD,South Glos Users in South Glos Homes,Permanent Nursing,Brunelcare,814.50, 29-Apr-2021
698,Revenue,CAHD,South Glos Users in South Glos Homes,Permanent Nursing,Brunelcare,814.50, 29-Apr-2021
699,Revenue,CAHD,North - S117,Permanent Nursing,Brunelcare,3742.45, 29-Apr-2021
700,Revenue,CAHD,North - S117,Permanent Nursing,Brunelcare,3742.45, 29-Apr-2021
701,Revenue,CAHD,South - Commissioned Services,Permanent Nursing,Brunelcare,3742.45, 29-Apr-2021
702,Revenue,CAHD,South - Commissioned Services,Permanent Nursing,Brunelcare,2717.59, 29-Apr-2021
703,Revenue,CAHD,South - Commissioned Services,Permanent Nursing,Brunelcare,2889.24, 29-Apr-2021
704,Revenue,CAHD,South - Commissioned Services,Permanent Nursing,Brunelcare,3010.76, 29-Apr-2021
705,Revenue,CAHD,South - Commissioned Services,Permanent Nursing,Brunelcare,3117.45, 29-Apr-2021
706,Revenue,CAHD,South - Commissioned Services,Permanent Nursing,Brunelcare,2154.99, 29-Apr-2021
707,Revenue,CAHD,Central - Commissioned Services,Permanent Nursing,Brunelcare,3070.46, 29-Apr-2021
708,Revenue,CAHD,North - Community based support,Permanent Nursing,Brunelcare,3742.45, 29-Apr-2021
709,Revenue,CAHD,North - Community based support,Permanent Nursing,Brunelcare,2994.11, 29-Apr-2021
710,Revenue,CAHD,Central - Commissioned Services,Respite Planned - Nursing,Brunelcare,2939.97, 29-Apr-2021
711,Revenue,CAHD,Central - Commissioned Services,Respite Planned - Nursing,Brunelcare,965.79, 29-Apr-2021
712,Revenue,CAHD,Central - Commissioned Services,Other Small Contracts,Brunelcare,351.36, 08-Apr-2021
713,Revenue,CAHD,South - Commissioned Services,Other Small Contracts,Brunelcare,16001.52, 08-Apr-2021
714,Revenue,CAHD,South - Commissioned Services,Mentoring,Brunelcare,39.04, 08-Apr-2021
715,Revenue,CAHD,North - Community based support,Other Small Contracts,Brunelcare,351.36, 08-Apr-2021
716,Revenue,CAHD,Central - Commissioned Services,Other Small Contracts,Brunelcare,390.40, 28-Apr-2021
717,Revenue,CAHD,South - Commissioned Services,Other Small Contracts,Brunelcare,15913.68, 28-Apr-2021
718,Revenue,CAHD,North - Community based support,Other Small Contracts,Brunelcare,356.24, 28-Apr-2021
719,Revenue,CAHD,North - S117,Permanent Residential,Buckland Care,2700.00, 06-Apr-2021
720,Revenue,CAHD,North - S117,Permanent Residential,Buckland Care,900.00, 06-Apr-2021
721,Revenue,CAHD,Learning Difficulties Development Fund,Other Supplies & Services,Building Circles,3631.75, 14-Apr-2021
722,Revenue,CAHD,Early Years High Needs Support,Other Private Contractors,Busy Bees,880.72, 21-Apr-2021
723,Revenue,CAHD,CSC - Vinney Green Secure Unit,Service Contracts (Premises),BWS Standfast Fire & Security Systems,62277.00, 01-Apr-2021
724,Revenue,CAHD,CSC - Vinney Green Secure Unit,R & M by Departments,BWS Standfast Fire & Security Systems,972.00, 30-Apr-2021
725,Revenue,CAHD,CSC - Agency Fostering,Foster Parent Allowances,By the Bridge Ltd,4360.15, 14-Apr-2021
726,Revenue,CAHD,CSC - Agency Fostering,Foster Parent Allowances,By the Bridge Ltd,4242.66, 14-Apr-2021
727,Revenue,CAHD,Social Lettings Agency,Rent,Individual,710.96, 26-Apr-2021
728,Revenue,CAHD,Social Lettings Agency,Fees - General,Individual,16.16, 26-Apr-2021
729,Revenue,CAHD,CSC - Vinney Green Secure Unit,Building Improvements,C W Jones Carpet & Flooring Limited,1394.00, 16-Apr-2021
730,Revenue,CAHD,North - Community based support,Permanent Nursing,C31465Clevedon Court Nursing Home,2586.12, 06-Apr-2021
731,Revenue,CAHD,North - Community based support,Permanent Nursing,C31465Clevedon Court Nursing Home,862.04, 06-Apr-2021
732,Revenue,CAHD,CSC - Vinney Green Secure Unit,Training Expenses,Cabot Learning Federation,2500.00, 27-Apr-2021
733,Revenue,CAHD,Statemented Support Payments to OLAs,Other L.A.s - General,Cabot Learning Federation,1544.49, 21-Apr-2021
734,Revenue,CAHD,Statemented Support Academies,Other Public Bodies,Cabot Learning Federation,918.71, 30-Apr-2021
735,Revenue,CAHD,Statemented Support Academies,Other Public Bodies,Cabot Learning Federation,1202.39, 30-Apr-2021
736,Revenue,CAHD,Statemented Support Academies,Other Public Bodies,Cabot Learning Federation,908.00, 30-Apr-2021
737,Revenue,CAHD,Statemented Support Academies,Other Public Bodies,Cabot Learning Federation,1103.25, 30-Apr-2021
738,Revenue,CAHD,Statemented Support Academies,Other Public Bodies,Cabot Learning Federation,907.83, 30-Apr-2021
739,Revenue,CAHD,Statemented Support Academies,Other Public Bodies,Cabot Learning Federation,1899.58, 30-Apr-2021
740,Revenue,CAHD,Statemented Support Academies,Other Public Bodies,Cabot Learning Federation,788.22, 30-Apr-2021
741,Revenue,CAHD,Statemented Support Academies,Other Public Bodies,Cabot Learning Federation,957.92, 30-Apr-2021
742,Revenue,CAHD,Statemented Support Academies,Other Public Bodies,Cabot Learning Federation,1654.33, 30-Apr-2021
743,Revenue,CAHD,Statemented Support Academies,Other Public Bodies,Cabot Learning Federation,2206.25, 30-Apr-2021
744,Revenue,CAHD,Statemented Support Payments to OLAs,Other L.A.s - General,Cabot Learning Federation,1013.94, 21-Apr-2021
745,Revenue,CAHD,Statemented Support Academies,Other Public Bodies,Cabot Learning Federation,658.75, 30-Apr-2021
746,Revenue,CAHD,Statemented Support Academies,Other Public Bodies,Cabot Learning Federation,1854.42, 30-Apr-2021
747,Revenue,CAHD,Statemented Support Academies,Other Public Bodies,Cabot Learning Federation,632.67, 30-Apr-2021
748,Revenue,CAHD,Statemented Support Academies,Other Public Bodies,Cabot Learning Federation,695.61, 30-Apr-2021
749,Revenue,CAHD,Statemented Support Academies,Other Public Bodies,Cabot Learning Federation,918.75, 30-Apr-2021
750,Revenue,CAHD,Statemented Support Academies,Other Public Bodies,Cabot Learning Federation,975.58, 30-Apr-2021
751,Revenue,CAHD,Statemented Support Academies,Other Public Bodies,Cabot Learning Federation,1052.92, 30-Apr-2021
752,Revenue,CAHD,Academy Resource Base Funding,Other Public Bodies,Cabot Learning Federation,5753.44, 26-Apr-2021
753,Revenue,CAHD,Academy Resource Base Funding,Other Public Bodies,Cabot Learning Federation,1137.95, 26-Apr-2021
754,Revenue,CAHD,Academy Resource Base Funding,Other Public Bodies,Cabot Learning Federation,1648.03, 26-Apr-2021
755,Revenue,CAHD,Academy Resource Base Funding,Other Public Bodies,Cabot Learning Federation,1491.13, 26-Apr-2021
756,Revenue,CAHD,Academy Resource Base Funding,Other Public Bodies,Cabot Learning Federation,1137.95, 26-Apr-2021
757,Revenue,CAHD,Academy Resource Base Funding,Other Public Bodies,Cabot Learning Federation,1137.95, 26-Apr-2021
758,Revenue,CAHD,Academy Resource Base Funding,Other Public Bodies,Cabot Learning Federation,1491.13, 26-Apr-2021
759,Revenue,CAHD,Academy Resource Base Funding,Other Public Bodies,Cabot Learning Federation,1137.95, 26-Apr-2021
760,Revenue,CAHD,Academy Resource Base Funding,Other Public Bodies,Cabot Learning Federation,1137.95, 26-Apr-2021
761,Revenue,CAHD,Academy Resource Base Funding,Other Public Bodies,Cabot Learning Federation,1648.03, 26-Apr-2021
762,Revenue,CAHD,Academy Resource Base Funding,Other Public Bodies,Cabot Learning Federation,627.77, 26-Apr-2021
763,Revenue,CAHD,Academy Resource Base Funding,Other Public Bodies,Cabot Learning Federation,981.05, 26-Apr-2021
764,Revenue,CAHD,Academy Resource Base Funding,Other Public Bodies,Cabot Learning Federation,627.77, 26-Apr-2021
765,Revenue,CAHD,Academy Resource Base Funding,Other Public Bodies,Cabot Learning Federation,1491.13, 26-Apr-2021
766,Revenue,CAHD,Academy Resource Base Funding,Other Public Bodies,Cabot Learning Federation,2118.90, 26-Apr-2021
767,Revenue,CAHD,Academy Resource Base Funding,Other Public Bodies,Cabot Learning Federation,1137.95, 26-Apr-2021
768,Revenue,CAHD,Academy Resource Base Funding,Other Public Bodies,Cabot Learning Federation,1137.95, 26-Apr-2021
769,Revenue,CAHD,Academy Resource Base Funding,Other Public Bodies,Cabot Learning Federation,1137.95, 26-Apr-2021
770,Revenue,CAHD,Academy Resource Base Funding,Other Public Bodies,Cabot Learning Federation,1137.95, 26-Apr-2021
771,Revenue,CAHD,Academy Resource Base Funding,Other Public Bodies,Cabot Learning Federation,1648.03, 26-Apr-2021
772,Revenue,CAHD,Academy Resource Base Funding,Other Public Bodies,Cabot Learning Federation,1648.03, 26-Apr-2021
773,Revenue,CAHD,Academy Resource Base Funding,Other Public Bodies,Cabot Learning Federation,1648.03, 26-Apr-2021
774,Revenue,CAHD,Academy Resource Base Funding,Other Public Bodies,Cabot Learning Federation,1648.03, 26-Apr-2021
775,Revenue,CAHD,Statemented Support Payments to OLAs,Other L.A.s - General,Cabot Learning Federation,872.46, 21-Apr-2021
776,Revenue,CAHD,Statemented Support Academies,Other Public Bodies,Cabot Learning Federation,1626.67, 30-Apr-2021
777,Revenue,CAHD,Statemented Support Academies,Other Public Bodies,Cabot Learning Federation,710.58, 30-Apr-2021
778,Revenue,CAHD,Statemented Support Academies,Other Public Bodies,Cabot Learning Federation,804.08, 30-Apr-2021
779,Revenue,CAHD,Statemented Support Academies,Other Public Bodies,Cabot Learning Federation,554.13, 30-Apr-2021
780,Revenue,CAHD,Statemented Support Academies,Other Public Bodies,Cabot Learning Federation,742.77, 30-Apr-2021
781,Revenue,CAHD,Statemented Support Academies,Other Public Bodies,Cabot Learning Federation,778.14, 30-Apr-2021
782,Revenue,CAHD,Statemented Support Academies,Other Public Bodies,Cabot Learning Federation,813.51, 30-Apr-2021
783,Revenue,CAHD,Schools Block Growth Contingency,Other Public Bodies,Cabot Learning Federation,28147.06, 27-Apr-2021
784,Revenue,CAHD,Statemented Support Payments to OLAs,Other L.A.s - General,Cabot Learning Federation,601.29, 21-Apr-2021
785,Revenue,CAHD,Statemented Support Academies,Other Public Bodies,Cabot Learning Federation,1131.84, 30-Apr-2021
786,Revenue,CAHD,Statemented Support Academies,Other Public Bodies,Cabot Learning Federation,589.50, 30-Apr-2021
787,Revenue,CAHD,Statemented Support Academies,Other Public Bodies,Cabot Learning Federation,554.13, 30-Apr-2021
788,Revenue,CAHD,Statemented Support Academies,Other Public Bodies,Cabot Learning Federation,801.72, 30-Apr-2021
789,Revenue,CAHD,Statemented Support Academies,Other Public Bodies,Cabot Learning Federation,1096.47, 30-Apr-2021
790,Revenue,CAHD,Statemented Support Academies,Other Public Bodies,Cabot Learning Federation,730.98, 30-Apr-2021
791,Revenue,CAHD,Statemented Support Academies,Other Public Bodies,Cabot Learning Federation,907.83, 30-Apr-2021
792,Revenue,CAHD,Statemented Support Academies,Other Public Bodies,Cabot Learning Federation,1150.25, 30-Apr-2021
793,Revenue,CAHD,Statemented Support Academies,Other Public Bodies,Cabot Learning Federation,801.92, 30-Apr-2021
794,Revenue,CAHD,Statemented Support Academies,Other Public Bodies,Cabot Learning Federation,530.55, 30-Apr-2021
795,Revenue,CAHD,Statemented Support Academies,Other Public Bodies,Cabot Learning Federation,931.41, 30-Apr-2021
796,Revenue,CAHD,Statemented Support Payments to OLAs,Other L.A.s - General,Cabot Learning Federation,1062.33, 21-Apr-2021
797,Revenue,CAHD,Statemented Support Payments to OLAs,Other L.A.s - General,Cabot Learning Federation,888.33, 21-Apr-2021
798,Revenue,CAHD,Statemented Support Academies,Other Public Bodies,Cabot Learning Federation,577.50, 30-Apr-2021
799,Revenue,CAHD,Statemented Support Academies,Other Public Bodies,Cabot Learning Federation,1297.08, 30-Apr-2021
800,Revenue,CAHD,Statemented Support Academies,Other Public Bodies,Cabot Learning Federation,966.83, 30-Apr-2021
801,Revenue,CAHD,Statemented Support Academies,Other Public Bodies,Cabot Learning Federation,872.46, 30-Apr-2021
802,Revenue,CAHD,Statemented Support Payments to OLAs,Other L.A.s - General,Cabot Learning Federation,665.33, 21-Apr-2021
803,Revenue,CAHD,Sexual Health,Other Small Contracts,Cadbury Heath Healthcare,1288.00, 30-Apr-2021
804,Revenue,CAHD,Sexual Health,Other Small Contracts,Cadbury Heath Healthcare,1293.90, 30-Apr-2021
805,Revenue,CAHD,NHS Health Checks,Other Small Contracts,Cadbury Heath Healthcare,2514.67, 30-Apr-2021
806,Revenue,CAHD,Drug and Alcohol Programme,Other Small Contracts,Cadbury Heath Healthcare,3045.00, 30-Apr-2021
807,Revenue,CAHD,Early Years Inclusion Fund,Other Public Bodies,Caerleon Childcare,2650.00, 15-Apr-2021
808,Revenue,CAHD,North - Community based support,Permanent Nursing,Caernarvon House,3532.80, 06-Apr-2021
809,Revenue,CAHD,North - Community based support,Permanent Nursing,Caernarvon House,1177.60, 06-Apr-2021
810,Revenue,CAHD,North - S117,Permanent Nursing,Caernarvon House,2992.68, 06-Apr-2021
811,Revenue,CAHD,North - S117,Permanent Nursing,Caernarvon House,997.56, 06-Apr-2021
812,Revenue,CAHD,South - Commissioned Services,Permanent Nursing,Caernarvon House,3686.40, 06-Apr-2021
813,Revenue,CAHD,South - Commissioned Services,Permanent Nursing,Caernarvon House,1228.80, 06-Apr-2021
814,Revenue,CAHD,South - S117,Permanent Nursing,Caernarvon House,3686.40, 06-Apr-2021
815,Revenue,CAHD,South - S117,Permanent Nursing,Caernarvon House,1228.80, 06-Apr-2021
816,Revenue,CAHD,South - Commissioned Services,Permanent Nursing,Caernarvon House,8774.29, 06-Apr-2021
817,Revenue,CAHD,South - Commissioned Services,Permanent Nursing,Caernarvon House,2220.00, 06-Apr-2021
818,Revenue,CAHD,South - Commissioned Services,Permanent Nursing,Caernarvon House,740.00, 06-Apr-2021
819,Revenue,CAHD,South - Commissioned Services,Permanent Nursing,Caernarvon House,3600.00, 06-Apr-2021
820,Revenue,CAHD,South - Commissioned Services,Permanent Nursing,Caernarvon House,1200.00, 06-Apr-2021
821,Revenue,CAHD,CSC - Residential Placements,Permanent Residential,Cambian Childcare Ltd,18428.70, 27-Apr-2021
822,Revenue,CAHD,18-25 Year Olds,Permanent Residential,Cambian Childcare Ltd,22500.00, 28-Apr-2021
823,Revenue,CAHD,CSC - Residential Placements,Permanent Residential,Cambian Childcare Ltd,23357.10, 28-Apr-2021
824,Revenue,CAHD,Post 16 High Needs Placements,Other Private Contractors,Cambian Whinfell School Limited,48171.48, 15-Apr-2021
825,Revenue,CAHD,Post 16 High Needs Placements,Other Private Contractors,Cambian Whinfell School Limited,24100.00, 30-Apr-2021
826,Revenue,CAHD,Post 16 High Needs Placements,Other Private Contractors,Cambian Whinfell School Limited,60373.04, 15-Apr-2021
827,Revenue,CAHD,Post 16 High Needs Placements,Other Private Contractors,Cambian Whinfell School Limited,78575.77, 09-Apr-2021
828,Revenue,CAHD,North - Community based support,Day Care / Social Activities,Camphill Communities Thornbury Limited,1173.69, 01-Apr-2021
829,Revenue,CAHD,North - Community based support,Other Small Contracts,Camphill Communities Thornbury Limited,1632.54, 01-Apr-2021
830,Revenue,CAHD,North - Community based support,Supported Living,Camphill Communities Thornbury Limited,1086.75, 01-Apr-2021
831,Revenue,CAHD,North - Community based support,Day Care / Social Activities,Camphill Communities Thornbury Limited,1168.86, 09-Apr-2021
832,Revenue,CAHD,North - Community based support,Other Small Contracts,Camphill Communities Thornbury Limited,1608.39, 09-Apr-2021
833,Revenue,CAHD,North - Community based support,Supported Living,Camphill Communities Thornbury Limited,1062.60, 09-Apr-2021
834,Revenue,CAHD,North - Community based support,Day Care / Social Activities,Camphill Communities Thornbury Limited,1168.86, 16-Apr-2021
835,Revenue,CAHD,North - Community based support,Other Small Contracts,Camphill Communities Thornbury Limited,1627.71, 16-Apr-2021
836,Revenue,CAHD,North - Community based support,Supported Living,Camphill Communities Thornbury Limited,1091.58, 16-Apr-2021
837,Revenue,CAHD,North - Community based support,Day Care / Social Activities,Camphill Communities Thornbury Limited,1159.20, 23-Apr-2021
838,Revenue,CAHD,North - Community based support,Other Small Contracts,Camphill Communities Thornbury Limited,1637.37, 23-Apr-2021
839,Revenue,CAHD,North - Community based support,Supported Living,Camphill Communities Thornbury Limited,1067.43, 23-Apr-2021
840,Revenue,CAHD,North - Community based support,Day Care / Social Activities,Camphill Communities Thornbury Limited,777.63, 30-Apr-2021
841,Revenue,CAHD,North - Community based support,Other Small Contracts,Camphill Communities Thornbury Limited,1651.86, 30-Apr-2021
842,Revenue,CAHD,North - Community based support,Supported Living,Camphill Communities Thornbury Limited,1057.77, 30-Apr-2021
843,Revenue,CAHD,CSC - Agency Fostering,Foster Parent Allowances,Capstone Foster Care (South West) Limited,3385.80, 27-Apr-2021
844,Revenue,CAHD,CSC - Agency Fostering,Foster Parent Allowances,Capstone Foster Care (South West) Limited,3385.80, 29-Apr-2021
845,Revenue,CAHD,Central - Commissioned Services,Other Small Contracts,Care 1st Homecare,3017.10, 08-Apr-2021
846,Revenue,CAHD,Central - Commissioned Services,Other Small Contracts,Care 1st Homecare,2999.30, 08-Apr-2021
847,Revenue,CAHD,Covid - ASC - Infection Control,Grants to Voluntary Bodies,Care Futures,5076.05, 14-Apr-2021
848,Revenue,CAHD,North - Community based support,Supported Living,Care Horizons,4076.46, 06-Apr-2021
849,Revenue,CAHD,North - Community based support,Supported Living,Care Horizons,1390.07, 06-Apr-2021
850,Revenue,CAHD,North - Community based support,Supported Living,Care Horizons,4076.46, 06-Apr-2021
851,Revenue,CAHD,North - Community based support,Supported Living,Care Horizons,1390.07, 06-Apr-2021
852,Revenue,CAHD,Central - Commissioned Services,Other Small Contracts,Care Horizons Limited,3786.24, 14-Apr-2021
853,Revenue,CAHD,South - Commissioned Services,Other Small Contracts,Care Horizons Limited,788.80, 14-Apr-2021
854,Revenue,CAHD,North - Community based support,Day Care / Social Activities,Care Horizons Limited,414.12, 14-Apr-2021
855,Revenue,CAHD,North - Community based support,Other Small Contracts,Care Horizons Limited,571.88, 14-Apr-2021
856,Revenue,CAHD,Younger MH non-res purchasing,Other Small Contracts,Care Horizons Limited,236.64, 14-Apr-2021
857,Revenue,CAHD,Central - Commissioned Services,Other Small Contracts,Care Horizons Limited,4220.08, 23-Apr-2021
858,Revenue,CAHD,South - Commissioned Services,Other Small Contracts,Care Horizons Limited,788.80, 23-Apr-2021
859,Revenue,CAHD,North - Community based support,Day Care / Social Activities,Care Horizons Limited,414.12, 23-Apr-2021
860,Revenue,CAHD,North - Community based support,Other Small Contracts,Care Horizons Limited,453.56, 23-Apr-2021
861,Revenue,CAHD,Younger MH non-res purchasing,Other Small Contracts,Care Horizons Limited,236.64, 23-Apr-2021
862,Revenue,CAHD,ASC Rapid Testing Fund,Grants to Voluntary Bodies,Care Horizons Limited,805.17, 06-Apr-2021
863,Revenue,CAHD,Central - Commissioned Services,Other Small Contracts,Carepride Ltd,719.78, 28-Apr-2021
864,Revenue,CAHD,South - Commissioned Services,Other Small Contracts,Carepride Ltd,73.95, 28-Apr-2021
865,Revenue,CAHD,North - Community based support,Other Small Contracts,Carepride Ltd,182.41, 28-Apr-2021
866,Revenue,CAHD,Central - Commissioned Services,Other Small Contracts,Carepride Ltd,764.15, 08-Apr-2021
867,Revenue,CAHD,South - Commissioned Services,Other Small Contracts,Carepride Ltd,73.95, 08-Apr-2021
868,Revenue,CAHD,North - Community based support,Other Small Contracts,Carepride Ltd,211.99, 08-Apr-2021
869,Revenue,CAHD,Central - Commissioned Services,Other Small Contracts,Carepride Ltd,749.36, 26-Apr-2021
870,Revenue,CAHD,South - Commissioned Services,Other Small Contracts,Carepride Ltd,78.88, 26-Apr-2021
871,Revenue,CAHD,North - Community based support,Other Small Contracts,Carepride Ltd,236.64, 26-Apr-2021
872,Revenue,CAHD,Central - Commissioned Services,Other Small Contracts,Carepride Ltd,778.94, 26-Apr-2021
873,Revenue,CAHD,South - Commissioned Services,Other Small Contracts,Carepride Ltd,78.88, 26-Apr-2021
874,Revenue,CAHD,North - Community based support,Other Small Contracts,Carepride Ltd,231.71, 26-Apr-2021
875,Revenue,CAHD,Central - Commissioned Services,Other Small Contracts,Carepride Ltd,791.28, 28-Apr-2021
876,Revenue,CAHD,South - Commissioned Services,Other Small Contracts,Carepride Ltd,75.60, 28-Apr-2021
877,Revenue,CAHD,North - Community based support,Other Small Contracts,Carepride Ltd,231.84, 28-Apr-2021
878,Revenue,CAHD,Covid  - Workforce capacity,Grants to Voluntary Bodies,Carepride Ltd,3753.19, 08-Apr-2021
879,Revenue,CAHD,SLA Grants - Support Serv,Grants to Voluntary Bodies,Carers Support Centre,12275.00, 28-Apr-2021
880,Revenue,CAHD,SLA Grants - Support Serv,Grants to Voluntary Bodies,Carers Support Centre,25275.00, 28-Apr-2021
881,Revenue,CAHD,Health Inequalities,Other Small Contracts,Carers Support Centre,60477.00, 28-Apr-2021
882,Revenue,CAHD,Supporting People Programme,Grants to Voluntary Bodies,Caring for Communities and People,12849.00, 01-Apr-2021
883,Revenue,CAHD,CSC - Section 17 - NORTH,Personal Needs of Clients,Caring for Communities and People,3357.71, 22-Apr-2021
884,Revenue,CAHD,CSC - Section 17 - NORTH,Personal Needs of Clients,Caring for Communities and People,734.00, 22-Apr-2021
885,Revenue,CAHD,South - Commissioned Services,Legal Fees,Individual,600.00, 26-Apr-2021
886,Revenue,CAHD,Social Lettings Agency,Rent,Individual,699.32, 21-Apr-2021
887,Revenue,CAHD,Social Lettings Agency,Fees - General,Individual,20.57, 21-Apr-2021
888,Revenue,CAHD,CSC - Care Leavers Support Costs,Fixtures & Fittings - Fixed,Carpets of Yate Limited,910.00, 16-Apr-2021
889,Revenue,CAHD,Statemented Support Academies,Other Public Bodies,Castle School Education Trust,530.55, 30-Apr-2021
890,Revenue,CAHD,Statemented Support Academies,Other Public Bodies,Castle School Education Trust,778.14, 30-Apr-2021
891,Revenue,CAHD,Statemented Support Academies,Other Public Bodies,Castle School Education Trust,821.50, 30-Apr-2021
892,Revenue,CAHD,Statemented Support Academies,Other Public Bodies,Castle School Education Trust,672.03, 30-Apr-2021
893,Revenue,CAHD,Statemented Support Academies,Other Public Bodies,Castle School Education Trust,577.71, 30-Apr-2021
894,Revenue,CAHD,Statemented Support Academies,Other Public Bodies,Castle School Education Trust,505.08, 30-Apr-2021
895,Revenue,CAHD,Statemented Support Academies,Other Public Bodies,Castle School Education Trust,613.08, 30-Apr-2021
896,Revenue,CAHD,Statemented Support Academies,Other Public Bodies,Castle School Education Trust,672.03, 30-Apr-2021
897,Revenue,CAHD,Statemented Support Academies,Other Public Bodies,Castle School Education Trust,1120.05, 30-Apr-2021
898,Revenue,CAHD,Statemented Support Academies,Other Public Bodies,Castle School Education Trust,636.66, 30-Apr-2021
899,Revenue,CAHD,Statemented Support Academies,Other Public Bodies,Castle School Education Trust,589.08, 30-Apr-2021
900,Revenue,CAHD,Statemented Support Academies,Other Public Bodies,Castle School Education Trust,954.99, 30-Apr-2021
901,Revenue,CAHD,Statemented Support Academies,Other Public Bodies,Castle School Education Trust,577.71, 30-Apr-2021
902,Revenue,CAHD,Statemented Support Academies,Other Public Bodies,Castle School Education Trust,1248.33, 30-Apr-2021
903,Revenue,CAHD,Statemented Support Academies,Other Public Bodies,Castle School Education Trust,624.87, 30-Apr-2021
904,Revenue,CAHD,Statemented Support Academies,Other Public Bodies,Castle School Education Trust,1190.79, 30-Apr-2021
905,Revenue,CAHD,Statemented Support Academies,Other Public Bodies,Castle School Education Trust,841.00, 30-Apr-2021
906,Revenue,CAHD,Statemented Support Academies,Other Public Bodies,Castle School Education Trust,1237.95, 30-Apr-2021
907,Revenue,CAHD,Statemented Support Academies,Other Public Bodies,Castle School Education Trust,1061.10, 30-Apr-2021
908,Revenue,CAHD,Statemented Support Academies,Other Public Bodies,Castle School Education Trust,518.76, 30-Apr-2021
909,Revenue,CAHD,Statemented Support Academies,Other Public Bodies,Castle School Education Trust,577.71, 30-Apr-2021
910,Revenue,CAHD,Statemented Support Academies,Other Public Bodies,Castle School Education Trust,1143.63, 30-Apr-2021
911,Revenue,CAHD,Statemented Support Academies,Other Public Bodies,Castle School Education Trust,943.33, 30-Apr-2021
912,Revenue,CAHD,Statemented Support Academies,Other Public Bodies,Castle School Education Trust,754.25, 30-Apr-2021
913,Revenue,CAHD,Statemented Support Academies,Other Public Bodies,Castle School Education Trust,1485.54, 30-Apr-2021
914,Revenue,CAHD,Statemented Support Academies,Other Public Bodies,Castle School Education Trust,1177.50, 30-Apr-2021
915,Revenue,CAHD,Statemented Support Academies,Other Public Bodies,Castle School Education Trust,888.75, 30-Apr-2021
916,Revenue,CAHD,Statemented Support Academies,Other Public Bodies,Castle School Education Trust,1261.75, 30-Apr-2021
917,Revenue,CAHD,Statemented Support Academies,Other Public Bodies,Castle School Education Trust,1322.75, 30-Apr-2021
918,Revenue,CAHD,Statemented Support Academies,Other Public Bodies,Castle School Education Trust,801.92, 30-Apr-2021
919,Revenue,CAHD,Statemented Support Academies,Other Public Bodies,Castle School Education Trust,943.17, 30-Apr-2021
920,Revenue,CAHD,Statemented Support Academies,Other Public Bodies,Castle School Education Trust,1267.50, 30-Apr-2021
921,Revenue,CAHD,Academy Resource Base Funding,Other Public Bodies,Castle School Education Trust,3287.68, 26-Apr-2021
922,Revenue,CAHD,Academy Resource Base Funding,Other Public Bodies,Castle School Education Trust,1648.03, 26-Apr-2021
923,Revenue,CAHD,Academy Resource Base Funding,Other Public Bodies,Castle School Education Trust,1648.03, 26-Apr-2021
924,Revenue,CAHD,Academy Resource Base Funding,Other Public Bodies,Castle School Education Trust,1648.03, 26-Apr-2021
925,Revenue,CAHD,Academy Resource Base Funding,Other Public Bodies,Castle School Education Trust,1648.03, 26-Apr-2021
926,Revenue,CAHD,Academy Resource Base Funding,Other Public Bodies,Castle School Education Trust,1648.03, 26-Apr-2021
927,Revenue,CAHD,Academy Resource Base Funding,Other Public Bodies,Castle School Education Trust,1648.03, 26-Apr-2021
928,Revenue,CAHD,Academy Resource Base Funding,Other Public Bodies,Castle School Education Trust,2118.90, 26-Apr-2021
929,Revenue,CAHD,Academy Resource Base Funding,Other Public Bodies,Castle School Education Trust,1648.03, 26-Apr-2021
930,Revenue,CAHD,Academy Resource Base Funding,Other Public Bodies,Castle School Education Trust,1648.03, 26-Apr-2021
931,Revenue,CAHD,Academy Resource Base Funding,Other Public Bodies,Castle School Education Trust,1648.03, 26-Apr-2021
932,Revenue,CAHD,Academy Resource Base Funding,Other Public Bodies,Castle School Education Trust,2432.78, 26-Apr-2021
933,Revenue,CAHD,Academy Resource Base Funding,Other Public Bodies,Castle School Education Trust,1648.03, 26-Apr-2021
934,Revenue,CAHD,Academy Resource Base Funding,Other Public Bodies,Castle School Education Trust,2432.78, 26-Apr-2021
935,Revenue,CAHD,Academy Resource Base Funding,Other Public Bodies,Castle School Education Trust,2432.78, 26-Apr-2021
936,Revenue,CAHD,Academy Resource Base Funding,Other Public Bodies,Castle School Education Trust,2432.78, 26-Apr-2021
937,Revenue,CAHD,Schools Block Growth Contingency,Other Public Bodies,Castle School Education Trust,35262.50, 27-Apr-2021
938,Revenue,CAHD,Statemented Support Academies,Other Public Bodies,Castle School Education Trust,672.03, 30-Apr-2021
939,Revenue,CAHD,Statemented Support Academies,Other Public Bodies,Castle School Education Trust,822.50, 30-Apr-2021
940,Revenue,CAHD,Statemented Support Academies,Other Public Bodies,Castle School Education Trust,872.46, 30-Apr-2021
941,Revenue,CAHD,Statemented Support Academies,Other Public Bodies,Castle School Education Trust,848.88, 30-Apr-2021
942,Revenue,CAHD,Statemented Support Academies,Other Public Bodies,Castle School Education Trust,541.58, 30-Apr-2021
943,Revenue,CAHD,Statemented Support Academies,Other Public Bodies,Castle School Education Trust,723.17, 30-Apr-2021
944,Revenue,CAHD,Statemented Support Academies,Other Public Bodies,Castle School Education Trust,956.00, 30-Apr-2021
945,Revenue,CAHD,Statemented Support Academies,Other Public Bodies,Castle School Education Trust,1628.42, 30-Apr-2021
946,Revenue,CAHD,Statemented Support Academies,Other Public Bodies,Castle School Education Trust,560.17, 30-Apr-2021
947,Revenue,CAHD,Statemented Support Academies,Other Public Bodies,Castle School Education Trust,630.58, 30-Apr-2021
948,Revenue,CAHD,Statemented Support Academies,Other Public Bodies,Castle School Education Trust,778.14, 30-Apr-2021
949,Revenue,CAHD,Statemented Support Academies,Other Public Bodies,Castle School Education Trust,941.58, 30-Apr-2021
950,Revenue,CAHD,Statemented Support Academies,Other Public Bodies,Castle School Education Trust,613.08, 30-Apr-2021
951,Revenue,CAHD,Statemented Support Academies,Other Public Bodies,Castle School Educational Turust,1129.92, 30-Apr-2021
952,Revenue,CAHD,Statemented Support Academies,Other Public Bodies,Castle School Educational Turust,854.00, 30-Apr-2021
953,Revenue,CAHD,Statemented Support Academies,Other Public Bodies,Castle School Educational Turust,790.58, 30-Apr-2021
954,Revenue,CAHD,Statemented Support Academies,Other Public Bodies,Castle School Educational Turust,508.67, 30-Apr-2021
955,Revenue,CAHD,Statemented Support Academies,Other Public Bodies,Castle School Educational Turust,1148.20, 30-Apr-2021
956,Revenue,CAHD,Statemented Support Academies,Other Public Bodies,Castle School Educational Turust,1097.25, 30-Apr-2021
957,Revenue,CAHD,Statemented Support Academies,Other Public Bodies,Castle School Educational Turust,580.67, 30-Apr-2021
958,Revenue,CAHD,Statemented Support Academies,Other Public Bodies,Castle School Educational Turust,925.08, 30-Apr-2021
959,Revenue,CAHD,CSC - Care Leavers Support Costs,Membership Fees,Catch 22 Charity Ltd,2995.00, 09-Apr-2021
960,Revenue,CAHD,Social Lettings Agency,Rent,Individual,595.11, 01-Apr-2021
961,Revenue,CAHD,Social Lettings Agency,Fees - General,Individual,10.53, 01-Apr-2021
962,Revenue,CAHD,Social Lettings Agency,Rent,Individual,658.30, 30-Apr-2021
963,Revenue,CAHD,Social Lettings Agency,Fees & Charges Income - General,Individual,-52.66, 30-Apr-2021
964,Revenue,CAHD,North - Community based support,Day Care / Social Activities,Causeway House,1632.48, 06-Apr-2021
965,Revenue,CAHD,North - Community based support,Day Care / Social Activities,Causeway House,556.68, 06-Apr-2021
966,Revenue,CAHD,South - Commissioned Services,Day Care / Social Activities,Causeway House,4018.65, 06-Apr-2021
967,Revenue,CAHD,South - Commissioned Services,Day Care / Social Activities,Causeway House,1370.36, 06-Apr-2021
968,Revenue,CAHD,18-25 Year Olds,Day Care / Social Activities,Causeway House,3377.19, 06-Apr-2021
969,Revenue,CAHD,18-25 Year Olds,Day Care / Social Activities,Causeway House,1151.62, 06-Apr-2021
970,Revenue,CAHD,Central - Commissioned Services,Day Care / Social Activities,Causeway House,2753.52, 06-Apr-2021
971,Revenue,CAHD,Central - Commissioned Services,Day Care / Social Activities,Causeway House,938.95, 06-Apr-2021
972,Revenue,CAHD,Central - Commissioned Services,Day Care / Social Activities,Causeway House,2977.08, 06-Apr-2021
973,Revenue,CAHD,Central - Commissioned Services,Day Care / Social Activities,Causeway House,1015.18, 06-Apr-2021
974,Revenue,CAHD,North - Community based support,Day Care / Social Activities,Causeway House,2468.04, 06-Apr-2021
975,Revenue,CAHD,North - Community based support,Day Care / Social Activities,Causeway House,841.60, 06-Apr-2021
976,Revenue,CAHD,North - Community based support,Day Care / Social Activities,Causeway House,3676.92, 06-Apr-2021
977,Revenue,CAHD,North - Community based support,Day Care / Social Activities,Causeway House,1253.83, 06-Apr-2021
978,Revenue,CAHD,Central - Commissioned Services,Day Care / Social Activities,Causeway House,2793.87, 06-Apr-2021
979,Revenue,CAHD,Central - Commissioned Services,Day Care / Social Activities,Causeway House,931.29, 06-Apr-2021
980,Revenue,CAHD,North - Community based support,Day Care / Social Activities,Causeway House,2409.06, 06-Apr-2021
981,Revenue,CAHD,North - Community based support,Day Care / Social Activities,Causeway House,821.49, 06-Apr-2021
982,Revenue,CAHD,School Admissions Related Expenses,Subsistence,Celia Butler Education Management and Consultancy,850.00, 12-Apr-2021
983,Revenue,CAHD,Training - Adult Services,Training Expenses,Central Consultancy & Training,3022.50, 09-Apr-2021
984,Revenue,CAHD,Training - Adult Services,Training Expenses,Central Consultancy & Training,2015.00, 30-Apr-2021
985,Revenue,CAHD,Central - Commissioned Services,Permanent Residential,Cepen Lodge,2056.11, 06-Apr-2021
986,Revenue,CAHD,Central - Commissioned Services,Permanent Residential,Cepen Lodge,685.37, 06-Apr-2021
987,Revenue,CAHD,South - Commissioned Services,Permanent Residential,Challenge House,2125.83, 06-Apr-2021
988,Revenue,CAHD,South - Commissioned Services,Permanent Residential,Challenge House,708.61, 06-Apr-2021
989,Revenue,CAHD,North - S117,Permanent Residential,Challenge House,1928.55, 06-Apr-2021
990,Revenue,CAHD,North - S117,Permanent Residential,Challenge House,642.85, 06-Apr-2021
991,Revenue,CAHD,North - Community based support,Permanent Residential,Challenge House,1674.75, 06-Apr-2021
992,Revenue,CAHD,North - Community based support,Permanent Residential,Challenge House,558.25, 06-Apr-2021
993,Revenue,CAHD,North - Community based support,Permanent Residential,Challenge House,2100.00, 06-Apr-2021
994,Revenue,CAHD,North - Community based support,Permanent Residential,Challenge House,700.00, 06-Apr-2021
995,Revenue,CAHD,Central - Commissioned Services,Permanent Residential,Challenge House,1774.23, 06-Apr-2021
996,Revenue,CAHD,Central - Commissioned Services,Permanent Residential,Challenge House,591.41, 06-Apr-2021
997,Revenue,CAHD,Central - Commissioned Services,Permanent Residential,Challenge House,2040.00, 06-Apr-2021
998,Revenue,CAHD,Central - Commissioned Services,Permanent Residential,Challenge House,680.00, 06-Apr-2021
999,Revenue,CAHD,North - Community based support,Permanent Residential,Challenge House,2125.80, 06-Apr-2021
1000,Revenue,CAHD,North - Community based support,Permanent Residential,Challenge House,708.60, 06-Apr-2021
1001,Revenue,CAHD,North - S117,Permanent Nursing,Challenge House,1839.96, 06-Apr-2021
1002,Revenue,CAHD,North - S117,Permanent Nursing,Challenge House,613.32, 06-Apr-2021
1003,Revenue,CAHD,North - Community based support,Permanent Nursing,Challenge House,1839.96, 06-Apr-2021
1004,Revenue,CAHD,North - Community based support,Permanent Nursing,Challenge House,613.32, 06-Apr-2021
1005,Revenue,CAHD,North - Community based support,Permanent Nursing,Challenge House,2404.11, 06-Apr-2021
1006,Revenue,CAHD,North - Community based support,Permanent Nursing,Challenge House,801.37, 06-Apr-2021
1007,Revenue,CAHD,Covid 19- Spend on behalf of NHS,Respite Planned - Nursing,Challenge House,6504.00, 06-Apr-2021
1008,Revenue,CAHD,Covid 19- Spend on behalf of NHS,Respite Planned - Residential,Challenge House,3600.00, 06-Apr-2021
1009,Revenue,CAHD,Covid 19- Spend on behalf of NHS,Respite Planned - Residential,Challenge House,1542.86, 06-Apr-2021
1010,Revenue,CAHD,Covid 19- Spend on behalf of NHS,Respite Planned - Nursing,Challenge House,6504.00, 06-Apr-2021
1011,Revenue,CAHD,North - Community based support,Permanent Nursing,Challenge House,2550.00, 06-Apr-2021
1012,Revenue,CAHD,North - Community based support,Permanent Nursing,Challenge House,869.55, 06-Apr-2021
1013,Revenue,CAHD,North - Community based support,Permanent Nursing,Challenge House,11900.00, 06-Apr-2021
1014,Revenue,CAHD,North - Community based support,Permanent Nursing,Challenge House,2550.00, 06-Apr-2021
1015,Revenue,CAHD,North - Community based support,Permanent Nursing,Challenge House,869.55, 06-Apr-2021
1016,Revenue,CAHD,South - Commissioned Services,Permanent Nursing,Challenge House,2206.41, 06-Apr-2021
1017,Revenue,CAHD,South - Commissioned Services,Permanent Nursing,Challenge House,752.39, 06-Apr-2021
1018,Revenue,CAHD,North - Community based support,Permanent Nursing,Challenge House,2454.48, 06-Apr-2021
1019,Revenue,CAHD,North - Community based support,Permanent Nursing,Challenge House,836.98, 06-Apr-2021
1020,Revenue,CAHD,Covid 19- Spend on behalf of NHS,Respite Planned - Residential,Challenge House,3600.00, 06-Apr-2021
1021,Revenue,CAHD,Covid 19- Spend on behalf of NHS,Respite Planned - Residential,Challenge House,771.43, 06-Apr-2021
1022,Revenue,CAHD,North - Community based support,Permanent Residential,Challenge House,4857.14, 06-Apr-2021
1023,Revenue,CAHD,North - Community based support,Permanent Residential,Challenge House,2550.00, 06-Apr-2021
1024,Revenue,CAHD,North - Community based support,Permanent Residential,Challenge House,869.55, 06-Apr-2021
1025,Revenue,CAHD,South - Commissioned Services,Permanent Residential,Challenge House,2295.00, 06-Apr-2021
1026,Revenue,CAHD,South - Commissioned Services,Permanent Residential,Challenge House,782.60, 06-Apr-2021
1027,Revenue,CAHD,Covid 19- Spend on behalf of NHS,Respite Planned - Residential,Challenge House,7071.43, 06-Apr-2021
1028,Revenue,CAHD,North - Community based support,Permanent Residential,Challenge House,2550.00, 06-Apr-2021
1029,Revenue,CAHD,North - Community based support,Permanent Residential,Challenge House,1578.57, 06-Apr-2021
1030,Revenue,CAHD,North - Community based support,Permanent Residential,Challenge House,869.55, 06-Apr-2021
1031,Revenue,CAHD,Covid 19- Spend on behalf of NHS,Respite Planned - Residential,Challenge House,4885.71, 06-Apr-2021
1032,Revenue,CAHD,Covid 19- Spend on behalf of NHS,Respite Planned - Nursing,Challenge House,3252.00, 06-Apr-2021
1033,Revenue,CAHD,Covid 19- Spend on behalf of NHS,Respite Planned - Nursing,Challenge House,1084.00, 06-Apr-2021
1034,Revenue,CAHD,Covid 19- Spend on behalf of NHS,Respite Planned - Nursing,Challenge House,1084.00, 06-Apr-2021
1035,Revenue,CAHD,North - Community based support,Permanent Nursing,Challenge House,2163.06, 06-Apr-2021
1036,Revenue,CAHD,North - Community based support,Permanent Nursing,Challenge House,737.60, 06-Apr-2021
1037,Revenue,CAHD,North - Community based support,Permanent Nursing,Challenge House,2432.70, 06-Apr-2021
1038,Revenue,CAHD,North - Community based support,Permanent Nursing,Challenge House,829.55, 06-Apr-2021
1039,Revenue,CAHD,North - Community based support,Permanent Nursing,Challenge House,2554.20, 06-Apr-2021
1040,Revenue,CAHD,North - Community based support,Permanent Nursing,Challenge House,870.98, 06-Apr-2021
1041,Revenue,CAHD,North - Community based support,Permanent Residential,Challenge House,2340.90, 06-Apr-2021
1042,Revenue,CAHD,North - Community based support,Permanent Residential,Challenge House,798.25, 06-Apr-2021
1043,Revenue,CAHD,North - Community based support,Permanent Nursing,Challenge House,2163.06, 06-Apr-2021
1044,Revenue,CAHD,North - Community based support,Permanent Nursing,Challenge House,737.60, 06-Apr-2021
1045,Revenue,CAHD,Central - Commissioned Services,Permanent Nursing,Challenge House,1801.38, 06-Apr-2021
1046,Revenue,CAHD,Central - Commissioned Services,Permanent Nursing,Challenge House,600.46, 06-Apr-2021
1047,Revenue,CAHD,North - Community based support,Permanent Residential,Challenge House,1630.65, 06-Apr-2021
1048,Revenue,CAHD,North - Community based support,Permanent Residential,Challenge House,543.55, 06-Apr-2021
1049,Revenue,CAHD,Early Years High Needs Support,Other Private Contractors,Charfield Pre-School,616.50, 21-Apr-2021
1050,Revenue,CAHD,Covid Winter Grant Funding,Other Supplies & Services,Charis,24050.00, 08-Apr-2021
1051,Revenue,CAHD,CSC - Vinney Green Secure Unit,"Provisions (Food, etc)",Charles Saunders Limited,350.74, 01-Apr-2021
1052,Revenue,CAHD,CSC - Vinney Green Secure Unit,"Provisions (Food, etc)",Charles Saunders Limited,98.97, 01-Apr-2021
1053,Revenue,CAHD,Training - Adult Services,Training Expenses,Charlotte Fry,600.00, 08-Apr-2021
1054,Revenue,CAHD,Schools Block Growth Contingency,Other Public Bodies,Charlton Wood Primary Academy,56095.83, 27-Apr-2021
1055,Revenue,CAHD,Statemented Support Academies,Other Public Bodies,Charlton Wood Primary Academy,702.17, 30-Apr-2021
1056,Revenue,CAHD,Pathway 1 - Re-Ablement Home Care,Other Small Contracts,Cherish Able Care Limited,621.18, 16-Apr-2021
1057,Revenue,CAHD,Pathway 1 - Re-Ablement Home Care,Other Small Contracts,Cherish Able Care Limited,621.18, 29-Apr-2021
1058,Revenue,CAHD,Central - Commissioned Services,Other Small Contracts,Cherish Able Care Limited,2221.80, 08-Apr-2021
1059,Revenue,CAHD,South - Commissioned Services,Other Small Contracts,Cherish Able Care Limited,7355.50, 08-Apr-2021
1060,Revenue,CAHD,North - Community based support,Other Small Contracts,Cherish Able Care Limited,516.81, 08-Apr-2021
1061,Revenue,CAHD,Central - Commissioned Services,Other Small Contracts,Cherish Able Care Limited,2231.46, 09-Apr-2021
1062,Revenue,CAHD,South - Commissioned Services,Other Small Contracts,Cherish Able Care Limited,7378.30, 09-Apr-2021
1063,Revenue,CAHD,North - Community based support,Other Small Contracts,Cherish Able Care Limited,511.98, 09-Apr-2021
1064,Revenue,CAHD,Central - Commissioned Services,Other Small Contracts,Cherish Able Care Limited,2173.50, 23-Apr-2021
1065,Revenue,CAHD,South - Commissioned Services,Other Small Contracts,Cherish Able Care Limited,6156.15, 23-Apr-2021
1066,Revenue,CAHD,North - Community based support,Other Small Contracts,Cherish Able Care Limited,569.94, 23-Apr-2021
1067,Revenue,CAHD,Central - Commissioned Services,Other Small Contracts,Cherish Able Care Limited,2218.06, 28-Apr-2021
1068,Revenue,CAHD,South - Commissioned Services,Other Small Contracts,Cherish Able Care Limited,5762.04, 28-Apr-2021
1069,Revenue,CAHD,North - Community based support,Other Small Contracts,Cherish Able Care Limited,657.02, 28-Apr-2021
1070,Revenue,CAHD,18-25 Year Olds,Other Small Contracts,Cherry Orchards,1535.94, 08-Apr-2021
1071,Revenue,CAHD,South - Commissioned Services,Other Small Contracts,Cherry Orchards,6491.52, 14-Apr-2021
1072,Revenue,CAHD,Central - Commissioned Services,Other Small Contracts,Cherry Orchards,1806.42, 08-Apr-2021
1073,Revenue,CAHD,North - Community based support,Other Small Contracts,Cherry Orchards,685.86, 12-Apr-2021
1074,Revenue,CAHD,Central - Commissioned Services,Supported Living,Cherry Orchards,591.98, 06-Apr-2021
1075,Revenue,CAHD,18-25 Year Olds,Supported Living,Cherry Orchards,1522.89, 06-Apr-2021
1076,Revenue,CAHD,18-25 Year Olds,Supported Living,Cherry Orchards,519.31, 06-Apr-2021
1077,Revenue,CAHD,North - Community based support,Supported Living,Cherry Orchards,782.22, 06-Apr-2021
1078,Revenue,CAHD,S28A cases,Permanent Residential,Chescombe Trust Ltd,7469.79, 06-Apr-2021
1079,Revenue,CAHD,S28A cases,Permanent Residential,Chescombe Trust Ltd,2547.20, 06-Apr-2021
1080,Revenue,CAHD,Covid - ASC - Infection Control,Grants to Voluntary Bodies,Chescombe Trust Ltd,2160.61, 09-Apr-2021
1081,Revenue,CAHD,Statemented Support Payments to OLAs,Other L.A.s - General,Chester Park Junior School,1625.17, 21-Apr-2021
1082,Revenue,CAHD,Early Years Development,Training Expenses,Child1st Consultancy Limited,1000.00, 09-Apr-2021
1083,Revenue,CAHD,Early Years High Needs Support,Other Private Contractors,Chipping Sodbury Pre School,880.72, 21-Apr-2021
1084,Revenue,CAHD,18-25 Year Olds,Other Small Contracts,Cintre,896.40, 09-Apr-2021
1085,Revenue,CAHD,Central - Commissioned Services,Other Small Contracts,Cintre,149.40, 09-Apr-2021
1086,Revenue,CAHD,South - Commissioned Services,Other Small Contracts,Cintre,1314.72, 09-Apr-2021
1087,Revenue,CAHD,18-25 Year Olds,Other Small Contracts,Cintre,896.40, 09-Apr-2021
1088,Revenue,CAHD,Central - Commissioned Services,Other Small Contracts,Cintre,199.20, 09-Apr-2021
1089,Revenue,CAHD,South - Commissioned Services,Other Small Contracts,Cintre,1274.88, 09-Apr-2021
1090,Revenue,CAHD,18-25 Year Olds,Other Small Contracts,Cintre,896.40, 23-Apr-2021
1091,Revenue,CAHD,Central - Commissioned Services,Other Small Contracts,Cintre,119.52, 23-Apr-2021
1092,Revenue,CAHD,South - Commissioned Services,Other Small Contracts,Cintre,1274.88, 23-Apr-2021
1093,Revenue,CAHD,18-25 Year Olds,Other Small Contracts,Cintre,916.20, 28-Apr-2021
1094,Revenue,CAHD,Central - Commissioned Services,Other Small Contracts,Cintre,203.60, 28-Apr-2021
1095,Revenue,CAHD,South - Commissioned Services,Other Small Contracts,Cintre,1364.12, 28-Apr-2021
1096,Revenue,CAHD,ASC Rapid Testing Fund,Grants to Voluntary Bodies,Cintre,1341.95, 08-Apr-2021
1097,Revenue,CAHD,Planning and Partnerships Procurement,Membership Fees,CIPFA Business Limited,243.24, 12-Apr-2021
1098,Revenue,CAHD,Learning Difficulties Development Fund,Other Supplies & Services,Circles South West Ltd,3285.00, 12-Apr-2021
1099,Revenue,CAHD,Placements OLA Special Schools and RB,Other L.A.s - General,Claremont School,1917.52, 21-Apr-2021
1100,Revenue,CAHD,Placements OLA Special Schools and RB,Other L.A.s - General,Claremont School,625.15, 21-Apr-2021
1101,Revenue,CAHD,Placements OLA Special Schools and RB,Other L.A.s - General,Claremont School,2685.22, 21-Apr-2021
1102,Revenue,CAHD,Placements OLA Special Schools and RB,Other L.A.s - General,Claremont School,625.15, 21-Apr-2021
1103,Revenue,CAHD,Placements OLA Special Schools and RB,Other L.A.s - General,Claremont School,1917.52, 21-Apr-2021
1104,Revenue,CAHD,Placements OLA Special Schools and RB,Other L.A.s - General,Claremont School,625.15, 21-Apr-2021
1105,Revenue,CAHD,Placements OLA Special Schools and RB,Other L.A.s - General,Claremont School,1917.52, 21-Apr-2021
1106,Revenue,CAHD,Placements OLA Special Schools and RB,Other L.A.s - General,Claremont School,625.15, 21-Apr-2021
1107,Revenue,CAHD,Placements OLA Special Schools and RB,Other L.A.s - General,Claremont School,767.02, 21-Apr-2021
1108,Revenue,CAHD,Placements OLA Special Schools and RB,Other L.A.s - General,Claremont School,2685.22, 21-Apr-2021
1109,Revenue,CAHD,Placements OLA Special Schools and RB,Other L.A.s - General,Claremont School,1917.52, 21-Apr-2021
1110,Revenue,CAHD,Placements OLA Special Schools and RB,Other L.A.s - General,Claremont School,625.15, 21-Apr-2021
1111,Revenue,CAHD,Placements OLA Special Schools and RB,Other L.A.s - General,Claremont School,2685.22, 21-Apr-2021
1112,Revenue,CAHD,Placements OLA Special Schools and RB,Other L.A.s - General,Claremont School,625.15, 21-Apr-2021
1113,Revenue,CAHD,Placements OLA Special Schools and RB,Other L.A.s - General,Claremont School,1534.03, 21-Apr-2021
1114,Revenue,CAHD,Placements OLA Special Schools and RB,Other L.A.s - General,Claremont School,500.10, 21-Apr-2021
1115,Revenue,CAHD,Placements OLA Special Schools and RB,Other L.A.s - General,Claremont School,1917.52, 21-Apr-2021
1116,Revenue,CAHD,Placements OLA Special Schools and RB,Other L.A.s - General,Claremont School,625.15, 21-Apr-2021
1117,Revenue,CAHD,School Improvement and Support,Fees - General,CLEAPSS,4900.50, 30-Apr-2021
1118,Revenue,CAHD,South - Commissioned Services,Permanent Residential,Cleeve Lodge,2820.09, 06-Apr-2021
1119,Revenue,CAHD,South - Commissioned Services,Permanent Residential,Cleeve Lodge,961.65, 06-Apr-2021
1120,Revenue,CAHD,South - Commissioned Services,Permanent Residential,Cleeve Lodge,1000.95, 06-Apr-2021
1121,Revenue,CAHD,North - S117,Permanent Residential,Cleeve Lodge,2400.00, 06-Apr-2021
1122,Revenue,CAHD,North - S117,Permanent Residential,Cleeve Lodge,818.40, 06-Apr-2021
1123,Revenue,CAHD,Central - Commissioned Services,Permanent Residential,Cleeve Lodge,2400.00, 06-Apr-2021
1124,Revenue,CAHD,Central - Commissioned Services,Permanent Residential,Cleeve Lodge,818.40, 06-Apr-2021
1125,Revenue,CAHD,South - Commissioned Services,Permanent Residential,Cleeve Lodge,3300.00, 06-Apr-2021
1126,Revenue,CAHD,South - Commissioned Services,Permanent Residential,Cleeve Lodge,1125.30, 06-Apr-2021
1127,Revenue,CAHD,North - Community based support,Permanent Residential,Cleeve Lodge,3300.00, 06-Apr-2021
1128,Revenue,CAHD,North - Community based support,Permanent Residential,Cleeve Lodge,1100.00, 06-Apr-2021
1129,Revenue,CAHD,South - Commissioned Services,Permanent Residential,Cleeve Lodge,3000.00, 06-Apr-2021
1130,Revenue,CAHD,South - Commissioned Services,Permanent Residential,Cleeve Lodge,1023.00, 06-Apr-2021
1131,Revenue,CAHD,Covid 19- Spend on behalf of NHS,Respite Planned - Residential,Cleeve Lodge,4500.00, 06-Apr-2021
1132,Revenue,CAHD,South - Commissioned Services,Permanent Nursing,Cleeve Lodge,10400.00, 06-Apr-2021
1133,Revenue,CAHD,South - Commissioned Services,Permanent Nursing,Cleeve Lodge,2400.00, 06-Apr-2021
1134,Revenue,CAHD,South - Commissioned Services,Permanent Nursing,Cleeve Lodge,818.40, 06-Apr-2021
1135,Revenue,CAHD,South - Commissioned Services,Fees & Charges Income - General,Cleeve Lodge,1950.32, 06-Apr-2021
1136,Revenue,CAHD,South - Commissioned Services,Respite Planned - Residential,Cleeve Lodge,6285.71, 06-Apr-2021
1137,Revenue,CAHD,South - Commissioned Services,Permanent Residential,Cleeve Lodge,2213.16, 06-Apr-2021
1138,Revenue,CAHD,South - Commissioned Services,Permanent Residential,Cleeve Lodge,754.69, 06-Apr-2021
1139,Revenue,CAHD,18-25 Year Olds,Permanent Residential,Cleeve Lodge,7571.43, 06-Apr-2021
1140,Revenue,CAHD,18-25 Year Olds,Permanent Residential,Cleeve Lodge,3000.00, 06-Apr-2021
1141,Revenue,CAHD,South - Commissioned Services,Permanent Residential,Cleeve Lodge,1023.00, 06-Apr-2021
1142,Revenue,CAHD,South - Commissioned Services,Permanent Residential,Cleeve Lodge,2250.00, 06-Apr-2021
1143,Revenue,CAHD,South - Commissioned Services,Permanent Residential,Cleeve Lodge,767.25, 06-Apr-2021
1144,Revenue,CAHD,South - Commissioned Services,Permanent Residential,Cleeve Lodge,3600.00, 06-Apr-2021
1145,Revenue,CAHD,South - Commissioned Services,Permanent Residential,Cleeve Lodge,1227.60, 06-Apr-2021
1146,Revenue,CAHD,ASC Rapid Testing Fund,Grants to Voluntary Bodies,Cleeve Lodge,1906.86, 08-Apr-2021
1147,Revenue,CAHD,Central - Commissioned Services,Other Small Contracts,Clover Health and Home Care Ltd,1401.84, 12-Apr-2021
1148,Revenue,CAHD,Central - Commissioned Services,Other Small Contracts,Clover Health and Home Care Ltd,2230.20, 09-Apr-2021
1149,Revenue,CAHD,Central - Commissioned Services,Other Small Contracts,Clover Health and Home Care Ltd,870.84, 08-Apr-2021
1150,Revenue,CAHD,CSC - Vinney Green Secure Unit,R & M by Departments,Clover Technical Services,2454.00, 01-Apr-2021
1151,Revenue,CAHD,CSC - Vinney Green Secure Unit,R & M by Departments,Clover Technical Services,549.00, 30-Apr-2021
1152,Revenue,CAHD,Health Inequalities,Other Small Contracts,Cohesian Consultancy,500.00, 28-Apr-2021
1153,Revenue,CAHD,SLA Grants - Support Serv,Grants to Voluntary Bodies,Cohesian Consultancy,500.00, 28-Apr-2021
1154,Revenue,CAHD,North - Community based support,Permanent Residential,Collingwood Care Home,2250.00, 06-Apr-2021
1155,Revenue,CAHD,North - Community based support,Permanent Residential,Collingwood Care Home,767.25, 06-Apr-2021
1156,Revenue,CAHD,South - Commissioned Services,Permanent Residential,Community Theraputic Services,5920.05, 06-Apr-2021
1157,Revenue,CAHD,Jointly Funded H&SC Packages,Permanent Residential,Community Theraputic Services,3656.88, 06-Apr-2021
1158,Revenue,CAHD,South - Commissioned Services,Permanent Residential,Community Theraputic Services,1973.35, 06-Apr-2021
1159,Revenue,CAHD,Jointly Funded H&SC Packages,Permanent Residential,Community Theraputic Services,1218.96, 06-Apr-2021
1160,Revenue,CAHD,North - Community based support,Permanent Residential,Community Theraputic Services,6089.82, 06-Apr-2021
1161,Revenue,CAHD,Jointly Funded H&SC Packages,Permanent Residential,Community Theraputic Services,1520.64, 06-Apr-2021
1162,Revenue,CAHD,North - Community based support,Permanent Residential,Community Theraputic Services,2029.94, 06-Apr-2021
1163,Revenue,CAHD,Jointly Funded H&SC Packages,Permanent Residential,Community Theraputic Services,506.88, 06-Apr-2021
1164,Revenue,CAHD,Statemented Support Equipment,Educational Supplies & Equipment,Connevans Limited,1590.05, 16-Apr-2021
1165,Revenue,CAHD,Bed and Breakfast,Bed & Breakfast,Connolly & Callaghan Limited,593.60, 12-Apr-2021
1166,Revenue,CAHD,Bed and Breakfast,Bed & Breakfast,Connolly & Callaghan Limited,422.80, 08-Apr-2021
1167,Revenue,CAHD,Bed and Breakfast,Bed & Breakfast,Connolly & Callaghan Limited,807.10, 12-Apr-2021
1168,Revenue,CAHD,Bed and Breakfast,Bed & Breakfast,Connolly & Callaghan Limited,508.20, 12-Apr-2021
1169,Revenue,CAHD,Bed and Breakfast,Bed & Breakfast,Connolly & Callaghan Limited,548.80, 12-Apr-2021
1170,Revenue,CAHD,Bed and Breakfast,Bed & Breakfast,Connolly & Callaghan Limited,593.60, 12-Apr-2021
1171,Revenue,CAHD,Bed and Breakfast,Bed & Breakfast,Connolly & Callaghan Limited,422.80, 08-Apr-2021
1172,Revenue,CAHD,Bed and Breakfast,Bed & Breakfast,Connolly & Callaghan Limited,807.10, 12-Apr-2021
1173,Revenue,CAHD,Bed and Breakfast,Bed & Breakfast,Connolly & Callaghan Limited,508.20, 12-Apr-2021
1174,Revenue,CAHD,Bed and Breakfast,Bed & Breakfast,Connolly & Callaghan Limited,548.80, 12-Apr-2021
1175,Revenue,CAHD,Bed and Breakfast,Bed & Breakfast,Connolly & Callaghan Limited,422.80, 13-Apr-2021
1176,Revenue,CAHD,Bed and Breakfast,Bed & Breakfast,Connolly & Callaghan Limited,490.50, 13-Apr-2021
1177,Revenue,CAHD,Bed and Breakfast,Bed & Breakfast,Connolly & Callaghan Limited,593.60, 13-Apr-2021
1178,Revenue,CAHD,Bed and Breakfast,Bed & Breakfast,Connolly & Callaghan Limited,422.80, 13-Apr-2021
1179,Revenue,CAHD,Bed and Breakfast,Bed & Breakfast,Connolly & Callaghan Limited,807.10, 13-Apr-2021
1180,Revenue,CAHD,Bed and Breakfast,Bed & Breakfast,Connolly & Callaghan Limited,508.20, 13-Apr-2021
1181,Revenue,CAHD,Bed and Breakfast,Bed & Breakfast,Connolly & Callaghan Limited,422.80, 19-Apr-2021
1182,Revenue,CAHD,Bed and Breakfast,Bed & Breakfast,Connolly & Callaghan Limited,686.70, 20-Apr-2021
1183,Revenue,CAHD,Bed and Breakfast,Bed & Breakfast,Connolly & Callaghan Limited,593.60, 19-Apr-2021
1184,Revenue,CAHD,Bed and Breakfast,Bed & Breakfast,Connolly & Callaghan Limited,422.80, 19-Apr-2021
1185,Revenue,CAHD,Bed and Breakfast,Bed & Breakfast,Connolly & Callaghan Limited,422.80, 19-Apr-2021
1186,Revenue,CAHD,Bed and Breakfast,Bed & Breakfast,Connolly & Callaghan Limited,807.10, 20-Apr-2021
1187,Revenue,CAHD,Bed and Breakfast,Bed & Breakfast,Connolly & Callaghan Limited,508.20, 19-Apr-2021
1188,Revenue,CAHD,Bed and Breakfast,Bed & Breakfast,Connolly & Callaghan Limited,422.80, 26-Apr-2021
1189,Revenue,CAHD,Bed and Breakfast,Bed & Breakfast,Connolly & Callaghan Limited,686.70, 26-Apr-2021
1190,Revenue,CAHD,Bed and Breakfast,Bed & Breakfast,Connolly & Callaghan Limited,514.00, 26-Apr-2021
1191,Revenue,CAHD,Bed and Breakfast,Bed & Breakfast,Connolly & Callaghan Limited,593.60, 26-Apr-2021
1192,Revenue,CAHD,Bed and Breakfast,Bed & Breakfast,Connolly & Callaghan Limited,422.80, 26-Apr-2021
1193,Revenue,CAHD,Bed and Breakfast,Bed & Breakfast,Connolly & Callaghan Limited,422.80, 26-Apr-2021
1194,Revenue,CAHD,Bed and Breakfast,Bed & Breakfast,Connolly & Callaghan Limited,807.10, 26-Apr-2021
1195,Revenue,CAHD,Bed and Breakfast,Bed & Breakfast,Connolly & Callaghan Limited,508.20, 26-Apr-2021
1196,Revenue,CAHD,Central - Commissioned Services,Permanent Nursing,Cotswold House Care Home,2613.24, 06-Apr-2021
1197,Revenue,CAHD,Central - Commissioned Services,Permanent Nursing,Cotswold House Care Home,871.08, 06-Apr-2021
1198,Revenue,CAHD,Alexandra Way,Cleaning & Domestic Services,Countrywide Healthcare Supplies Ltd,923.36, 12-Apr-2021
1199,Revenue,CAHD,Alexandra Way,Cleaning & Domestic Services,Countrywide Healthcare Supplies Ltd,673.01, 28-Apr-2021
1200,Revenue,CAHD,North - Community based support,Permanent Residential,Court House Residential C.H.,2550.00, 06-Apr-2021
1201,Revenue,CAHD,North - Community based support,Permanent Residential,Court House Residential C.H.,850.00, 06-Apr-2021
1202,Revenue,CAHD,Early Years Inclusion Fund,Other Public Bodies,Courtney Ladybirds Pre-School,1200.00, 23-Apr-2021
1203,Revenue,CAHD,Childrens - Safeguarding Board,Training Expenses,Craft Training and Development,550.00, 30-Apr-2021
1204,Revenue,CAHD,Childrens - Safeguarding Board,Training Expenses,Craft Training and Development,1800.00, 30-Apr-2021
1205,Revenue,CAHD,S28A cases,Permanent Residential,Creedy Court,7948.47, 06-Apr-2021
1206,Revenue,CAHD,S28A cases,Permanent Residential,Creedy Court,2649.49, 06-Apr-2021
1207,Revenue,CAHD,S28A cases,Permanent Residential,Creedy Court,6678.69, 06-Apr-2021
1208,Revenue,CAHD,S28A cases,Permanent Residential,Creedy Court,2226.23, 06-Apr-2021
1209,Revenue,CAHD,North - Community based support,Permanent Residential,Creedy Court,10540.50, 06-Apr-2021
1210,Revenue,CAHD,North - Community based support,Permanent Residential,Creedy Court,3513.50, 06-Apr-2021
1211,Revenue,CAHD,One You South Glos,Other Small Contracts,Creotec Limited,2800.00, 22-Apr-2021
1212,Revenue,CAHD,Central - Commissioned Services,Supported Living,Cygnet Healthcare Limited,2478.00, 06-Apr-2021
1213,Revenue,CAHD,Central - Commissioned Services,Supported Living,Cygnet Healthcare Limited,845.00, 06-Apr-2021
1214,Revenue,CAHD,CSC - Vinney Green Secure Unit,R & M by Departments,Dale Power Solutions Ltd,1118.67, 08-Apr-2021
1215,Revenue,CAHD,South - Commissioned Services,Permanent Residential,Daneswood,9569.67, 06-Apr-2021
1216,Revenue,CAHD,South - Commissioned Services,Permanent Residential,Daneswood,3189.89, 06-Apr-2021
1217,Revenue,CAHD,South - Commissioned Services,Day Care / Social Activities,Daneswood,1081.20, 06-Apr-2021
1218,Revenue,CAHD,North - Community based support,Permanent Residential,Daneswood,10184.76, 06-Apr-2021
1219,Revenue,CAHD,North - Community based support,Permanent Residential,Daneswood,3394.92, 06-Apr-2021
1220,Revenue,CAHD,CSC - Special Guardianship Orders,Special Payments,Individual,569.14, 09-Apr-2021
1221,Revenue,CAHD,South - S117,Permanent Nursing,Danshell Healthcare Group,8578.23, 06-Apr-2021
1222,Revenue,CAHD,Jointly Funded H&SC Packages,Permanent Nursing,Danshell Healthcare Group,1272.87, 06-Apr-2021
1223,Revenue,CAHD,South - S117,Permanent Nursing,Danshell Healthcare Group,2859.41, 06-Apr-2021
1224,Revenue,CAHD,Learning Difficulties PSL,Rent,Individual,2400.00, 22-Apr-2021
1225,Revenue,CAHD,Training Budget - Children`s Social Serv,Training Expenses,Dartington Hall Trust,11625.00, 06-Apr-2021
1226,Revenue,CAHD,School Caretaker Houses R&M,Prop.Serv. General Repairs,Davis Roofing Limited,2254.00, 08-Apr-2021
1227,Revenue,CAHD,South - Commissioned Services,Day Care / Social Activities,Deafblind Uk,819.39, 16-Apr-2021
1228,Revenue,CAHD,North - Community based support,Day Care / Social Activities,Deafblind Uk,779.28, 30-Apr-2021
1229,Revenue,CAHD,Covid - ASC - Infection Control,Grants to Voluntary Bodies,Deafblind Uk,870.18, 30-Apr-2021
1230,Revenue,CAHD,Covid - ASC - Infection Control,Grants to Voluntary Bodies,Deafblind Uk,870.18, 15-Apr-2021
1231,Revenue,CAHD,Central - Commissioned Services,Permanent Residential,Debt Recovery,3130.29, 06-Apr-2021
1232,Revenue,CAHD,Central - Commissioned Services,Permanent Residential,Debt Recovery,1043.43, 06-Apr-2021
1233,Revenue,CAHD,South - Commissioned Services,Permanent Residential,Debt Recovery,3199.77, 06-Apr-2021
1234,Revenue,CAHD,South - Commissioned Services,Permanent Residential,Debt Recovery,1066.59, 06-Apr-2021
1235,Revenue,CAHD,North - Community based support,Permanent Nursing,Debt Recovery,3358.59, 06-Apr-2021
1236,Revenue,CAHD,North - Community based support,Permanent Nursing,Debt Recovery,1119.53, 06-Apr-2021
1237,Revenue,CAHD,North - Community based support,Permanent Nursing,Debt Recovery,2765.40, 06-Apr-2021
1238,Revenue,CAHD,North - Community based support,Permanent Nursing,Debt Recovery,921.80, 06-Apr-2021
1239,Revenue,CAHD,Central - Commissioned Services,Permanent Residential,Debt Recovery,3462.78, 06-Apr-2021
1240,Revenue,CAHD,Central - Commissioned Services,Permanent Residential,Debt Recovery,1154.26, 06-Apr-2021
1241,Revenue,CAHD,North - Community based support,Permanent Nursing,Debt Recovery,4203.72, 06-Apr-2021
1242,Revenue,CAHD,North - Community based support,Permanent Nursing,Debt Recovery,1401.24, 06-Apr-2021
1243,Revenue,CAHD,North - Community based support,Permanent Nursing,Debt Recovery,2689.62, 06-Apr-2021
1244,Revenue,CAHD,North - Community based support,Permanent Nursing,Debt Recovery,896.54, 06-Apr-2021
1245,Revenue,CAHD,Central - Commissioned Services,Permanent Nursing,Debt Recovery,4176.27, 06-Apr-2021
1246,Revenue,CAHD,Central - Commissioned Services,Permanent Nursing,Debt Recovery,1392.09, 06-Apr-2021
1247,Revenue,CAHD,North - Community based support,Permanent Residential,Debt Recovery,2732.94, 06-Apr-2021
1248,Revenue,CAHD,North - Community based support,Permanent Residential,Debt Recovery,910.98, 06-Apr-2021
1249,Revenue,CAHD,North - Community based support,Permanent Nursing,Debt Recovery,4706.22, 06-Apr-2021
1250,Revenue,CAHD,North - Community based support,Permanent Nursing,Debt Recovery,1568.74, 06-Apr-2021
1251,Revenue,CAHD,North - Community based support,Permanent Nursing,Debt Recovery,3090.93, 06-Apr-2021
1252,Revenue,CAHD,North - Community based support,Permanent Nursing,Debt Recovery,1030.31, 06-Apr-2021
1253,Revenue,CAHD,South - Commissioned Services,Permanent Nursing,Debt Recovery,4828.29, 06-Apr-2021
1254,Revenue,CAHD,South - Commissioned Services,Permanent Nursing,Debt Recovery,1609.43, 06-Apr-2021
1255,Revenue,CAHD,South - Commissioned Services,Permanent Nursing,Deerhurst Nursing Home,2911.05, 06-Apr-2021
1256,Revenue,CAHD,South - Commissioned Services,Permanent Nursing,Deerhurst Nursing Home,992.67, 06-Apr-2021
1257,Revenue,CAHD,South - Commissioned Services,Permanent Nursing,Deerhurst Nursing Home,3120.00, 06-Apr-2021
1258,Revenue,CAHD,South - Commissioned Services,Permanent Nursing,Deerhurst Nursing Home,1048.20, 06-Apr-2021
1259,Revenue,CAHD,South - Commissioned Services,Permanent Nursing,Deerhurst Nursing Home,3300.00, 06-Apr-2021
1260,Revenue,CAHD,South - Commissioned Services,Permanent Nursing,Deerhurst Nursing Home,1125.30, 06-Apr-2021
1261,Revenue,CAHD,South - Commissioned Services,Permanent Nursing,Deerhurst Nursing Home,3004.50, 06-Apr-2021
1262,Revenue,CAHD,South - Commissioned Services,Permanent Nursing,Deerhurst Nursing Home,1001.50, 06-Apr-2021
1263,Revenue,CAHD,North - Community based support,Permanent Nursing,Deerhurst Nursing Home,2918.40, 06-Apr-2021
1264,Revenue,CAHD,North - Community based support,Permanent Nursing,Deerhurst Nursing Home,972.80, 06-Apr-2021
1265,Revenue,CAHD,South - Commissioned Services,Permanent Nursing,Deerhurst Nursing Home,2973.84, 06-Apr-2021
1266,Revenue,CAHD,South - Commissioned Services,Permanent Nursing,Deerhurst Nursing Home,991.28, 06-Apr-2021
1267,Revenue,CAHD,North - Community based support,Permanent Nursing,Deerhurst Nursing Home,3105.00, 06-Apr-2021
1268,Revenue,CAHD,North - Community based support,Permanent Nursing,Deerhurst Nursing Home,1035.00, 06-Apr-2021
1269,Revenue,CAHD,South - Commissioned Services,Permanent Nursing,Deerhurst Nursing Home,3097.05, 06-Apr-2021
1270,Revenue,CAHD,South - Commissioned Services,Permanent Nursing,Deerhurst Nursing Home,1032.35, 06-Apr-2021
1271,Revenue,CAHD,South - Commissioned Services,Permanent Nursing,Deerhurst Nursing Home,3066.06, 06-Apr-2021
1272,Revenue,CAHD,South - Commissioned Services,Permanent Nursing,Deerhurst Nursing Home,1045.53, 06-Apr-2021
1273,Revenue,CAHD,North - Community based support,Permanent Nursing,Deerhurst Nursing Home,3066.06, 06-Apr-2021
1274,Revenue,CAHD,North - Community based support,Permanent Nursing,Deerhurst Nursing Home,1045.53, 06-Apr-2021
1275,Revenue,CAHD,South - Commissioned Services,Permanent Nursing,Deerhurst Nursing Home,3064.56, 06-Apr-2021
1276,Revenue,CAHD,South - Commissioned Services,Permanent Nursing,Deerhurst Nursing Home,1045.01, 06-Apr-2021
1277,Revenue,CAHD,South - Commissioned Services,Permanent Nursing,Deerhurst Nursing Home,2976.78, 06-Apr-2021
1278,Revenue,CAHD,South - Commissioned Services,Permanent Nursing,Deerhurst Nursing Home,1015.08, 06-Apr-2021
1279,Revenue,CAHD,South - Commissioned Services,Permanent Nursing,Deerhurst Nursing Home,3401.31, 06-Apr-2021
1280,Revenue,CAHD,Central - Commissioned Services,Permanent Nursing,Deerhurst Nursing Home,1133.77, 06-Apr-2021
1281,Revenue,CAHD,South - Commissioned Services,Fees & Charges Income - General,Deerhurst Nursing Home,3468.73, 06-Apr-2021
1282,Revenue,CAHD,South - Commissioned Services,Permanent Nursing,Deerhurst Nursing Home,22194.00, 06-Apr-2021
1283,Revenue,CAHD,South - Commissioned Services,Fees & Charges Income - General,Deerhurst Nursing Home,16621.62, 06-Apr-2021
1284,Revenue,CAHD,South - Commissioned Services,Permanent Nursing,Deerhurst Nursing Home,3402.00, 06-Apr-2021
1285,Revenue,CAHD,South - Commissioned Services,Permanent Nursing,Deerhurst Nursing Home,1160.08, 06-Apr-2021
1286,Revenue,CAHD,South - Commissioned Services,Fees & Charges Income - General,Deerhurst Nursing Home,22032.00, 06-Apr-2021
1287,Revenue,CAHD,North - Community based support,Fees & Charges Income - General,Deerhurst Nursing Home,1514.25, 06-Apr-2021
1288,Revenue,CAHD,South - Commissioned Services,Permanent Nursing,Deerhurst Nursing Home,3064.02, 06-Apr-2021
1289,Revenue,CAHD,South - Commissioned Services,Permanent Nursing,Deerhurst Nursing Home,1044.83, 06-Apr-2021
1290,Revenue,CAHD,South - Commissioned Services,Permanent Nursing,Deerhurst Nursing Home,3004.50, 06-Apr-2021
1291,Revenue,CAHD,South - Commissioned Services,Permanent Nursing,Deerhurst Nursing Home,1001.50, 06-Apr-2021
1292,Revenue,CAHD,South - Commissioned Services,Permanent Residential,Deerhurst Nursing Home,3096.75, 06-Apr-2021
1293,Revenue,CAHD,South - Commissioned Services,Permanent Residential,Deerhurst Nursing Home,1032.25, 06-Apr-2021
1294,Revenue,CAHD,South - Commissioned Services,Permanent Nursing,Deerhurst Nursing Home,3004.50, 06-Apr-2021
1295,Revenue,CAHD,South - Commissioned Services,Permanent Nursing,Deerhurst Nursing Home,1001.50, 06-Apr-2021
1296,Revenue,CAHD,South - Commissioned Services,Permanent Residential,Deerhurst Nursing Home,2918.40, 06-Apr-2021
1297,Revenue,CAHD,South - Commissioned Services,Permanent Residential,Deerhurst Nursing Home,972.80, 06-Apr-2021
1298,Revenue,CAHD,Covid 19- Spend on behalf of NHS,Respite Planned - Residential,Deerhurst Nursing Home,3388.94, 06-Apr-2021
1299,Revenue,CAHD,North - Community based support,Fees & Charges Income - General,Deerhurst Nursing Home,701.72, 06-Apr-2021
1300,Revenue,CAHD,South - Commissioned Services,Permanent Nursing,Deerhurst Nursing Home,2211.96, 06-Apr-2021
1301,Revenue,CAHD,South - Commissioned Services,Permanent Nursing,Deerhurst Nursing Home,1917.04, 06-Apr-2021
1302,Revenue,CAHD,South - Commissioned Services,Permanent Nursing,Deerhurst Nursing Home,1032.25, 06-Apr-2021
1303,Revenue,CAHD,South - Commissioned Services,Permanent Nursing,Deerhurst Nursing Home,884.79, 06-Apr-2021
1304,Revenue,CAHD,CAHC General HQ,Grant Income - Government Depts,Department for Education,25000.00, 22-Apr-2021
1305,Revenue,CAHD,South - Commissioned Services,Supported Living,Design House,2035.83, 06-Apr-2021
1306,Revenue,CAHD,South - Commissioned Services,Supported Living,Design House,694.22, 06-Apr-2021
1307,Revenue,CAHD,South - Commissioned Services,Other Small Contracts,Design House,2343.21, 06-Apr-2021
1308,Revenue,CAHD,South - Commissioned Services,Supported Living,Design House,799.03, 06-Apr-2021
1309,Revenue,CAHD,South - Commissioned Services,Supported Living,Design House,2396.55, 06-Apr-2021
1310,Revenue,CAHD,South - Commissioned Services,Supported Living,Design House,817.22, 06-Apr-2021
1311,Revenue,CAHD,South - Commissioned Services,Supported Living,Design House,2289.87, 06-Apr-2021
1312,Revenue,CAHD,South - Commissioned Services,Supported Living,Design House,780.85, 06-Apr-2021
1313,Revenue,CAHD,18-25 Year Olds,Supported Living,Design House,2260.44, 06-Apr-2021
1314,Revenue,CAHD,18-25 Year Olds,Supported Living,Design House,770.81, 06-Apr-2021
1315,Revenue,CAHD,Central - Commissioned Services,Day Care / Social Activities,Design House,2243.58, 06-Apr-2021
1316,Revenue,CAHD,Central - Commissioned Services,Day Care / Social Activities,Design House,765.06, 06-Apr-2021
1317,Revenue,CAHD,South - Commissioned Services,Day Care / Social Activities,Design House,987.78, 06-Apr-2021
1318,Revenue,CAHD,South - Commissioned Services,Supported Living,Design House,2018.52, 06-Apr-2021
1319,Revenue,CAHD,South - Commissioned Services,Supported Living,Design House,688.32, 06-Apr-2021
1320,Revenue,CAHD,South - Commissioned Services,Supported Living,Design House,2018.52, 06-Apr-2021
1321,Revenue,CAHD,South - Commissioned Services,Supported Living,Design House,688.32, 06-Apr-2021
1322,Revenue,CAHD,South - Commissioned Services,Other Small Contracts,Design House,1644.24, 06-Apr-2021
1323,Revenue,CAHD,South - Commissioned Services,Supported Living,Design House,560.69, 06-Apr-2021
1324,Revenue,CAHD,South - Commissioned Services,Supported Living,Design House,1450.83, 06-Apr-2021
1325,Revenue,CAHD,South - Commissioned Services,Other Small Contracts,Design House,1925.19, 06-Apr-2021
1326,Revenue,CAHD,South - Commissioned Services,Supported Living,Design House,656.49, 06-Apr-2021
1327,Revenue,CAHD,South - Commissioned Services,Supported Living,Design House,3294.96, 06-Apr-2021
1328,Revenue,CAHD,South - Commissioned Services,Supported Living,Design House,1123.58, 06-Apr-2021
1329,Revenue,CAHD,North - Community based support,Supported Living,Design House,2336.49, 06-Apr-2021
1330,Revenue,CAHD,North - Community based support,Supported Living,Design House,796.74, 06-Apr-2021
1331,Revenue,CAHD,South - Commissioned Services,Day Care / Social Activities,Design House,1152.06, 06-Apr-2021
1332,Revenue,CAHD,South - Commissioned Services,Supported Living,Design House,2237.37, 06-Apr-2021
1333,Revenue,CAHD,South - Commissioned Services,Supported Living,Design House,762.94, 06-Apr-2021
1334,Revenue,CAHD,South - Commissioned Services,Supported Living,Design House,1945.23, 06-Apr-2021
1335,Revenue,CAHD,South - Commissioned Services,Supported Living,Design House,663.32, 06-Apr-2021
1336,Revenue,CAHD,South - Commissioned Services,Supported Living,Design House,1726.98, 06-Apr-2021
1337,Revenue,CAHD,South - Commissioned Services,Supported Living,Design House,588.90, 06-Apr-2021
1338,Revenue,CAHD,South - Commissioned Services,Supported Living,Design House,1726.98, 06-Apr-2021
1339,Revenue,CAHD,South - Commissioned Services,Supported Living,Design House,588.90, 06-Apr-2021
1340,Revenue,CAHD,Bed and Breakfast,Bed & Breakfast,Designz Ltd,518.00, 08-Apr-2021
1341,Revenue,CAHD,Central - Commissioned Services,Other Small Contracts,Dhek Bhal,248.51, 08-Apr-2021
1342,Revenue,CAHD,South - Commissioned Services,Other Small Contracts,Dhek Bhal,252.96, 08-Apr-2021
1343,Revenue,CAHD,Central - Commissioned Services,Other Small Contracts,Dhek Bhal,248.51, 26-Apr-2021
1344,Revenue,CAHD,South - Commissioned Services,Other Small Contracts,Dhek Bhal,252.96, 26-Apr-2021
1345,Revenue,CAHD,Central - Commissioned Services,Other Small Contracts,Dhek Bhal,247.76, 28-Apr-2021
1346,Revenue,CAHD,South - Commissioned Services,Other Small Contracts,Dhek Bhal,257.28, 28-Apr-2021
1347,Revenue,CAHD,Covid - ASC - Infection Control,Grants to Voluntary Bodies,Dimensions (UK) Ltd,1450.30, 29-Apr-2021
1348,Revenue,CAHD,ASC Rapid Testing Fund,Grants to Voluntary Bodies,Dimensions (UK) Ltd,1341.95, 28-Apr-2021
1349,Revenue,CAHD,Community Support - North,Preventative Assistance,Direct Healthcare Group,1364.00, 09-Apr-2021
1350,Revenue,CAHD,Training Budget - Children`s Social Serv,Training Expenses,Do The Write Thing,850.00, 16-Apr-2021
1351,Revenue,CAHD,North - Community based support,Permanent Nursing,Douglas House,2699.85, 06-Apr-2021
1352,Revenue,CAHD,North - Community based support,Permanent Nursing,Douglas House,899.95, 06-Apr-2021
1353,Revenue,CAHD,Planning and Partnerships Team,Legal Fees,Douglas Leach,1200.00, 26-Apr-2021
1354,Revenue,CAHD,Planning and Partnerships Team,Legal Fees,Douglas Leach,1000.00, 26-Apr-2021
1355,Revenue,CAHD,Statemented Support Academies,Other Public Bodies,Downend School,978.57, 30-Apr-2021
1356,Revenue,CAHD,Statemented Support Academies,Other Public Bodies,Downend School,660.24, 30-Apr-2021
1357,Revenue,CAHD,Statemented Support Academies,Other Public Bodies,Downend School,1025.73, 30-Apr-2021
1358,Revenue,CAHD,Statemented Support Academies,Other Public Bodies,Downend School,1013.94, 30-Apr-2021
1359,Revenue,CAHD,Statemented Support Academies,Other Public Bodies,Downend School,801.72, 30-Apr-2021
1360,Revenue,CAHD,Statemented Support Academies,Other Public Bodies,Downend School,530.67, 30-Apr-2021
1361,Revenue,CAHD,Statemented Support Academies,Other Public Bodies,Downend School,1108.26, 30-Apr-2021
1362,Revenue,CAHD,Statemented Support Academies,Other Public Bodies,Downend School,554.13, 30-Apr-2021
1363,Revenue,CAHD,Statemented Support Academies,Other Public Bodies,Downend School,666.00, 30-Apr-2021
1364,Revenue,CAHD,Statemented Support Academies,Other Public Bodies,Downend School,1079.67, 30-Apr-2021
1365,Revenue,CAHD,Statemented Support Academies,Other Public Bodies,Downend School,1438.38, 30-Apr-2021
1366,Revenue,CAHD,Statemented Support Academies,Other Public Bodies,Downend School,1709.55, 30-Apr-2021
1367,Revenue,CAHD,Statemented Support Academies,Other Public Bodies,Downend School,1192.50, 30-Apr-2021
1368,Revenue,CAHD,Statemented Support Academies,Other Public Bodies,Downend School,1544.49, 30-Apr-2021
1369,Revenue,CAHD,Schools Block Growth Contingency,Other Public Bodies,Downend School,56294.13, 27-Apr-2021
1370,Revenue,CAHD,Social Lettings Agency,Rent,Individual,743.75, 22-Apr-2021
1371,Revenue,CAHD,Social Lettings Agency,Fees - General,Individual,13.16, 22-Apr-2021
1372,Revenue,CAHD,CSC - Care Leavers Support Costs,Leaving Care,Durham County Council,7385.00, 01-Apr-2021
1373,Revenue,CAHD,Independent Special Placements - Pre 16,Other Private Contractors,Durham School,8491.45, 21-Apr-2021
1374,Revenue,CAHD,CSC - Professional Fees Foster Carers,Band 3 Foster Care,Individual,512.14, 23-Apr-2021
1375,Revenue,CAHD,CSC - Therapeutic Foster Care Programm,Fostering Plus Enhanced Fee,Individual,573.00, 01-Apr-2021
1376,Revenue,CAHD,CSC - Therapeutic Foster Care Programm,Fostering Plus Enhanced Fee,Individual,573.00, 09-Apr-2021
1377,Revenue,CAHD,CSC - Therapeutic Foster Care Programm,Fostering Plus Enhanced Fee,Individual,573.00, 16-Apr-2021
1378,Revenue,CAHD,CSC - Professional Fees Foster Carers,Therapeutic Fostering Fee,Individual,1964.57, 23-Apr-2021
1379,Revenue,CAHD,CSC - Professional Fees Foster Carers,Therapeutic Fostering Fee,Individual,577.00, 30-Apr-2021
1380,Revenue,CAHD,CSC - Share The Care,Children - Family Support,Individual,1540.00, 30-Apr-2021
1381,Revenue,CAHD,North - Community based support,Permanent Residential,East Court,2072.67, 06-Apr-2021
1382,Revenue,CAHD,North - Community based support,Permanent Residential,East Court,690.89, 06-Apr-2021
1383,Revenue,CAHD,CSC - LAC Placements,Client Transport,East Sussex County Council,100.00, 08-Apr-2021
1384,Revenue,CAHD,CSC - Residential Placements,Permanent Residential,East Sussex County Council,33480.00, 08-Apr-2021
1385,Revenue,CAHD,CSC - Residential Placements,Permanent Residential,East Sussex County Council,30340.00, 08-Apr-2021
1386,Revenue,CAHD,CSC - Residential Placements,Permanent Residential,East Sussex County Council,30340.00, 14-Apr-2021
1387,Revenue,CAHD,CSC - Residential Placements,Permanent Residential,East Sussex County Council,32500.00, 30-Apr-2021
1388,Revenue,CAHD,Central - Commissioned Services,Permanent Residential,Edendale Lodge,2250.00, 06-Apr-2021
1389,Revenue,CAHD,Central - Commissioned Services,Permanent Residential,Edendale Lodge,750.00, 06-Apr-2021
1390,Revenue,CAHD,Younger Adult Mental Health,Long Service Awards,Edenred (UK Group) Limited,500.00, 30-Apr-2021
1391,Revenue,CAHD,South - Commissioned Services,Permanent Residential,Edgemont House Ltd,2400.00, 06-Apr-2021
1392,Revenue,CAHD,South - Commissioned Services,Permanent Residential,Edgemont House Ltd,818.40, 06-Apr-2021
1393,Revenue,CAHD,South - bed purchasing and direct  payments,Permanent Residential,Edgemont House Ltd,2448.00, 06-Apr-2021
1394,Revenue,CAHD,South - bed purchasing and direct  payments,Permanent Residential,Edgemont House Ltd,834.77, 06-Apr-2021
1395,Revenue,CAHD,South - Commissioned Services,Permanent Residential,Edgemont House Ltd,2295.00, 06-Apr-2021
1396,Revenue,CAHD,South - Commissioned Services,Permanent Residential,Edgemont House Ltd,782.60, 06-Apr-2021
1397,Revenue,CAHD,South - Commissioned Services,Permanent Nursing,Edgemont View Ltd,2625.00, 06-Apr-2021
1398,Revenue,CAHD,South - Commissioned Services,Permanent Nursing,Edgemont View Ltd,895.13, 06-Apr-2021
1399,Revenue,CAHD,South - Commissioned Services,Permanent Nursing,Edgemont View Ltd,2625.00, 06-Apr-2021
1400,Revenue,CAHD,South - Commissioned Services,Permanent Nursing,Edgemont View Ltd,895.13, 06-Apr-2021
1401,Revenue,CAHD,South - Commissioned Services,Permanent Nursing,Edgemont View Ltd,10200.00, 06-Apr-2021
1402,Revenue,CAHD,South - Commissioned Services,Permanent Nursing,Edgemont View Ltd,2550.00, 06-Apr-2021
1403,Revenue,CAHD,South - Commissioned Services,Permanent Nursing,Edgemont View Ltd,869.55, 06-Apr-2021
1404,Revenue,CAHD,Covid 19- Spend on behalf of NHS,Respite Planned - Nursing,Edgemont View Ltd,2442.86, 06-Apr-2021
1405,Revenue,CAHD,South - Commissioned Services,Permanent Nursing,Edgemont View Ltd,2550.00, 06-Apr-2021
1406,Revenue,CAHD,South - Commissioned Services,Permanent Nursing,Edgemont View Ltd,869.55, 06-Apr-2021
1407,Revenue,CAHD,South - Commissioned Services,Permanent Nursing,Edgemont View Ltd,2550.00, 06-Apr-2021
1408,Revenue,CAHD,South - Commissioned Services,Permanent Nursing,Edgemont View Ltd,2550.00, 06-Apr-2021
1409,Revenue,CAHD,South - Commissioned Services,Permanent Nursing,Edgemont View Ltd,869.55, 06-Apr-2021
1410,Revenue,CAHD,South - Commissioned Services,Permanent Nursing,Edgemont View Ltd,2700.00, 06-Apr-2021
1411,Revenue,CAHD,South - Commissioned Services,Permanent Nursing,Edgemont View Ltd,920.70, 06-Apr-2021
1412,Revenue,CAHD,South - Commissioned Services,Permanent Nursing,Edgemont View Ltd,2625.00, 06-Apr-2021
1413,Revenue,CAHD,South - Commissioned Services,Permanent Nursing,Edgemont View Ltd,895.13, 06-Apr-2021
1414,Revenue,CAHD,South - Commissioned Services,Permanent Nursing,Edgemont View Ltd,2550.00, 06-Apr-2021
1415,Revenue,CAHD,South - Commissioned Services,Permanent Nursing,Edgemont View Ltd,869.55, 06-Apr-2021
1416,Revenue,CAHD,South - Commissioned Services,Permanent Nursing,Edgemont View Ltd,8496.43, 06-Apr-2021
1417,Revenue,CAHD,South - Commissioned Services,Permanent Nursing,Edgemont View Ltd,2925.00, 06-Apr-2021
1418,Revenue,CAHD,South - Commissioned Services,Permanent Nursing,Edgemont View Ltd,997.43, 06-Apr-2021
1419,Revenue,CAHD,South - Commissioned Services,Permanent Nursing,Edgemont View Ltd,2741.76, 06-Apr-2021
1420,Revenue,CAHD,South - Commissioned Services,Permanent Nursing,Edgemont View Ltd,934.94, 06-Apr-2021
1421,Revenue,CAHD,South - Commissioned Services,Respite Planned - Nursing,Edgemont View Ltd,1865.14, 06-Apr-2021
1422,Revenue,CAHD,Planning and Partnerships Procurement,Other Supplies & Services,Eldercare,450.00, 08-Apr-2021
1423,Revenue,CAHD,Planning and Partnerships Procurement,Other Supplies & Services,Eldercare,450.00, 30-Apr-2021
1424,Revenue,CAHD,Planning and Partnerships Procurement,Other Supplies & Services,Eldercare,2649.50, 30-Apr-2021
1425,Revenue,CAHD,Planning and Partnerships Procurement,Other Supplies & Services,Eldercare,2606.73, 30-Apr-2021
1426,Revenue,CAHD,Supporting People Programme,Grants to Voluntary Bodies,Elim Housing Association Limited,5362.00, 08-Apr-2021
1427,Revenue,CAHD,Supporting People Programme,Grants to Voluntary Bodies,Elim Housing Association Limited,5362.00, 30-Apr-2021
1428,Revenue,CAHD,Social Lettings Agency,Rent,Individual,1169.28, 13-Apr-2021
1429,Revenue,CAHD,Social Lettings Agency,Fees - General,Individual,15.12, 13-Apr-2021
1430,Revenue,CAHD,Placements OLA Special Schools and RB,Other L.A.s - General,Elmfield School for Deaf Children,1227.13, 21-Apr-2021
1431,Revenue,CAHD,Placements OLA Special Schools and RB,Other L.A.s - General,Elmfield School for Deaf Children,766.85, 21-Apr-2021
1432,Revenue,CAHD,Placements OLA Special Schools and RB,Other L.A.s - General,Elmfield School for Deaf Children,1227.13, 21-Apr-2021
1433,Revenue,CAHD,Placements OLA Special Schools and RB,Other L.A.s - General,Elmfield School for Deaf Children,1227.13, 21-Apr-2021
1434,Revenue,CAHD,Placements OLA Special Schools and RB,Other L.A.s - General,Elmfield School for Deaf Children,1227.13, 21-Apr-2021
1435,Revenue,CAHD,Placements OLA Special Schools and RB,Other L.A.s - General,Elmfield School for Deaf Children,766.85, 21-Apr-2021
1436,Revenue,CAHD,Placements OLA Special Schools and RB,Other L.A.s - General,Elmfield School for Deaf Children,1227.13, 21-Apr-2021
1437,Revenue,CAHD,CSC - Adoption Support Fund,Post Adoption,Individual,787.50, 09-Apr-2021
1438,Revenue,CAHD,CSC - Adoption Support Fund,Post Adoption,Individual,1747.50, 08-Apr-2021
1439,Revenue,CAHD,Special ISB,Other Public Bodies,Enable Trust,6575.36, 26-Apr-2021
1440,Revenue,CAHD,Special ISB,Other Public Bodies,Enable Trust,1137.95, 26-Apr-2021
1441,Revenue,CAHD,Special ISB,Other Public Bodies,Enable Trust,1491.13, 26-Apr-2021
1442,Revenue,CAHD,Special ISB,Other Public Bodies,Enable Trust,1137.95, 26-Apr-2021
1443,Revenue,CAHD,Special ISB,Other Public Bodies,Enable Trust,1137.95, 26-Apr-2021
1444,Revenue,CAHD,Special ISB,Other Public Bodies,Enable Trust,863.27, 26-Apr-2021
1445,Revenue,CAHD,Special ISB,Other Public Bodies,Enable Trust,1491.13, 26-Apr-2021
1446,Revenue,CAHD,Special ISB,Other Public Bodies,Enable Trust,1491.13, 26-Apr-2021
1447,Revenue,CAHD,Special ISB,Other Public Bodies,Enable Trust,1137.95, 26-Apr-2021
1448,Revenue,CAHD,Special ISB,Other Public Bodies,Enable Trust,1137.95, 26-Apr-2021
1449,Revenue,CAHD,Special ISB,Other Public Bodies,Enable Trust,1137.95, 26-Apr-2021
1450,Revenue,CAHD,Special ISB,Other Public Bodies,Enable Trust,1491.13, 26-Apr-2021
1451,Revenue,CAHD,Special ISB,Other Public Bodies,Enable Trust,627.77, 26-Apr-2021
1452,Revenue,CAHD,Special ISB,Other Public Bodies,Enable Trust,863.27, 26-Apr-2021
1453,Revenue,CAHD,Special ISB,Other Public Bodies,Enable Trust,863.27, 26-Apr-2021
1454,Revenue,CAHD,Special ISB,Other Public Bodies,Enable Trust,1137.95, 26-Apr-2021
1455,Revenue,CAHD,Special ISB,Other Public Bodies,Enable Trust,1137.95, 26-Apr-2021
1456,Revenue,CAHD,Special ISB,Other Public Bodies,Enable Trust,1137.95, 26-Apr-2021
1457,Revenue,CAHD,Special ISB,Other Public Bodies,Enable Trust,1491.13, 26-Apr-2021
1458,Revenue,CAHD,Special ISB,Other Public Bodies,Enable Trust,627.77, 26-Apr-2021
1459,Revenue,CAHD,Special ISB,Other Public Bodies,Enable Trust,1648.03, 26-Apr-2021
1460,Revenue,CAHD,Special ISB,Other Public Bodies,Enable Trust,1491.13, 26-Apr-2021
1461,Revenue,CAHD,Special ISB,Other Public Bodies,Enable Trust,1137.95, 26-Apr-2021
1462,Revenue,CAHD,Special ISB,Other Public Bodies,Enable Trust,1137.95, 26-Apr-2021
1463,Revenue,CAHD,Special ISB,Other Public Bodies,Enable Trust,863.27, 26-Apr-2021
1464,Revenue,CAHD,Special ISB,Other Public Bodies,Enable Trust,1137.95, 26-Apr-2021
1465,Revenue,CAHD,Special ISB,Other Public Bodies,Enable Trust,863.27, 26-Apr-2021
1466,Revenue,CAHD,Special ISB,Other Public Bodies,Enable Trust,2118.90, 26-Apr-2021
1467,Revenue,CAHD,Special ISB,Other Public Bodies,Enable Trust,1137.95, 26-Apr-2021
1468,Revenue,CAHD,Special ISB,Other Public Bodies,Enable Trust,1137.95, 26-Apr-2021
1469,Revenue,CAHD,Special ISB,Other Public Bodies,Enable Trust,1137.95, 26-Apr-2021
1470,Revenue,CAHD,Special ISB,Other Public Bodies,Enable Trust,1137.95, 26-Apr-2021
1471,Revenue,CAHD,Special ISB,Other Public Bodies,Enable Trust,1137.95, 26-Apr-2021
1472,Revenue,CAHD,Special ISB,Other Public Bodies,Enable Trust,2118.90, 26-Apr-2021
1473,Revenue,CAHD,Special ISB,Other Public Bodies,Enable Trust,1137.95, 26-Apr-2021
1474,Revenue,CAHD,Special ISB,Other Public Bodies,Enable Trust,1491.13, 26-Apr-2021
1475,Revenue,CAHD,Special ISB,Other Public Bodies,Enable Trust,863.27, 26-Apr-2021
1476,Revenue,CAHD,Special ISB,Other Public Bodies,Enable Trust,1491.13, 26-Apr-2021
1477,Revenue,CAHD,Special ISB,Other Public Bodies,Enable Trust,1137.95, 26-Apr-2021
1478,Revenue,CAHD,Special ISB,Other Public Bodies,Enable Trust,1491.13, 26-Apr-2021
1479,Revenue,CAHD,Special ISB,Other Public Bodies,Enable Trust,1137.95, 26-Apr-2021
1480,Revenue,CAHD,Special ISB,Other Public Bodies,Enable Trust,1491.13, 26-Apr-2021
1481,Revenue,CAHD,Special ISB,Other Public Bodies,Enable Trust,1137.95, 26-Apr-2021
1482,Revenue,CAHD,Special ISB,Other Public Bodies,Enable Trust,1137.95, 26-Apr-2021
1483,Revenue,CAHD,Special ISB,Other Public Bodies,Enable Trust,1137.95, 26-Apr-2021
1484,Revenue,CAHD,Special ISB,Other Public Bodies,Enable Trust,1137.95, 26-Apr-2021
1485,Revenue,CAHD,Special ISB,Other Public Bodies,Enable Trust,2118.90, 26-Apr-2021
1486,Revenue,CAHD,Special ISB,Other Public Bodies,Enable Trust,1491.13, 26-Apr-2021
1487,Revenue,CAHD,Special ISB,Other Public Bodies,Enable Trust,863.27, 26-Apr-2021
1488,Revenue,CAHD,Special ISB,Other Public Bodies,Enable Trust,863.27, 26-Apr-2021
1489,Revenue,CAHD,Special ISB,Other Public Bodies,Enable Trust,1491.13, 26-Apr-2021
1490,Revenue,CAHD,Special ISB,Other Public Bodies,Enable Trust,1491.13, 26-Apr-2021
1491,Revenue,CAHD,Special ISB,Other Public Bodies,Enable Trust,1137.95, 26-Apr-2021
1492,Revenue,CAHD,Special ISB,Other Public Bodies,Enable Trust,1137.95, 26-Apr-2021
1493,Revenue,CAHD,Special ISB,Other Public Bodies,Enable Trust,1491.13, 26-Apr-2021
1494,Revenue,CAHD,Special ISB,Other Public Bodies,Enable Trust,1491.13, 26-Apr-2021
1495,Revenue,CAHD,Special ISB,Other Public Bodies,Enable Trust,1137.95, 26-Apr-2021
1496,Revenue,CAHD,Special ISB,Other Public Bodies,Enable Trust,1137.95, 26-Apr-2021
1497,Revenue,CAHD,Special ISB,Other Public Bodies,Enable Trust,1137.95, 26-Apr-2021
1498,Revenue,CAHD,Special ISB,Other Public Bodies,Enable Trust,1137.95, 26-Apr-2021
1499,Revenue,CAHD,Special ISB,Other Public Bodies,Enable Trust,1491.13, 26-Apr-2021
1500,Revenue,CAHD,Special ISB,Other Public Bodies,Enable Trust,2118.90, 26-Apr-2021
1501,Revenue,CAHD,Special ISB,Other Public Bodies,Enable Trust,2118.90, 26-Apr-2021
1502,Revenue,CAHD,Special ISB,Other Public Bodies,Enable Trust,1137.95, 26-Apr-2021
1503,Revenue,CAHD,Special ISB,Other Public Bodies,Enable Trust,627.77, 26-Apr-2021
1504,Revenue,CAHD,Special ISB,Other Public Bodies,Enable Trust,1137.95, 26-Apr-2021
1505,Revenue,CAHD,Special ISB,Other Public Bodies,Enable Trust,1137.95, 26-Apr-2021
1506,Revenue,CAHD,Special ISB,Other Public Bodies,Enable Trust,863.27, 26-Apr-2021
1507,Revenue,CAHD,Special ISB,Other Public Bodies,Enable Trust,1137.95, 26-Apr-2021
1508,Revenue,CAHD,Special ISB,Other Public Bodies,Enable Trust,863.27, 26-Apr-2021
1509,Revenue,CAHD,Special ISB,Other Public Bodies,Enable Trust,1491.13, 26-Apr-2021
1510,Revenue,CAHD,Special ISB,Other Public Bodies,Enable Trust,1137.95, 26-Apr-2021
1511,Revenue,CAHD,Special ISB,Other Public Bodies,Enable Trust,863.27, 26-Apr-2021
1512,Revenue,CAHD,Special ISB,Other Public Bodies,Enable Trust,1491.13, 26-Apr-2021
1513,Revenue,CAHD,Special ISB,Other Public Bodies,Enable Trust,1491.13, 26-Apr-2021
1514,Revenue,CAHD,Special ISB,Other Public Bodies,Enable Trust,1137.95, 26-Apr-2021
1515,Revenue,CAHD,Special ISB,Other Public Bodies,Enable Trust,2118.90, 26-Apr-2021
1516,Revenue,CAHD,Special ISB,Other Public Bodies,Enable Trust,2118.90, 26-Apr-2021
1517,Revenue,CAHD,Special ISB,Other Public Bodies,Enable Trust,2118.90, 26-Apr-2021
1518,Revenue,CAHD,Special ISB,Other Public Bodies,Enable Trust,863.27, 26-Apr-2021
1519,Revenue,CAHD,Special ISB,Other Public Bodies,Enable Trust,863.27, 26-Apr-2021
1520,Revenue,CAHD,Special ISB,Other Public Bodies,Enable Trust,1648.03, 26-Apr-2021
1521,Revenue,CAHD,Special ISB,Other Public Bodies,Enable Trust,1137.95, 26-Apr-2021
1522,Revenue,CAHD,Special ISB,Other Public Bodies,Enable Trust,1643.84, 26-Apr-2021
1523,Revenue,CAHD,Special ISB,Other Public Bodies,Enable Trust,1137.95, 26-Apr-2021
1524,Revenue,CAHD,Special ISB,Other Public Bodies,Enable Trust,1648.03, 26-Apr-2021
1525,Revenue,CAHD,Special ISB,Other Public Bodies,Enable Trust,863.27, 26-Apr-2021
1526,Revenue,CAHD,Special ISB,Other Public Bodies,Enable Trust,1648.03, 26-Apr-2021
1527,Revenue,CAHD,Special ISB,Other Public Bodies,Enable Trust,1137.95, 26-Apr-2021
1528,Revenue,CAHD,Special ISB,Other Public Bodies,Enable Trust,2118.90, 26-Apr-2021
1529,Revenue,CAHD,Special ISB,Other Public Bodies,Enable Trust,2118.90, 26-Apr-2021
1530,Revenue,CAHD,Special ISB,Other Public Bodies,Enable Trust,1459.67, 26-Apr-2021
1531,Revenue,CAHD,Special ISB,Other Public Bodies,Enable Trust,863.27, 26-Apr-2021
1532,Revenue,CAHD,Special ISB,Other Public Bodies,Enable Trust,863.27, 26-Apr-2021
1533,Revenue,CAHD,Special ISB,Other Public Bodies,Enable Trust,2432.78, 26-Apr-2021
1534,Revenue,CAHD,Special ISB,Other Public Bodies,Enable Trust,863.27, 26-Apr-2021
1535,Revenue,CAHD,Special ISB,Other Public Bodies,Enable Trust,863.27, 26-Apr-2021
1536,Revenue,CAHD,Special ISB,Other Public Bodies,Enable Trust,1648.03, 26-Apr-2021
1537,Revenue,CAHD,Special ISB,Other Public Bodies,Enable Trust,1648.03, 26-Apr-2021
1538,Revenue,CAHD,Special ISB,Other Public Bodies,Enable Trust,1648.03, 26-Apr-2021
1539,Revenue,CAHD,Special ISB,Other Public Bodies,Enable Trust,1648.03, 26-Apr-2021
1540,Revenue,CAHD,Special ISB,Other Public Bodies,Enable Trust,1137.95, 26-Apr-2021
1541,Revenue,CAHD,Special ISB,Other Public Bodies,Enable Trust,1137.95, 26-Apr-2021
1542,Revenue,CAHD,Special ISB,Other Public Bodies,Enable Trust,1648.03, 26-Apr-2021
1543,Revenue,CAHD,Special ISB,Other Public Bodies,Enable Trust,1137.95, 26-Apr-2021
1544,Revenue,CAHD,Special ISB,Other Public Bodies,Enable Trust,1648.03, 26-Apr-2021
1545,Revenue,CAHD,Special ISB,Other Public Bodies,Enable Trust,1137.95, 26-Apr-2021
1546,Revenue,CAHD,Special ISB,Other Public Bodies,Enable Trust,1648.03, 26-Apr-2021
1547,Revenue,CAHD,Special ISB,Other Public Bodies,Enable Trust,1137.95, 26-Apr-2021
1548,Revenue,CAHD,Special ISB,Other Public Bodies,Enable Trust,1137.95, 26-Apr-2021
1549,Revenue,CAHD,Special ISB,Other Public Bodies,Enable Trust,1137.95, 26-Apr-2021
1550,Revenue,CAHD,Special ISB,Other Public Bodies,Enable Trust,1137.95, 26-Apr-2021
1551,Revenue,CAHD,Special ISB,Other Public Bodies,Enable Trust,1137.95, 26-Apr-2021
1552,Revenue,CAHD,Special ISB,Other Public Bodies,Enable Trust,1137.95, 26-Apr-2021
1553,Revenue,CAHD,Special ISB,Other Public Bodies,Enable Trust,2118.90, 26-Apr-2021
1554,Revenue,CAHD,Special ISB,Other Public Bodies,Enable Trust,1648.03, 26-Apr-2021
1555,Revenue,CAHD,Special ISB,Other Public Bodies,Enable Trust,1648.03, 26-Apr-2021
1556,Revenue,CAHD,Special ISB,Other Public Bodies,Enable Trust,863.27, 26-Apr-2021
1557,Revenue,CAHD,Special ISB,Other Public Bodies,Enable Trust,627.77, 26-Apr-2021
1558,Revenue,CAHD,Special ISB,Other Public Bodies,Enable Trust,1137.95, 26-Apr-2021
1559,Revenue,CAHD,Special ISB,Other Public Bodies,Enable Trust,863.27, 26-Apr-2021
1560,Revenue,CAHD,Special ISB,Other Public Bodies,Enable Trust,1137.95, 26-Apr-2021
1561,Revenue,CAHD,Special ISB,Other Public Bodies,Enable Trust,1648.03, 26-Apr-2021
1562,Revenue,CAHD,Special ISB,Other Public Bodies,Enable Trust,1491.13, 26-Apr-2021
1563,Revenue,CAHD,Special ISB,Other Public Bodies,Enable Trust,863.27, 26-Apr-2021
1564,Revenue,CAHD,Special ISB,Other Public Bodies,Enable Trust,1648.03, 26-Apr-2021
1565,Revenue,CAHD,Special ISB,Other Public Bodies,Enable Trust,1137.95, 26-Apr-2021
1566,Revenue,CAHD,Special ISB,Other Public Bodies,Enable Trust,1137.95, 26-Apr-2021
1567,Revenue,CAHD,Special ISB,Other Public Bodies,Enable Trust,1137.95, 26-Apr-2021
1568,Revenue,CAHD,Special ISB,Other Public Bodies,Enable Trust,863.27, 26-Apr-2021
1569,Revenue,CAHD,Special ISB,Other Public Bodies,Enable Trust,863.27, 26-Apr-2021
1570,Revenue,CAHD,Special ISB,Other Public Bodies,Enable Trust,863.27, 26-Apr-2021
1571,Revenue,CAHD,Special ISB,Other Public Bodies,Enable Trust,1137.95, 26-Apr-2021
1572,Revenue,CAHD,Special ISB,Other Public Bodies,Enable Trust,863.27, 26-Apr-2021
1573,Revenue,CAHD,Special ISB,Other Public Bodies,Enable Trust,863.27, 26-Apr-2021
1574,Revenue,CAHD,Special ISB,Other Public Bodies,Enable Trust,1137.95, 26-Apr-2021
1575,Revenue,CAHD,Special ISB,Other Public Bodies,Enable Trust,1137.95, 26-Apr-2021
1576,Revenue,CAHD,Special ISB,Other Public Bodies,Enable Trust,863.27, 26-Apr-2021
1577,Revenue,CAHD,Special ISB,Other Public Bodies,Enable Trust,863.27, 26-Apr-2021
1578,Revenue,CAHD,Special ISB,Other Public Bodies,Enable Trust,1137.95, 26-Apr-2021
1579,Revenue,CAHD,Special ISB,Other Public Bodies,Enable Trust,1137.95, 26-Apr-2021
1580,Revenue,CAHD,Special ISB,Other Public Bodies,Enable Trust,1137.95, 26-Apr-2021
1581,Revenue,CAHD,Special ISB,Other Public Bodies,Enable Trust,1648.03, 26-Apr-2021
1582,Revenue,CAHD,Special ISB,Other Public Bodies,Enable Trust,1137.95, 26-Apr-2021
1583,Revenue,CAHD,Special ISB,Other Public Bodies,Enable Trust,863.27, 26-Apr-2021
1584,Revenue,CAHD,Special ISB,Other Public Bodies,Enable Trust,863.27, 26-Apr-2021
1585,Revenue,CAHD,Special ISB,Other Public Bodies,Enable Trust,2118.90, 26-Apr-2021
1586,Revenue,CAHD,Special ISB,Other Public Bodies,Enable Trust,1137.95, 26-Apr-2021
1587,Revenue,CAHD,Special ISB,Other Public Bodies,Enable Trust,863.27, 26-Apr-2021
1588,Revenue,CAHD,Special ISB,Other Public Bodies,Enable Trust,2118.90, 26-Apr-2021
1589,Revenue,CAHD,Special ISB,Other Public Bodies,Enable Trust,1491.13, 26-Apr-2021
1590,Revenue,CAHD,Special ISB,Other Public Bodies,Enable Trust,627.77, 26-Apr-2021
1591,Revenue,CAHD,Special ISB,Other Public Bodies,Enable Trust,1137.95, 26-Apr-2021
1592,Revenue,CAHD,Special ISB,Other Public Bodies,Enable Trust,2118.90, 26-Apr-2021
1593,Revenue,CAHD,Special ISB,Other Public Bodies,Enable Trust,1137.95, 26-Apr-2021
1594,Revenue,CAHD,Special ISB,Other Public Bodies,Enable Trust,2118.90, 26-Apr-2021
1595,Revenue,CAHD,Special ISB,Other Public Bodies,Enable Trust,988.80, 26-Apr-2021
1596,Revenue,CAHD,Special ISB,Other Public Bodies,Enable Trust,1648.03, 26-Apr-2021
1597,Revenue,CAHD,Special ISB,Other Public Bodies,Enable Trust,1648.03, 26-Apr-2021
1598,Revenue,CAHD,Special ISB,Other Public Bodies,Enable Trust,1648.03, 26-Apr-2021
1599,Revenue,CAHD,Special ISB,Other Public Bodies,Enable Trust,2432.78, 26-Apr-2021
1600,Revenue,CAHD,Special ISB,Other Public Bodies,Enable Trust,2118.90, 26-Apr-2021
1601,Revenue,CAHD,Special ISB,Other Public Bodies,Enable Trust,1648.03, 26-Apr-2021
1602,Revenue,CAHD,Special ISB,Other Public Bodies,Enable Trust,1648.03, 26-Apr-2021
1603,Revenue,CAHD,Special ISB,Other Public Bodies,Enable Trust,1137.95, 26-Apr-2021
1604,Revenue,CAHD,Special ISB,Other Public Bodies,Enable Trust,1648.03, 26-Apr-2021
1605,Revenue,CAHD,Special ISB,Other Public Bodies,Enable Trust,2432.78, 26-Apr-2021
1606,Revenue,CAHD,Special ISB,Other Public Bodies,Enable Trust,2432.78, 26-Apr-2021
1607,Revenue,CAHD,Special ISB,Other Public Bodies,Enable Trust,1271.35, 26-Apr-2021
1608,Revenue,CAHD,Special ISB,Other Public Bodies,Enable Trust,1137.95, 26-Apr-2021
1609,Revenue,CAHD,Special ISB,Other Public Bodies,Enable Trust,2118.90, 26-Apr-2021
1610,Revenue,CAHD,Special ISB,Other Public Bodies,Enable Trust,1137.95, 26-Apr-2021
1611,Revenue,CAHD,Special ISB,Other Public Bodies,Enable Trust,1491.13, 26-Apr-2021
1612,Revenue,CAHD,Special ISB,Other Public Bodies,Enable Trust,1648.03, 26-Apr-2021
1613,Revenue,CAHD,Special ISB,Other Public Bodies,Enable Trust,1648.03, 26-Apr-2021
1614,Revenue,CAHD,CSC - Agency Fostering,Foster Parent Allowances,Enhanced Foster Care Limited,4839.10, 21-Apr-2021
1615,Revenue,CAHD,CSC - Agency Fostering,Foster Parent Allowances,Enhanced Foster Care Limited,4839.10, 21-Apr-2021
1616,Revenue,CAHD,CSC - Agency Fostering,Foster Parent Allowances,Enhanced Foster Care Limited,4683.00, 29-Apr-2021
1617,Revenue,CAHD,CSC - Agency Fostering,Foster Parent Allowances,Enhanced Foster Care Limited,4683.00, 29-Apr-2021
1618,Revenue,CAHD,South - Commissioned Services,Other Small Contracts,Epiphany In Care,1804.59, 22-Apr-2021
1619,Revenue,CAHD,South - Commissioned Services,Other Small Contracts,Epiphany In Care,3809.28, 08-Apr-2021
1620,Revenue,CAHD,South - Commissioned Services,Other Small Contracts,Epiphany In Care,1843.29, 22-Apr-2021
1621,Revenue,CAHD,South - Commissioned Services,Other Small Contracts,Epiphany In Care,1827.36, 22-Apr-2021
1622,Revenue,CAHD,Central - Commissioned Services,Other Small Contracts,Epiphany In Care,5076.00, 12-Apr-2021
1623,Revenue,CAHD,South - Commissioned Services,Other Small Contracts,Epiphany In Care,3682.80, 08-Apr-2021
1624,Revenue,CAHD,Central - Commissioned Services,Other Small Contracts,Epiphany In Care,1188.00, 08-Apr-2021
1625,Revenue,CAHD,Central - Commissioned Services,Other Small Contracts,Epiphany In Care,5076.00, 12-Apr-2021
1626,Revenue,CAHD,South - Commissioned Services,Other Small Contracts,Epiphany In Care,1827.05, 22-Apr-2021
1627,Revenue,CAHD,North - Community based support,Other Small Contracts,Epiphany In Care,10819.20, 12-Apr-2021
1628,Revenue,CAHD,South - Commissioned Services,Other Small Contracts,Epiphany In Care,3786.96, 28-Apr-2021
1629,Revenue,CAHD,North - Community based support,Other Small Contracts,Epiphany In Care,4118.40, 23-Apr-2021
1630,Revenue,CAHD,North - Community based support,Other Small Contracts,Epiphany In Care,10819.20, 23-Apr-2021
1631,Revenue,CAHD,Central - Commissioned Services,Other Small Contracts,Epiphany In Care,1188.00, 28-Apr-2021
1632,Revenue,CAHD,Central - Commissioned Services,Other Small Contracts,Epiphany In Care,891.00, 28-Apr-2021
1633,Revenue,CAHD,South - Commissioned Services,Other Small Contracts,Epiphany In Care,1800.50, 28-Apr-2021
1634,Revenue,CAHD,Central - Commissioned Services,Other Small Contracts,Epiphany In Care,823.50, 29-Apr-2021
1635,Revenue,CAHD,North - S117,Permanent Residential,Evolve House,2457.60, 06-Apr-2021
1636,Revenue,CAHD,North - S117,Permanent Residential,Evolve House,819.20, 06-Apr-2021
1637,Revenue,CAHD,Placements OLA Special Schools and RB,Other L.A.s - General,Excalibur Academies Trust T/A,2166.55, 21-Apr-2021
1638,Revenue,CAHD,Covid - ASC - Infection Control,Grants to Voluntary Bodies,Excel Living Limited,1740.40, 08-Apr-2021
1639,Revenue,CAHD,Covid  - Workforce capacity,Grants to Voluntary Bodies,Excel Living Limited,2235.95, 06-Apr-2021
1640,Revenue,CAHD,Social Lettings Agency,Prop.Serv. General Repairs,Express Property Services Limited,78.00, 09-Apr-2021
1641,Revenue,CAHD,Social Lettings Agency,Prop.Serv. General Repairs,Express Property Services Limited,60.00, 09-Apr-2021
1642,Revenue,CAHD,Social Lettings Agency,Prop.Serv. General Repairs,Express Property Services Limited,75.30, 09-Apr-2021
1643,Revenue,CAHD,Social Lettings Agency,Prop.Serv. General Repairs,Express Property Services Limited,112.00, 09-Apr-2021
1644,Revenue,CAHD,Social Lettings Agency,Prop.Serv. General Repairs,Express Property Services Limited,256.00, 09-Apr-2021
1645,Revenue,CAHD,Social Lettings Agency,Prop.Serv. General Repairs,Express Property Services Limited,60.00, 09-Apr-2021
1646,Revenue,CAHD,Social Lettings Agency,Prop.Serv. General Repairs,Express Property Services Limited,140.00, 09-Apr-2021
1647,Revenue,CAHD,Social Lettings Agency,Prop.Serv. General Repairs,Express Property Services Limited,177.00, 09-Apr-2021
1648,Revenue,CAHD,Social Lettings Agency,Prop.Serv. General Repairs,Express Property Services Limited,170.00, 09-Apr-2021
1649,Revenue,CAHD,Social Lettings Agency,Prop.Serv. General Repairs,Express Property Services Limited,204.00, 09-Apr-2021
1650,Revenue,CAHD,Social Lettings Agency,Prop.Serv. General Repairs,Express Property Services Limited,60.00, 09-Apr-2021
1651,Revenue,CAHD,Social Lettings Agency,Prop.Serv. General Repairs,Express Property Services Limited,130.00, 09-Apr-2021
1652,Revenue,CAHD,Social Lettings Agency,Prop.Serv. General Repairs,Express Property Services Limited,48.00, 09-Apr-2021
1653,Revenue,CAHD,Social Lettings Agency,Prop.Serv. General Repairs,Express Property Services Limited,310.00, 09-Apr-2021
1654,Revenue,CAHD,Social Lettings Agency,Prop.Serv. General Repairs,Express Property Services Limited,103.00, 09-Apr-2021
1655,Revenue,CAHD,Homeless - Private Sector Leasing,Prop.Serv. General Repairs,Express Property Services Limited,320.00, 09-Apr-2021
1656,Revenue,CAHD,Homeless - Private Sector Leasing,Prop.Serv. General Repairs,Express Property Services Limited,1125.00, 09-Apr-2021
1657,Revenue,CAHD,Homeless - Private Sector Leasing,Prop.Serv. General Repairs,Express Property Services Limited,457.60, 09-Apr-2021
1658,Revenue,CAHD,Homeless - Private Sector Leasing,Prop.Serv. General Repairs,Express Property Services Limited,80.99, 09-Apr-2021
1659,Revenue,CAHD,Homeless - Private Sector Leasing,Prop.Serv. General Repairs,Express Property Services Limited,140.00, 09-Apr-2021
1660,Revenue,CAHD,Homeless - Private Sector Leasing,Prop.Serv. General Repairs,Express Property Services Limited,60.00, 09-Apr-2021
1661,Revenue,CAHD,Extra Care Housing,Private & Voluntary Home Care,Extra Care Charitable Trust,27505.67, 12-Apr-2021
1662,Revenue,CAHD,North - Community based support,Permanent Residential,Eyre Court,4050.00, 06-Apr-2021
1663,Revenue,CAHD,North - Community based support,Permanent Residential,Eyre Court,1350.00, 06-Apr-2021
1664,Revenue,CAHD,Covid-19 Free School Meals,Grant Income - Government Depts,FACE,705.00, 12-Apr-2021
1665,Revenue,CAHD,South - Commissioned Services,Permanent Nursing,Fairview Court,2915.07, 06-Apr-2021
1666,Revenue,CAHD,South - Commissioned Services,Permanent Nursing,Fairview Court,994.04, 06-Apr-2021
1667,Revenue,CAHD,South - Commissioned Services,Permanent Nursing,Fairview Court,3600.00, 06-Apr-2021
1668,Revenue,CAHD,South - Commissioned Services,Permanent Nursing,Fairview Court,1200.00, 06-Apr-2021
1669,Revenue,CAHD,South - Commissioned Services,Permanent Nursing,Fairview Court,3103.32, 06-Apr-2021
1670,Revenue,CAHD,South - Commissioned Services,Permanent Nursing,Fairview Court,1058.23, 06-Apr-2021
1671,Revenue,CAHD,South - Commissioned Services,Permanent Nursing,Fairview Court,3600.00, 06-Apr-2021
1672,Revenue,CAHD,Central - Commissioned Services,Permanent Nursing,Fairview Court,1200.00, 06-Apr-2021
1673,Revenue,CAHD,South - Commissioned Services,Fees & Charges Income - General,Fairview Court,3338.49, 06-Apr-2021
1674,Revenue,CAHD,South - Commissioned Services,Fees & Charges Income - General,Fairview Court,510.34, 06-Apr-2021
1675,Revenue,CAHD,South - Commissioned Services,Permanent Nursing,Fairview Court,3600.00, 06-Apr-2021
1676,Revenue,CAHD,South - Commissioned Services,Permanent Nursing,Fairview Court,1227.60, 06-Apr-2021
1677,Revenue,CAHD,South - S117,Permanent Nursing,Fairview Court,3192.99, 06-Apr-2021
1678,Revenue,CAHD,South - S117,Permanent Nursing,Fairview Court,1088.81, 06-Apr-2021
1679,Revenue,CAHD,South - Commissioned Services,Permanent Nursing,Fairview Court,3058.68, 06-Apr-2021
1680,Revenue,CAHD,South - Commissioned Services,Permanent Nursing,Fairview Court,1019.56, 06-Apr-2021
1681,Revenue,CAHD,South - Commissioned Services,Permanent Nursing,Fairview Court,3600.00, 06-Apr-2021
1682,Revenue,CAHD,South - Commissioned Services,Permanent Nursing,Fairview Court,1200.00, 06-Apr-2021
1683,Revenue,CAHD,South - Commissioned Services,Permanent Residential,Fairview Court,3036.48, 06-Apr-2021
1684,Revenue,CAHD,South - Commissioned Services,Permanent Residential,Fairview Court,1035.44, 06-Apr-2021
1685,Revenue,CAHD,South - Commissioned Services,Permanent Nursing,Fairview Court,9257.14, 06-Apr-2021
1686,Revenue,CAHD,South - Commissioned Services,Permanent Nursing,Fairview Court,3600.00, 06-Apr-2021
1687,Revenue,CAHD,South - Commissioned Services,Permanent Nursing,Fairview Court,1227.60, 06-Apr-2021
1688,Revenue,CAHD,South - Commissioned Services,Permanent Nursing,Fairview Court,2850.00, 06-Apr-2021
1689,Revenue,CAHD,South - Commissioned Services,Permanent Nursing,Fairview Court,971.85, 06-Apr-2021
1690,Revenue,CAHD,North - Community based support,Permanent Residential,Fairview Court,2491.08, 06-Apr-2021
1691,Revenue,CAHD,North - Community based support,Permanent Residential,Fairview Court,849.46, 06-Apr-2021
1692,Revenue,CAHD,South - bed purchasing and direct  payments,Permanent Nursing,Fairview Court,3103.32, 06-Apr-2021
1693,Revenue,CAHD,South - bed purchasing and direct  payments,Permanent Nursing,Fairview Court,1058.23, 06-Apr-2021
1694,Revenue,CAHD,South - Commissioned Services,Permanent Nursing,Fairview Court,3600.00, 06-Apr-2021
1695,Revenue,CAHD,South - Commissioned Services,Permanent Nursing,Fairview Court,1200.00, 06-Apr-2021
1696,Revenue,CAHD,Covid 19- Spend on behalf of NHS,Respite Planned - Nursing,Fairview Court,790.29, 06-Apr-2021
1697,Revenue,CAHD,South - Commissioned Services,Permanent Nursing,Fairview Court,13348.57, 06-Apr-2021
1698,Revenue,CAHD,South - Commissioned Services,Permanent Nursing,Fairview Court,3840.00, 06-Apr-2021
1699,Revenue,CAHD,South - Commissioned Services,Permanent Nursing,Fairview Court,1309.44, 06-Apr-2021
1700,Revenue,CAHD,South - Commissioned Services,Permanent Nursing,Fairview Court,2665.02, 06-Apr-2021
1701,Revenue,CAHD,South - Commissioned Services,Permanent Nursing,Fairview Court,908.77, 06-Apr-2021
1702,Revenue,CAHD,North - Community based support,Permanent Nursing,Fairview Court,2915.07, 06-Apr-2021
1703,Revenue,CAHD,North - Community based support,Permanent Nursing,Fairview Court,994.04, 06-Apr-2021
1704,Revenue,CAHD,South - Commissioned Services,Permanent Nursing,Fairview Court,2394.72, 06-Apr-2021
1705,Revenue,CAHD,South - Commissioned Services,Permanent Nursing,Fairview Court,816.60, 06-Apr-2021
1706,Revenue,CAHD,South - Commissioned Services,Permanent Nursing,Fairview Court,2714.04, 06-Apr-2021
1707,Revenue,CAHD,South - Commissioned Services,Permanent Nursing,Fairview Court,925.49, 06-Apr-2021
1708,Revenue,CAHD,South - Commissioned Services,Permanent Nursing,Fairview Court,3021.00, 06-Apr-2021
1709,Revenue,CAHD,South - Commissioned Services,Permanent Nursing,Fairview Court,1030.16, 06-Apr-2021
1710,Revenue,CAHD,South - Commissioned Services,Permanent Nursing,Fairview Court,3103.32, 06-Apr-2021
1711,Revenue,CAHD,South - Commissioned Services,Permanent Nursing,Fairview Court,1058.23, 06-Apr-2021
1712,Revenue,CAHD,Covid 19- Spend on behalf of NHS,Respite Planned - Residential,Fairview House,3392.86, 06-Apr-2021
1713,Revenue,CAHD,South - Commissioned Services,Permanent Residential,Fairview House,1762.20, 06-Apr-2021
1714,Revenue,CAHD,South - Commissioned Services,Permanent Residential,Fairview House,600.91, 06-Apr-2021
1715,Revenue,CAHD,South - Commissioned Services,Permanent Residential,Fairview House,2550.00, 06-Apr-2021
1716,Revenue,CAHD,South - Commissioned Services,Permanent Residential,Fairview House,869.55, 06-Apr-2021
1717,Revenue,CAHD,South - Commissioned Services,Permanent Residential,Fairview House,2700.00, 06-Apr-2021
1718,Revenue,CAHD,South - Commissioned Services,Permanent Residential,Fairview House,900.00, 06-Apr-2021
1719,Revenue,CAHD,South - Commissioned Services,Permanent Residential,Fairview House,2850.00, 06-Apr-2021
1720,Revenue,CAHD,South - Commissioned Services,Permanent Residential,Fairview House,950.00, 06-Apr-2021
1721,Revenue,CAHD,South - Commissioned Services,Permanent Residential,Fairview House,2850.00, 06-Apr-2021
1722,Revenue,CAHD,South - Commissioned Services,Permanent Residential,Fairview House,971.85, 06-Apr-2021
1723,Revenue,CAHD,North - Community based support,Respite Emergency - Residential,Faith House,3128.00, 06-Apr-2021
1724,Revenue,CAHD,North - Community based support,Permanent Residential,Faith House,3600.00, 06-Apr-2021
1725,Revenue,CAHD,North - Community based support,Permanent Residential,Faith House,2700.00, 06-Apr-2021
1726,Revenue,CAHD,North - Community based support,Permanent Residential,Faith House,920.70, 06-Apr-2021
1727,Revenue,CAHD,Covid 19- Spend on behalf of NHS,Respite Emergency - Residential,Faith House,1899.14, 06-Apr-2021
1728,Revenue,CAHD,Covid 19- Spend on behalf of NHS,Respite Emergency - Residential,Faith House,1022.00, 06-Apr-2021
1729,Revenue,CAHD,Covid 19- Spend on behalf of NHS,Respite Emergency - Residential,Faith House,1005.43, 06-Apr-2021
1730,Revenue,CAHD,North - Community based support,Permanent Residential,Faith House,2146.41, 06-Apr-2021
1731,Revenue,CAHD,North - Community based support,Permanent Residential,Faith House,731.93, 06-Apr-2021
1732,Revenue,CAHD,Central - Commissioned Services,Permanent Residential,Faith House,2346.00, 06-Apr-2021
1733,Revenue,CAHD,Central - Commissioned Services,Permanent Residential,Faith House,782.00, 06-Apr-2021
1734,Revenue,CAHD,North - Community based support,Permanent Residential,Faith House,2279.70, 06-Apr-2021
1735,Revenue,CAHD,North - Community based support,Permanent Residential,Faith House,777.38, 06-Apr-2021
1736,Revenue,CAHD,South - Commissioned Services,Permanent Residential,Faith House,2218.50, 06-Apr-2021
1737,Revenue,CAHD,South - Commissioned Services,Permanent Residential,Faith House,756.51, 06-Apr-2021
1738,Revenue,CAHD,CSC - Parent & Child Assessments,Foster Parent Allowances,Families First (SW) Ltd,7512.23, 30-Apr-2021
1739,Revenue,CAHD,CSC - Parent & Child Assessments,Foster Parent Allowances,Families First (SW) Ltd,7269.90, 30-Apr-2021
1740,Revenue,CAHD,Post 16 High Needs Placements,Other Private Contractors,Farleigh FEC-Frome Priory,5487.02, 12-Apr-2021
1741,Revenue,CAHD,Post 16 High Needs Placements,Other Private Contractors,Farleigh FEC-Frome Priory,22815.17, 12-Apr-2021
1742,Revenue,CAHD,Post 16 High Needs Placements,Other Private Contractors,Farleigh FEC-Frome Priory,24176.30, 19-Apr-2021
1743,Revenue,CAHD,Post 16 High Needs Placements,Other Private Contractors,Farleigh FEC-Frome Priory,22552.28, 19-Apr-2021
1744,Revenue,CAHD,Post 16 High Needs Placements,Other Private Contractors,Farleigh FEC-Frome Priory,7924.19, 19-Apr-2021
1745,Revenue,CAHD,Post 16 High Needs Placements,Other Private Contractors,Farleigh FEC-Frome Priory,13255.06, 19-Apr-2021
1746,Revenue,CAHD,CSC - Fostering Carer Support,Care Mgt/Asesmnt Staff Pay,Individual,1000.00, 30-Apr-2021
1747,Revenue,CAHD,North - Community based support,Fees & Charges Income - General,Field House Care Home,621.57, 06-Apr-2021
1748,Revenue,CAHD,North - Community based support,Permanent Nursing,Field House Care Home,2552.70, 06-Apr-2021
1749,Revenue,CAHD,North - Community based support,Permanent Nursing,Field House Care Home,850.90, 06-Apr-2021
1750,Revenue,CAHD,North - Community based support,Permanent Nursing,Field House Care Home,2692.11, 06-Apr-2021
1751,Revenue,CAHD,North - Community based support,Permanent Nursing,Field House Care Home,897.37, 06-Apr-2021
1752,Revenue,CAHD,Central - Commissioned Services,Permanent Nursing,Field House Care Home,2820.00, 06-Apr-2021
1753,Revenue,CAHD,Central - Commissioned Services,Permanent Nursing,Field House Care Home,940.00, 06-Apr-2021
1754,Revenue,CAHD,Central - Commissioned Services,Permanent Nursing,Field House Care Home,2805.00, 06-Apr-2021
1755,Revenue,CAHD,Central - Commissioned Services,Permanent Nursing,Field House Care Home,935.00, 06-Apr-2021
1756,Revenue,CAHD,North - Community based support,Permanent Nursing,Field House Care Home,1703.79, 06-Apr-2021
1757,Revenue,CAHD,North - Community based support,Permanent Nursing,Field House Care Home,567.93, 06-Apr-2021
1758,Revenue,CAHD,Central - Commissioned Services,Permanent Nursing,Field House Care Home,2805.00, 06-Apr-2021
1759,Revenue,CAHD,Central - Commissioned Services,Permanent Nursing,Field House Care Home,935.00, 06-Apr-2021
1760,Revenue,CAHD,North - Community based support,Permanent Nursing,Field House Care Home,1703.79, 06-Apr-2021
1761,Revenue,CAHD,North - Community based support,Permanent Nursing,Field House Care Home,567.93, 06-Apr-2021
1762,Revenue,CAHD,North - Community based support,Permanent Nursing,Field House Care Home,2629.50, 06-Apr-2021
1763,Revenue,CAHD,North - Community based support,Permanent Nursing,Field House Care Home,876.50, 06-Apr-2021
1764,Revenue,CAHD,Statemented Support Payments to OLAs,Other L.A.s - General,Filton Avenue Primary School,1131.84, 21-Apr-2021
1765,Revenue,CAHD,Statemented Support Payments to OLAs,Other L.A.s - General,Filton Avenue Primary School,1332.27, 21-Apr-2021
1766,Revenue,CAHD,South - Commissioned Services,Permanent Nursing,First Floor  Lingfield House,4700.00, 06-Apr-2021
1767,Revenue,CAHD,South - Commissioned Services,Permanent Nursing,First Floor  Lingfield House,2820.00, 06-Apr-2021
1768,Revenue,CAHD,South - Commissioned Services,Permanent Nursing,First Floor  Lingfield House,961.62, 06-Apr-2021
1769,Revenue,CAHD,South - Commissioned Services,Permanent Nursing,First Floor  Lingfield House,2610.00, 06-Apr-2021
1770,Revenue,CAHD,South - Commissioned Services,Permanent Nursing,First Floor  Lingfield House,870.00, 06-Apr-2021
1771,Revenue,CAHD,Covid 19- Spend on behalf of NHS,Respite Planned - Nursing,First Floor  Lingfield House,542.86, 06-Apr-2021
1772,Revenue,CAHD,South - Commissioned Services,Permanent Nursing,First Floor  Lingfield House,1915.77, 06-Apr-2021
1773,Revenue,CAHD,South - Commissioned Services,Permanent Nursing,First Floor  Lingfield House,653.28, 06-Apr-2021
1774,Revenue,CAHD,Covid 19- Spend on behalf of NHS,Respite Planned - Nursing,First Floor  Lingfield House,4750.00, 06-Apr-2021
1775,Revenue,CAHD,Covid 19- Spend on behalf of NHS,Respite Planned - Nursing,First Floor  Lingfield House,950.00, 06-Apr-2021
1776,Revenue,CAHD,South - Commissioned Services,Permanent Residential,First Floor  Lingfield House,2370.00, 06-Apr-2021
1777,Revenue,CAHD,South - Commissioned Services,Permanent Residential,First Floor  Lingfield House,790.00, 06-Apr-2021
1778,Revenue,CAHD,Covid 19- Spend on behalf of NHS,Respite Planned - Nursing,First Floor  Lingfield House,3392.86, 06-Apr-2021
1779,Revenue,CAHD,Covid 19- Spend on behalf of NHS,Respite Planned - Nursing,First Floor  Lingfield House,2307.14, 06-Apr-2021
1780,Revenue,CAHD,South - Commissioned Services,Permanent Nursing,First Floor  Lingfield House,3625.71, 06-Apr-2021
1781,Revenue,CAHD,South - Commissioned Services,Permanent Residential,First Floor  Lingfield House,2520.00, 06-Apr-2021
1782,Revenue,CAHD,South - Commissioned Services,Permanent Residential,First Floor  Lingfield House,840.00, 06-Apr-2021
1783,Revenue,CAHD,South - Commissioned Services,Permanent Residential,First Floor  Lingfield House,2610.00, 06-Apr-2021
1784,Revenue,CAHD,South - Commissioned Services,Permanent Residential,First Floor  Lingfield House,870.00, 06-Apr-2021
1785,Revenue,CAHD,North - Community based support,Permanent Residential,First Floor  Q4  The Square,6607.65, 06-Apr-2021
1786,Revenue,CAHD,Jointly Funded H&SC Packages,Permanent Residential,First Floor  Q4  The Square,4195.68, 06-Apr-2021
1787,Revenue,CAHD,North - Community based support,Permanent Residential,First Floor  Q4  The Square,2202.55, 06-Apr-2021
1788,Revenue,CAHD,Jointly Funded H&SC Packages,Permanent Residential,First Floor  Q4  The Square,1398.56, 06-Apr-2021
1789,Revenue,CAHD,North - Community based support,Permanent Residential,First Floor  Q4  The Square,6398.43, 06-Apr-2021
1790,Revenue,CAHD,Jointly Funded H&SC Packages,Permanent Residential,First Floor  Q4  The Square,1933.26, 06-Apr-2021
1791,Revenue,CAHD,North - Community based support,Permanent Residential,First Floor  Q4  The Square,2132.81, 06-Apr-2021
1792,Revenue,CAHD,Jointly Funded H&SC Packages,Permanent Residential,First Floor  Q4  The Square,644.42, 06-Apr-2021
1793,Revenue,CAHD,Early Years High Needs Support,Other Private Contractors,First Steps Day Nursery,880.72, 21-Apr-2021
1794,Revenue,CAHD,CSC - Parent & Child Assessments,Foster Parent Allowances,Five Rivers Child Care Limited,6200.00, 09-Apr-2021
1795,Revenue,CAHD,CSC - Parent & Child Assessments,Foster Parent Allowances,Five Rivers Child Care Limited,6864.29, 09-Apr-2021
1796,Revenue,CAHD,CSC - Agency Fostering,Foster Parent Allowances,Five Rivers Child Care Limited,3597.86, 21-Apr-2021
1797,Revenue,CAHD,CSC - Agency Fostering,Foster Parent Allowances,Five Rivers Child Care Limited,3597.86, 21-Apr-2021
1798,Revenue,CAHD,CSC - Agency Fostering,Foster Parent Allowances,Five Rivers Child Care Limited,3447.82, 21-Apr-2021
1799,Revenue,CAHD,CSC - Agency Fostering,Foster Parent Allowances,Five Rivers Child Care Limited,2183.57, 09-Apr-2021
1800,Revenue,CAHD,CSC - Agency Fostering,Foster Parent Allowances,Five Rivers Child Care Limited,3550.00, 16-Apr-2021
1801,Revenue,CAHD,CSC - Agency Fostering,Foster Parent Allowances,Five Rivers Child Care Limited,3249.68, 21-Apr-2021
1802,Revenue,CAHD,CSC - Agency Fostering,Foster Parent Allowances,Five Rivers Child Care Limited,3249.68, 21-Apr-2021
1803,Revenue,CAHD,CSC - Agency Fostering,Foster Parent Allowances,Five Rivers Child Care Limited,3114.16, 21-Apr-2021
1804,Revenue,CAHD,CSC - Agency Fostering,Foster Parent Allowances,Five Rivers Child Care Limited,3447.82, 21-Apr-2021
1805,Revenue,CAHD,CSC - Agency Fostering,Foster Parent Allowances,Five Rivers Child Care Limited,3447.82, 21-Apr-2021
1806,Revenue,CAHD,CSC - Agency Fostering,Foster Parent Allowances,Five Rivers Child Care Limited,3627.00, 21-Apr-2021
1807,Revenue,CAHD,CSC - Agency Fostering,Foster Parent Allowances,Five Rivers Child Care Limited,3627.00, 21-Apr-2021
1808,Revenue,CAHD,CSC - Agency Fostering,Foster Parent Allowances,Five Rivers Child Care Limited,3597.86, 21-Apr-2021
1809,Revenue,CAHD,CSC - Agency Fostering,Foster Parent Allowances,Five Rivers Child Care Limited,3597.86, 21-Apr-2021
1810,Revenue,CAHD,CSC - Agency Fostering,Foster Parent Allowances,Five Rivers Child Care Limited,3627.00, 21-Apr-2021
1811,Revenue,CAHD,CSC - Agency Fostering,Foster Parent Allowances,Five Rivers Child Care Limited,3510.00, 21-Apr-2021
1812,Revenue,CAHD,CSC - Agency Fostering,Foster Parent Allowances,Five Rivers Child Care Limited,592.14, 23-Apr-2021
1813,Revenue,CAHD,CSC - Agency Fostering,Foster Parent Allowances,Five Rivers Child Care Limited,1658.00, 23-Apr-2021
1814,Revenue,CAHD,CSC - Agency Fostering,Foster Parent Allowances,Foster Care Associates Limited,3858.26, 21-Apr-2021
1815,Revenue,CAHD,CSC - Agency Fostering,Foster Parent Allowances,Foster Care Associates Limited,3769.91, 21-Apr-2021
1816,Revenue,CAHD,CSC - Agency Fostering,Foster Parent Allowances,Foster Care Associates Limited,3937.00, 21-Apr-2021
1817,Revenue,CAHD,CSC - Agency Fostering,Foster Parent Allowances,Fostering Matters Ltd,3520.67, 21-Apr-2021
1818,Revenue,CAHD,CSC - Agency Fostering,Foster Parent Allowances,Fostering Matters Ltd,3520.67, 09-Apr-2021
1819,Revenue,CAHD,CSC - Parent & Child Assessments,Foster Parent Allowances,Fostering Solutions Limited,5810.84, 08-Apr-2021
1820,Revenue,CAHD,Covid-19 Free School Meals,Grant Income - Government Depts,Four Towns Play Association,13342.02, 09-Apr-2021
1821,Revenue,CAHD,Pathway 1 - Re-Ablement Home Care,Other Small Contracts,Fourways Care Limited,3470.06, 08-Apr-2021
1822,Revenue,CAHD,Central - Commissioned Services,Other Small Contracts,Fourways Care Limited,174.00, 09-Apr-2021
1823,Revenue,CAHD,South - Commissioned Services,Other Small Contracts,Fourways Care Limited,887.82, 09-Apr-2021
1824,Revenue,CAHD,North - Community based support,Other Small Contracts,Fourways Care Limited,8972.76, 09-Apr-2021
1825,Revenue,CAHD,Central - Commissioned Services,Other Small Contracts,Fourways Care Limited,174.00, 23-Apr-2021
